Organisation Name,Organisation Code,Unique Ref No,Effective Date,Directorate where expenditure incurred, Supplier Name ,Payment Date,Net Amount,Purpose of Spend,"Procurement Classification
(Higher Level)",Procurement Classification (Lower Level),CAPITAL / REVENUE
Walsall Council,http://opendatacommunities.org/id/metropolitan-district-council/walsall ,WC136-1,31.03.2022,CHILDRENS,247 CARS (WILLENHALL) LIMITED,01/03/2022,"1,380.00",6241-Hire of Vehicle with Driver,TRANSPORT,DIRECT TRANSPORT COSTS,REVENUE
Walsall Council,http://opendatacommunities.org/id/metropolitan-district-council/walsall ,WC136-2,31.03.2022,CHILDRENS,247 CARS (WILLENHALL) LIMITED,01/03/2022,"1,850.00",6241-Hire of Vehicle with Driver,TRANSPORT,DIRECT TRANSPORT COSTS,REVENUE
Walsall Council,http://opendatacommunities.org/id/metropolitan-district-council/walsall ,WC136-3,31.03.2022,CHILDRENS,247 CARS (WILLENHALL) LIMITED,01/03/2022,"1,330.00",6241-Hire of Vehicle with Driver,TRANSPORT,DIRECT TRANSPORT COSTS,REVENUE
Walsall Council,http://opendatacommunities.org/id/metropolitan-district-council/walsall ,WC136-4,31.03.2022,CHILDRENS,247 CARS (WILLENHALL) LIMITED,01/03/2022,"1,461.60",6241-Hire of Vehicle with Driver,TRANSPORT,DIRECT TRANSPORT COSTS,REVENUE
Walsall Council,http://opendatacommunities.org/id/metropolitan-district-council/walsall ,WC136-5,31.03.2022,CHILDRENS,247 CARS (WILLENHALL) LIMITED,01/03/2022,"1,176.00",6241-Hire of Vehicle with Driver,TRANSPORT,DIRECT TRANSPORT COSTS,REVENUE
Walsall Council,http://opendatacommunities.org/id/metropolitan-district-council/walsall ,WC136-6,31.03.2022,CHILDRENS,247 CARS (WILLENHALL) LIMITED,01/03/2022,665.00,6241-Hire of Vehicle with Driver,TRANSPORT,DIRECT TRANSPORT COSTS,REVENUE
Walsall Council,http://opendatacommunities.org/id/metropolitan-district-council/walsall ,WC136-7,31.03.2022,CHILDRENS,247 CARS (WILLENHALL) LIMITED,01/03/2022,"1,329.70",6241-Hire of Vehicle with Driver,TRANSPORT,DIRECT TRANSPORT COSTS,REVENUE
Walsall Council,http://opendatacommunities.org/id/metropolitan-district-council/walsall ,WC136-8,31.03.2022,CHILDRENS,247 CARS (WILLENHALL) LIMITED,01/03/2022,"1,444.00",6241-Hire of Vehicle with Driver,TRANSPORT,DIRECT TRANSPORT COSTS,REVENUE
Walsall Council,http://opendatacommunities.org/id/metropolitan-district-council/walsall ,WC136-9,31.03.2022,CHILDRENS,247 CARS (WILLENHALL) LIMITED,01/03/2022,665.00,6241-Hire of Vehicle with Driver,TRANSPORT,DIRECT TRANSPORT COSTS,REVENUE
Walsall Council,http://opendatacommunities.org/id/metropolitan-district-council/walsall ,WC136-10,31.03.2022,CHILDRENS,247 CARS (WILLENHALL) LIMITED,01/03/2022,"2,478.00",6241-Hire of Vehicle with Driver,TRANSPORT,DIRECT TRANSPORT COSTS,REVENUE
Walsall Council,http://opendatacommunities.org/id/metropolitan-district-council/walsall ,WC136-11,31.03.2022,CHILDRENS,247 CARS (WILLENHALL) LIMITED,01/03/2022,"1,850.00",6241-Hire of Vehicle with Driver,TRANSPORT,DIRECT TRANSPORT COSTS,REVENUE
Walsall Council,http://opendatacommunities.org/id/metropolitan-district-council/walsall ,WC136-12,31.03.2022,CHILDRENS,247 CARS (WILLENHALL) LIMITED,01/03/2022,"1,850.00",6241-Hire of Vehicle with Driver,TRANSPORT,DIRECT TRANSPORT COSTS,REVENUE
Walsall Council,http://opendatacommunities.org/id/metropolitan-district-council/walsall ,WC136-13,31.03.2022,CHILDRENS,247 CARS (WILLENHALL) LIMITED,01/03/2022,"1,850.00",6241-Hire of Vehicle with Driver,TRANSPORT,DIRECT TRANSPORT COSTS,REVENUE
Walsall Council,http://opendatacommunities.org/id/metropolitan-district-council/walsall ,WC136-14,31.03.2022,CHILDRENS,247 CARS (WILLENHALL) LIMITED,01/03/2022,"1,850.00",6241-Hire of Vehicle with Driver,TRANSPORT,DIRECT TRANSPORT COSTS,REVENUE
Walsall Council,http://opendatacommunities.org/id/metropolitan-district-council/walsall ,WC136-15,31.03.2022,CHILDRENS,247 CARS (WILLENHALL) LIMITED,28/03/2022,"1,387.50",6241-Hire of Vehicle with Driver,TRANSPORT,DIRECT TRANSPORT COSTS,REVENUE
Walsall Council,http://opendatacommunities.org/id/metropolitan-district-council/walsall ,WC136-16,31.03.2022,CHILDRENS,247 CARS (WILLENHALL) LIMITED,28/03/2022,864.50,6241-Hire of Vehicle with Driver,TRANSPORT,DIRECT TRANSPORT COSTS,REVENUE
Walsall Council,http://opendatacommunities.org/id/metropolitan-district-council/walsall ,WC136-17,31.03.2022,CHILDRENS,247 CARS (WILLENHALL) LIMITED,28/03/2022,"1,096.20",6241-Hire of Vehicle with Driver,TRANSPORT,DIRECT TRANSPORT COSTS,REVENUE
Walsall Council,http://opendatacommunities.org/id/metropolitan-district-council/walsall ,WC136-18,31.03.2022,CHILDRENS,247 CARS (WILLENHALL) LIMITED,28/03/2022,882.00,6241-Hire of Vehicle with Driver,TRANSPORT,DIRECT TRANSPORT COSTS,REVENUE
Walsall Council,http://opendatacommunities.org/id/metropolitan-district-council/walsall ,WC136-19,31.03.2022,CHILDRENS,247 CARS (WILLENHALL) LIMITED,28/03/2022,"1,610.70",6241-Hire of Vehicle with Driver,TRANSPORT,DIRECT TRANSPORT COSTS,REVENUE
Walsall Council,http://opendatacommunities.org/id/metropolitan-district-council/walsall ,WC136-20,31.03.2022,CHILDRENS,247 CARS (WILLENHALL) LIMITED,28/03/2022,"1,387.50",6241-Hire of Vehicle with Driver,TRANSPORT,DIRECT TRANSPORT COSTS,REVENUE
Walsall Council,http://opendatacommunities.org/id/metropolitan-district-council/walsall ,WC136-21,31.03.2022,CHILDRENS,247 CARS (WILLENHALL) LIMITED,28/03/2022,665.00,6241-Hire of Vehicle with Driver,TRANSPORT,DIRECT TRANSPORT COSTS,REVENUE
Walsall Council,http://opendatacommunities.org/id/metropolitan-district-council/walsall ,WC136-22,31.03.2022,CHILDRENS,247 CARS (WILLENHALL) LIMITED,28/03/2022,"1,083.00",6241-Hire of Vehicle with Driver,TRANSPORT,DIRECT TRANSPORT COSTS,REVENUE
Walsall Council,http://opendatacommunities.org/id/metropolitan-district-council/walsall ,WC136-23,31.03.2022,CHILDRENS,247 CARS (WILLENHALL) LIMITED,28/03/2022,332.50,6241-Hire of Vehicle with Driver,TRANSPORT,DIRECT TRANSPORT COSTS,REVENUE
Walsall Council,http://opendatacommunities.org/id/metropolitan-district-council/walsall ,WC136-24,31.03.2022,CHILDRENS,247 CARS (WILLENHALL) LIMITED,28/03/2022,"1,035.00",6241-Hire of Vehicle with Driver,TRANSPORT,DIRECT TRANSPORT COSTS,REVENUE
Walsall Council,http://opendatacommunities.org/id/metropolitan-district-council/walsall ,WC136-25,31.03.2022,CHILDRENS,247 CARS (WILLENHALL) LIMITED,28/03/2022,"1,387.50",6241-Hire of Vehicle with Driver,TRANSPORT,DIRECT TRANSPORT COSTS,REVENUE
Walsall Council,http://opendatacommunities.org/id/metropolitan-district-council/walsall ,WC136-26,31.03.2022,CHILDRENS,247 CARS (WILLENHALL) LIMITED,28/03/2022,"1,387.50",6241-Hire of Vehicle with Driver,TRANSPORT,DIRECT TRANSPORT COSTS,REVENUE
Walsall Council,http://opendatacommunities.org/id/metropolitan-district-council/walsall ,WC136-27,31.03.2022,CHILDRENS,247 CARS (WILLENHALL) LIMITED,28/03/2022,"1,387.50",6241-Hire of Vehicle with Driver,TRANSPORT,DIRECT TRANSPORT COSTS,REVENUE
Walsall Council,http://opendatacommunities.org/id/metropolitan-district-council/walsall ,WC136-28,31.03.2022,ADULT SOCIAL CARE,5 CARE SERVICES LTD,01/03/2022,311.40,6541-Domiciliary Care,THIRD PARTY PAYMENTS,PRIVATE CONTRACTOR,REVENUE
Walsall Council,http://opendatacommunities.org/id/metropolitan-district-council/walsall ,WC136-29,31.03.2022,ADULT SOCIAL CARE,5 CARE SERVICES LTD,01/03/2022,326.97,6541-Domiciliary Care,THIRD PARTY PAYMENTS,PRIVATE CONTRACTOR,REVENUE
Walsall Council,http://opendatacommunities.org/id/metropolitan-district-council/walsall ,WC136-30,31.03.2022,ADULT SOCIAL CARE,5 CARE SERVICES LTD,01/03/2022,490.49,6541-Domiciliary Care,THIRD PARTY PAYMENTS,PRIVATE CONTRACTOR,REVENUE
Walsall Council,http://opendatacommunities.org/id/metropolitan-district-council/walsall ,WC136-31,31.03.2022,ADULT SOCIAL CARE,5 CARE SERVICES LTD,01/03/2022,"2,055.24",6541-Domiciliary Care,THIRD PARTY PAYMENTS,PRIVATE CONTRACTOR,REVENUE
Walsall Council,http://opendatacommunities.org/id/metropolitan-district-council/walsall ,WC136-32,31.03.2022,ADULT SOCIAL CARE,5 CARE SERVICES LTD,01/03/2022,327.04,6541-Domiciliary Care,THIRD PARTY PAYMENTS,PRIVATE CONTRACTOR,REVENUE
Walsall Council,http://opendatacommunities.org/id/metropolitan-district-council/walsall ,WC136-33,31.03.2022,ADULT SOCIAL CARE,5 CARE SERVICES LTD,01/03/2022,490.49,6541-Domiciliary Care,THIRD PARTY PAYMENTS,PRIVATE CONTRACTOR,REVENUE
Walsall Council,http://opendatacommunities.org/id/metropolitan-district-council/walsall ,WC136-34,31.03.2022,ADULT SOCIAL CARE,5 CARE SERVICES LTD,01/03/2022,591.66,6541-Domiciliary Care,THIRD PARTY PAYMENTS,PRIVATE CONTRACTOR,REVENUE
Walsall Council,http://opendatacommunities.org/id/metropolitan-district-council/walsall ,WC136-35,31.03.2022,ADULT SOCIAL CARE,5 CARE SERVICES LTD,01/03/2022,724.06,6541-Domiciliary Care,THIRD PARTY PAYMENTS,PRIVATE CONTRACTOR,REVENUE
Walsall Council,http://opendatacommunities.org/id/metropolitan-district-council/walsall ,WC136-36,31.03.2022,ADULT SOCIAL CARE,5 CARE SERVICES LTD,01/03/2022,"1,198.89",6541-Domiciliary Care,THIRD PARTY PAYMENTS,PRIVATE CONTRACTOR,REVENUE
Walsall Council,http://opendatacommunities.org/id/metropolitan-district-council/walsall ,WC136-37,31.03.2022,ADULT SOCIAL CARE,5 CARE SERVICES LTD,01/03/2022,654.01,6541-Domiciliary Care,THIRD PARTY PAYMENTS,PRIVATE CONTRACTOR,REVENUE
Walsall Council,http://opendatacommunities.org/id/metropolitan-district-council/walsall ,WC136-38,31.03.2022,ADULT SOCIAL CARE,5 CARE SERVICES LTD,01/03/2022,326.97,6541-Domiciliary Care,THIRD PARTY PAYMENTS,PRIVATE CONTRACTOR,REVENUE
Walsall Council,http://opendatacommunities.org/id/metropolitan-district-council/walsall ,WC136-39,31.03.2022,ADULT SOCIAL CARE,5 CARE SERVICES LTD,01/03/2022,599.48,6541-Domiciliary Care,THIRD PARTY PAYMENTS,PRIVATE CONTRACTOR,REVENUE
Walsall Council,http://opendatacommunities.org/id/metropolitan-district-council/walsall ,WC136-40,31.03.2022,ADULT SOCIAL CARE,5 CARE SERVICES LTD,01/03/2022,871.92,6541-Domiciliary Care,THIRD PARTY PAYMENTS,PRIVATE CONTRACTOR,REVENUE
Walsall Council,http://opendatacommunities.org/id/metropolitan-district-council/walsall ,WC136-41,31.03.2022,ADULT SOCIAL CARE,5 CARE SERVICES LTD,01/03/2022,490.49,6541-Domiciliary Care,THIRD PARTY PAYMENTS,PRIVATE CONTRACTOR,REVENUE
Walsall Council,http://opendatacommunities.org/id/metropolitan-district-council/walsall ,WC136-42,31.03.2022,ADULT SOCIAL CARE,5 CARE SERVICES LTD,01/03/2022,490.49,6541-Domiciliary Care,THIRD PARTY PAYMENTS,PRIVATE CONTRACTOR,REVENUE
Walsall Council,http://opendatacommunities.org/id/metropolitan-district-council/walsall ,WC136-43,31.03.2022,ADULT SOCIAL CARE,5 CARE SERVICES LTD,01/03/2022,560.52,6541-Domiciliary Care,THIRD PARTY PAYMENTS,PRIVATE CONTRACTOR,REVENUE
Walsall Council,http://opendatacommunities.org/id/metropolitan-district-council/walsall ,WC136-44,31.03.2022,ADULT SOCIAL CARE,5 CARE SERVICES LTD,01/03/2022,705.84,6541-Domiciliary Care,THIRD PARTY PAYMENTS,PRIVATE CONTRACTOR,REVENUE
Walsall Council,http://opendatacommunities.org/id/metropolitan-district-council/walsall ,WC136-45,31.03.2022,ADULT SOCIAL CARE,5 CARE SERVICES LTD,01/03/2022,420.39,6541-Domiciliary Care,THIRD PARTY PAYMENTS,PRIVATE CONTRACTOR,REVENUE
Walsall Council,http://opendatacommunities.org/id/metropolitan-district-council/walsall ,WC136-46,31.03.2022,ADULT SOCIAL CARE,5 CARE SERVICES LTD,01/03/2022,311.40,6541-Domiciliary Care,THIRD PARTY PAYMENTS,PRIVATE CONTRACTOR,REVENUE
Walsall Council,http://opendatacommunities.org/id/metropolitan-district-council/walsall ,WC136-47,31.03.2022,ADULT SOCIAL CARE,5 CARE SERVICES LTD,01/03/2022,326.97,6541-Domiciliary Care,THIRD PARTY PAYMENTS,PRIVATE CONTRACTOR,REVENUE
Walsall Council,http://opendatacommunities.org/id/metropolitan-district-council/walsall ,WC136-48,31.03.2022,ADULT SOCIAL CARE,5 CARE SERVICES LTD,01/03/2022,490.49,6541-Domiciliary Care,THIRD PARTY PAYMENTS,PRIVATE CONTRACTOR,REVENUE
Walsall Council,http://opendatacommunities.org/id/metropolitan-district-council/walsall ,WC136-49,31.03.2022,ADULT SOCIAL CARE,5 CARE SERVICES LTD,01/03/2022,724.06,6541-Domiciliary Care,THIRD PARTY PAYMENTS,PRIVATE CONTRACTOR,REVENUE
Walsall Council,http://opendatacommunities.org/id/metropolitan-district-council/walsall ,WC136-50,31.03.2022,ADULT SOCIAL CARE,5 CARE SERVICES LTD,01/03/2022,490.49,6541-Domiciliary Care,THIRD PARTY PAYMENTS,PRIVATE CONTRACTOR,REVENUE
Walsall Council,http://opendatacommunities.org/id/metropolitan-district-council/walsall ,WC136-51,31.03.2022,ADULT SOCIAL CARE,5 CARE SERVICES LTD,01/03/2022,373.68,6541-Domiciliary Care,THIRD PARTY PAYMENTS,PRIVATE CONTRACTOR,REVENUE
Walsall Council,http://opendatacommunities.org/id/metropolitan-district-council/walsall ,WC136-52,31.03.2022,ADULT SOCIAL CARE,5 CARE SERVICES LTD,01/03/2022,327.04,6541-Domiciliary Care,THIRD PARTY PAYMENTS,PRIVATE CONTRACTOR,REVENUE
Walsall Council,http://opendatacommunities.org/id/metropolitan-district-council/walsall ,WC136-53,31.03.2022,ADULT SOCIAL CARE,5 CARE SERVICES LTD,01/03/2022,268.68,6541-Domiciliary Care,THIRD PARTY PAYMENTS,PRIVATE CONTRACTOR,REVENUE
Walsall Council,http://opendatacommunities.org/id/metropolitan-district-council/walsall ,WC136-54,31.03.2022,ADULT SOCIAL CARE,5 CARE SERVICES LTD,01/03/2022,490.49,6541-Domiciliary Care,THIRD PARTY PAYMENTS,PRIVATE CONTRACTOR,REVENUE
Walsall Council,http://opendatacommunities.org/id/metropolitan-district-council/walsall ,WC136-55,31.03.2022,ADULT SOCIAL CARE,5 CARE SERVICES LTD,01/03/2022,490.49,6541-Domiciliary Care,THIRD PARTY PAYMENTS,PRIVATE CONTRACTOR,REVENUE
Walsall Council,http://opendatacommunities.org/id/metropolitan-district-council/walsall ,WC136-56,31.03.2022,ADULT SOCIAL CARE,5 CARE SERVICES LTD,01/03/2022,591.66,6541-Domiciliary Care,THIRD PARTY PAYMENTS,PRIVATE CONTRACTOR,REVENUE
Walsall Council,http://opendatacommunities.org/id/metropolitan-district-council/walsall ,WC136-57,31.03.2022,ADULT SOCIAL CARE,5 CARE SERVICES LTD,01/03/2022,871.92,6541-Domiciliary Care,THIRD PARTY PAYMENTS,PRIVATE CONTRACTOR,REVENUE
Walsall Council,http://opendatacommunities.org/id/metropolitan-district-council/walsall ,WC136-58,31.03.2022,ADULT SOCIAL CARE,5 CARE SERVICES LTD,01/03/2022,"1,198.89",6541-Domiciliary Care,THIRD PARTY PAYMENTS,PRIVATE CONTRACTOR,REVENUE
Walsall Council,http://opendatacommunities.org/id/metropolitan-district-council/walsall ,WC136-59,31.03.2022,ADULT SOCIAL CARE,5 CARE SERVICES LTD,01/03/2022,560.52,6541-Domiciliary Care,THIRD PARTY PAYMENTS,PRIVATE CONTRACTOR,REVENUE
Walsall Council,http://opendatacommunities.org/id/metropolitan-district-council/walsall ,WC136-60,31.03.2022,ADULT SOCIAL CARE,5 CARE SERVICES LTD,01/03/2022,654.01,6541-Domiciliary Care,THIRD PARTY PAYMENTS,PRIVATE CONTRACTOR,REVENUE
Walsall Council,http://opendatacommunities.org/id/metropolitan-district-council/walsall ,WC136-61,31.03.2022,ADULT SOCIAL CARE,5 CARE SERVICES LTD,01/03/2022,326.97,6541-Domiciliary Care,THIRD PARTY PAYMENTS,PRIVATE CONTRACTOR,REVENUE
Walsall Council,http://opendatacommunities.org/id/metropolitan-district-council/walsall ,WC136-62,31.03.2022,ADULT SOCIAL CARE,5 CARE SERVICES LTD,01/03/2022,599.48,6541-Domiciliary Care,THIRD PARTY PAYMENTS,PRIVATE CONTRACTOR,REVENUE
Walsall Council,http://opendatacommunities.org/id/metropolitan-district-council/walsall ,WC136-63,31.03.2022,ADULT SOCIAL CARE,5 CARE SERVICES LTD,01/03/2022,705.84,6541-Domiciliary Care,THIRD PARTY PAYMENTS,PRIVATE CONTRACTOR,REVENUE
Walsall Council,http://opendatacommunities.org/id/metropolitan-district-council/walsall ,WC136-64,31.03.2022,ADULT SOCIAL CARE,5 CARE SERVICES LTD,01/03/2022,420.39,6541-Domiciliary Care,THIRD PARTY PAYMENTS,PRIVATE CONTRACTOR,REVENUE
Walsall Council,http://opendatacommunities.org/id/metropolitan-district-council/walsall ,WC136-65,31.03.2022,ADULT SOCIAL CARE,5 CARE SERVICES LTD,09/03/2022,"2,678.04",6541-Domiciliary Care,THIRD PARTY PAYMENTS,PRIVATE CONTRACTOR,REVENUE
Walsall Council,http://opendatacommunities.org/id/metropolitan-district-council/walsall ,WC136-66,31.03.2022,ADULT SOCIAL CARE,5 CARE SERVICES LTD,09/03/2022,584.25,6541-Domiciliary Care,THIRD PARTY PAYMENTS,PRIVATE CONTRACTOR,REVENUE
Walsall Council,http://opendatacommunities.org/id/metropolitan-district-council/walsall ,WC136-67,31.03.2022,ADULT SOCIAL CARE,5 CARE SERVICES LTD,09/03/2022,327.10,6541-Domiciliary Care,THIRD PARTY PAYMENTS,PRIVATE CONTRACTOR,REVENUE
Walsall Council,http://opendatacommunities.org/id/metropolitan-district-council/walsall ,WC136-68,31.03.2022,ADULT SOCIAL CARE,5 CARE SERVICES LTD,09/03/2022,"1,381.97",6541-Domiciliary Care,THIRD PARTY PAYMENTS,PRIVATE CONTRACTOR,REVENUE
Walsall Council,http://opendatacommunities.org/id/metropolitan-district-council/walsall ,WC136-69,31.03.2022,ADULT SOCIAL CARE,5 CARE SERVICES LTD,09/03/2022,619.22,6541-Domiciliary Care,THIRD PARTY PAYMENTS,PRIVATE CONTRACTOR,REVENUE
Walsall Council,http://opendatacommunities.org/id/metropolitan-district-council/walsall ,WC136-70,31.03.2022,ADULT SOCIAL CARE,5 CARE SERVICES LTD,14/03/2022,490.49,6541-Domiciliary Care,THIRD PARTY PAYMENTS,PRIVATE CONTRACTOR,REVENUE
Walsall Council,http://opendatacommunities.org/id/metropolitan-district-council/walsall ,WC136-71,31.03.2022,ADULT SOCIAL CARE,5 CARE SERVICES LTD,14/03/2022,871.92,6541-Domiciliary Care,THIRD PARTY PAYMENTS,PRIVATE CONTRACTOR,REVENUE
Walsall Council,http://opendatacommunities.org/id/metropolitan-district-council/walsall ,WC136-72,31.03.2022,ADULT SOCIAL CARE,5 CARE SERVICES LTD,14/03/2022,747.36,6541-Domiciliary Care,THIRD PARTY PAYMENTS,PRIVATE CONTRACTOR,REVENUE
Walsall Council,http://opendatacommunities.org/id/metropolitan-district-council/walsall ,WC136-73,31.03.2022,ADULT SOCIAL CARE,5 CARE SERVICES LTD,14/03/2022,327.04,6541-Domiciliary Care,THIRD PARTY PAYMENTS,PRIVATE CONTRACTOR,REVENUE
Walsall Council,http://opendatacommunities.org/id/metropolitan-district-council/walsall ,WC136-74,31.03.2022,ADULT SOCIAL CARE,5 CARE SERVICES LTD,14/03/2022,268.69,6541-Domiciliary Care,THIRD PARTY PAYMENTS,PRIVATE CONTRACTOR,REVENUE
Walsall Council,http://opendatacommunities.org/id/metropolitan-district-council/walsall ,WC136-75,31.03.2022,ADULT SOCIAL CARE,5 CARE SERVICES LTD,14/03/2022,654.01,6541-Domiciliary Care,THIRD PARTY PAYMENTS,PRIVATE CONTRACTOR,REVENUE
Walsall Council,http://opendatacommunities.org/id/metropolitan-district-council/walsall ,WC136-76,31.03.2022,ADULT SOCIAL CARE,5 CARE SERVICES LTD,14/03/2022,326.97,6541-Domiciliary Care,THIRD PARTY PAYMENTS,PRIVATE CONTRACTOR,REVENUE
Walsall Council,http://opendatacommunities.org/id/metropolitan-district-council/walsall ,WC136-77,31.03.2022,ADULT SOCIAL CARE,5 CARE SERVICES LTD,14/03/2022,599.48,6541-Domiciliary Care,THIRD PARTY PAYMENTS,PRIVATE CONTRACTOR,REVENUE
Walsall Council,http://opendatacommunities.org/id/metropolitan-district-council/walsall ,WC136-78,31.03.2022,ADULT SOCIAL CARE,5 CARE SERVICES LTD,14/03/2022,705.84,6541-Domiciliary Care,THIRD PARTY PAYMENTS,PRIVATE CONTRACTOR,REVENUE
Walsall Council,http://opendatacommunities.org/id/metropolitan-district-council/walsall ,WC136-79,31.03.2022,ADULT SOCIAL CARE,5 CARE SERVICES LTD,14/03/2022,734.44,6541-Domiciliary Care,THIRD PARTY PAYMENTS,PRIVATE CONTRACTOR,REVENUE
Walsall Council,http://opendatacommunities.org/id/metropolitan-district-council/walsall ,WC136-80,31.03.2022,ADULT SOCIAL CARE,5 CARE SERVICES LTD,14/03/2022,"1,198.89",6541-Domiciliary Care,THIRD PARTY PAYMENTS,PRIVATE CONTRACTOR,REVENUE
Walsall Council,http://opendatacommunities.org/id/metropolitan-district-council/walsall ,WC136-81,31.03.2022,ADULT SOCIAL CARE,5 CARE SERVICES LTD,14/03/2022,490.49,6541-Domiciliary Care,THIRD PARTY PAYMENTS,PRIVATE CONTRACTOR,REVENUE
Walsall Council,http://opendatacommunities.org/id/metropolitan-district-council/walsall ,WC136-82,31.03.2022,ADULT SOCIAL CARE,5 CARE SERVICES LTD,14/03/2022,490.49,6541-Domiciliary Care,THIRD PARTY PAYMENTS,PRIVATE CONTRACTOR,REVENUE
Walsall Council,http://opendatacommunities.org/id/metropolitan-district-council/walsall ,WC136-83,31.03.2022,ADULT SOCIAL CARE,5 CARE SERVICES LTD,14/03/2022,560.52,6541-Domiciliary Care,THIRD PARTY PAYMENTS,PRIVATE CONTRACTOR,REVENUE
Walsall Council,http://opendatacommunities.org/id/metropolitan-district-council/walsall ,WC136-84,31.03.2022,ADULT SOCIAL CARE,5 CARE SERVICES LTD,14/03/2022,482.74,6541-Domiciliary Care,THIRD PARTY PAYMENTS,PRIVATE CONTRACTOR,REVENUE
Walsall Council,http://opendatacommunities.org/id/metropolitan-district-council/walsall ,WC136-85,31.03.2022,ADULT SOCIAL CARE,5 CARE SERVICES LTD,14/03/2022,420.39,6541-Domiciliary Care,THIRD PARTY PAYMENTS,PRIVATE CONTRACTOR,REVENUE
Walsall Council,http://opendatacommunities.org/id/metropolitan-district-council/walsall ,WC136-86,31.03.2022,ADULT SOCIAL CARE,5 CARE SERVICES LTD,14/03/2022,311.40,6541-Domiciliary Care,THIRD PARTY PAYMENTS,PRIVATE CONTRACTOR,REVENUE
Walsall Council,http://opendatacommunities.org/id/metropolitan-district-council/walsall ,WC136-87,31.03.2022,ADULT SOCIAL CARE,5 CARE SERVICES LTD,14/03/2022,326.97,6541-Domiciliary Care,THIRD PARTY PAYMENTS,PRIVATE CONTRACTOR,REVENUE
Walsall Council,http://opendatacommunities.org/id/metropolitan-district-council/walsall ,WC136-88,31.03.2022,ADULT SOCIAL CARE,5 CARE SERVICES LTD,14/03/2022,490.49,6541-Domiciliary Care,THIRD PARTY PAYMENTS,PRIVATE CONTRACTOR,REVENUE
Walsall Council,http://opendatacommunities.org/id/metropolitan-district-council/walsall ,WC136-89,31.03.2022,ADULT SOCIAL CARE,5 CARE SERVICES LTD,14/03/2022,724.06,6541-Domiciliary Care,THIRD PARTY PAYMENTS,PRIVATE CONTRACTOR,REVENUE
Walsall Council,http://opendatacommunities.org/id/metropolitan-district-council/walsall ,WC136-90,31.03.2022,ADULT SOCIAL CARE,5 CARE SERVICES LTD,14/03/2022,311.40,6541-Domiciliary Care,THIRD PARTY PAYMENTS,PRIVATE CONTRACTOR,REVENUE
Walsall Council,http://opendatacommunities.org/id/metropolitan-district-council/walsall ,WC136-91,31.03.2022,ADULT SOCIAL CARE,5 CARE SERVICES LTD,14/03/2022,326.97,6541-Domiciliary Care,THIRD PARTY PAYMENTS,PRIVATE CONTRACTOR,REVENUE
Walsall Council,http://opendatacommunities.org/id/metropolitan-district-council/walsall ,WC136-92,31.03.2022,ADULT SOCIAL CARE,5 CARE SERVICES LTD,14/03/2022,490.49,6541-Domiciliary Care,THIRD PARTY PAYMENTS,PRIVATE CONTRACTOR,REVENUE
Walsall Council,http://opendatacommunities.org/id/metropolitan-district-council/walsall ,WC136-93,31.03.2022,ADULT SOCIAL CARE,5 CARE SERVICES LTD,14/03/2022,490.49,6541-Domiciliary Care,THIRD PARTY PAYMENTS,PRIVATE CONTRACTOR,REVENUE
Walsall Council,http://opendatacommunities.org/id/metropolitan-district-council/walsall ,WC136-94,31.03.2022,ADULT SOCIAL CARE,5 CARE SERVICES LTD,14/03/2022,268.68,6541-Domiciliary Care,THIRD PARTY PAYMENTS,PRIVATE CONTRACTOR,REVENUE
Walsall Council,http://opendatacommunities.org/id/metropolitan-district-council/walsall ,WC136-95,31.03.2022,ADULT SOCIAL CARE,5 CARE SERVICES LTD,14/03/2022,490.49,6541-Domiciliary Care,THIRD PARTY PAYMENTS,PRIVATE CONTRACTOR,REVENUE
Walsall Council,http://opendatacommunities.org/id/metropolitan-district-council/walsall ,WC136-96,31.03.2022,ADULT SOCIAL CARE,5 CARE SERVICES LTD,14/03/2022,490.49,6541-Domiciliary Care,THIRD PARTY PAYMENTS,PRIVATE CONTRACTOR,REVENUE
Walsall Council,http://opendatacommunities.org/id/metropolitan-district-council/walsall ,WC136-97,31.03.2022,ADULT SOCIAL CARE,5 CARE SERVICES LTD,14/03/2022,871.92,6541-Domiciliary Care,THIRD PARTY PAYMENTS,PRIVATE CONTRACTOR,REVENUE
Walsall Council,http://opendatacommunities.org/id/metropolitan-district-council/walsall ,WC136-98,31.03.2022,ADULT SOCIAL CARE,5 CARE SERVICES LTD,14/03/2022,482.74,6541-Domiciliary Care,THIRD PARTY PAYMENTS,PRIVATE CONTRACTOR,REVENUE
Walsall Council,http://opendatacommunities.org/id/metropolitan-district-council/walsall ,WC136-99,31.03.2022,ADULT SOCIAL CARE,5 CARE SERVICES LTD,14/03/2022,934.20,6541-Domiciliary Care,THIRD PARTY PAYMENTS,PRIVATE CONTRACTOR,REVENUE
Walsall Council,http://opendatacommunities.org/id/metropolitan-district-council/walsall ,WC136-100,31.03.2022,ADULT SOCIAL CARE,5 CARE SERVICES LTD,14/03/2022,327.04,6541-Domiciliary Care,THIRD PARTY PAYMENTS,PRIVATE CONTRACTOR,REVENUE
Walsall Council,http://opendatacommunities.org/id/metropolitan-district-council/walsall ,WC136-101,31.03.2022,ADULT SOCIAL CARE,5 CARE SERVICES LTD,14/03/2022,654.01,6541-Domiciliary Care,THIRD PARTY PAYMENTS,PRIVATE CONTRACTOR,REVENUE
Walsall Council,http://opendatacommunities.org/id/metropolitan-district-council/walsall ,WC136-102,31.03.2022,ADULT SOCIAL CARE,5 CARE SERVICES LTD,14/03/2022,326.97,6541-Domiciliary Care,THIRD PARTY PAYMENTS,PRIVATE CONTRACTOR,REVENUE
Walsall Council,http://opendatacommunities.org/id/metropolitan-district-council/walsall ,WC136-103,31.03.2022,ADULT SOCIAL CARE,5 CARE SERVICES LTD,14/03/2022,599.48,6541-Domiciliary Care,THIRD PARTY PAYMENTS,PRIVATE CONTRACTOR,REVENUE
Walsall Council,http://opendatacommunities.org/id/metropolitan-district-council/walsall ,WC136-104,31.03.2022,ADULT SOCIAL CARE,5 CARE SERVICES LTD,14/03/2022,705.84,6541-Domiciliary Care,THIRD PARTY PAYMENTS,PRIVATE CONTRACTOR,REVENUE
Walsall Council,http://opendatacommunities.org/id/metropolitan-district-council/walsall ,WC136-105,31.03.2022,ADULT SOCIAL CARE,5 CARE SERVICES LTD,14/03/2022,"1,198.89",6541-Domiciliary Care,THIRD PARTY PAYMENTS,PRIVATE CONTRACTOR,REVENUE
Walsall Council,http://opendatacommunities.org/id/metropolitan-district-council/walsall ,WC136-106,31.03.2022,ADULT SOCIAL CARE,5 CARE SERVICES LTD,14/03/2022,420.39,6541-Domiciliary Care,THIRD PARTY PAYMENTS,PRIVATE CONTRACTOR,REVENUE
Walsall Council,http://opendatacommunities.org/id/metropolitan-district-council/walsall ,WC136-107,31.03.2022,ADULT SOCIAL CARE,5 CARE SERVICES LTD,14/03/2022,560.52,6541-Domiciliary Care,THIRD PARTY PAYMENTS,PRIVATE CONTRACTOR,REVENUE
Walsall Council,http://opendatacommunities.org/id/metropolitan-district-council/walsall ,WC136-108,31.03.2022,ADULT SOCIAL CARE,5 CARE SERVICES LTD,14/03/2022,292.06,6541-Domiciliary Care,THIRD PARTY PAYMENTS,PRIVATE CONTRACTOR,REVENUE
Walsall Council,http://opendatacommunities.org/id/metropolitan-district-council/walsall ,WC136-109,31.03.2022,ADULT SOCIAL CARE,5 CARE SERVICES LTD,29/03/2022,"1,198.89",6541-Domiciliary Care,THIRD PARTY PAYMENTS,PRIVATE CONTRACTOR,REVENUE
Walsall Council,http://opendatacommunities.org/id/metropolitan-district-council/walsall ,WC136-110,31.03.2022,ADULT SOCIAL CARE,5 CARE SERVICES LTD,29/03/2022,560.52,6541-Domiciliary Care,THIRD PARTY PAYMENTS,PRIVATE CONTRACTOR,REVENUE
Walsall Council,http://opendatacommunities.org/id/metropolitan-district-council/walsall ,WC136-111,31.03.2022,ADULT SOCIAL CARE,5 CARE SERVICES LTD,29/03/2022,724.06,6541-Domiciliary Care,THIRD PARTY PAYMENTS,PRIVATE CONTRACTOR,REVENUE
Walsall Council,http://opendatacommunities.org/id/metropolitan-district-council/walsall ,WC136-112,31.03.2022,ADULT SOCIAL CARE,5 CARE SERVICES LTD,29/03/2022,490.49,6541-Domiciliary Care,THIRD PARTY PAYMENTS,PRIVATE CONTRACTOR,REVENUE
Walsall Council,http://opendatacommunities.org/id/metropolitan-district-council/walsall ,WC136-113,31.03.2022,ADULT SOCIAL CARE,5 CARE SERVICES LTD,29/03/2022,292.06,6541-Domiciliary Care,THIRD PARTY PAYMENTS,PRIVATE CONTRACTOR,REVENUE
Walsall Council,http://opendatacommunities.org/id/metropolitan-district-council/walsall ,WC136-114,31.03.2022,ADULT SOCIAL CARE,5 CARE SERVICES LTD,29/03/2022,607.23,6541-Domiciliary Care,THIRD PARTY PAYMENTS,PRIVATE CONTRACTOR,REVENUE
Walsall Council,http://opendatacommunities.org/id/metropolitan-district-council/walsall ,WC136-115,31.03.2022,ADULT SOCIAL CARE,5 CARE SERVICES LTD,29/03/2022,490.49,6541-Domiciliary Care,THIRD PARTY PAYMENTS,PRIVATE CONTRACTOR,REVENUE
Walsall Council,http://opendatacommunities.org/id/metropolitan-district-council/walsall ,WC136-116,31.03.2022,ADULT SOCIAL CARE,5 CARE SERVICES LTD,29/03/2022,871.92,6541-Domiciliary Care,THIRD PARTY PAYMENTS,PRIVATE CONTRACTOR,REVENUE
Walsall Council,http://opendatacommunities.org/id/metropolitan-district-council/walsall ,WC136-117,31.03.2022,ADULT SOCIAL CARE,5 CARE SERVICES LTD,29/03/2022,268.68,6541-Domiciliary Care,THIRD PARTY PAYMENTS,PRIVATE CONTRACTOR,REVENUE
Walsall Council,http://opendatacommunities.org/id/metropolitan-district-council/walsall ,WC136-118,31.03.2022,ADULT SOCIAL CARE,5 CARE SERVICES LTD,29/03/2022,490.49,6541-Domiciliary Care,THIRD PARTY PAYMENTS,PRIVATE CONTRACTOR,REVENUE
Walsall Council,http://opendatacommunities.org/id/metropolitan-district-council/walsall ,WC136-119,31.03.2022,ADULT SOCIAL CARE,5 CARE SERVICES LTD,29/03/2022,311.40,6541-Domiciliary Care,THIRD PARTY PAYMENTS,PRIVATE CONTRACTOR,REVENUE
Walsall Council,http://opendatacommunities.org/id/metropolitan-district-council/walsall ,WC136-120,31.03.2022,ADULT SOCIAL CARE,5 CARE SERVICES LTD,29/03/2022,326.97,6541-Domiciliary Care,THIRD PARTY PAYMENTS,PRIVATE CONTRACTOR,REVENUE
Walsall Council,http://opendatacommunities.org/id/metropolitan-district-council/walsall ,WC136-121,31.03.2022,ADULT SOCIAL CARE,5 CARE SERVICES LTD,29/03/2022,490.49,6541-Domiciliary Care,THIRD PARTY PAYMENTS,PRIVATE CONTRACTOR,REVENUE
Walsall Council,http://opendatacommunities.org/id/metropolitan-district-council/walsall ,WC136-122,31.03.2022,ADULT SOCIAL CARE,5 CARE SERVICES LTD,29/03/2022,934.20,6541-Domiciliary Care,THIRD PARTY PAYMENTS,PRIVATE CONTRACTOR,REVENUE
Walsall Council,http://opendatacommunities.org/id/metropolitan-district-council/walsall ,WC136-123,31.03.2022,ADULT SOCIAL CARE,5 CARE SERVICES LTD,29/03/2022,327.04,6541-Domiciliary Care,THIRD PARTY PAYMENTS,PRIVATE CONTRACTOR,REVENUE
Walsall Council,http://opendatacommunities.org/id/metropolitan-district-council/walsall ,WC136-124,31.03.2022,ADULT SOCIAL CARE,5 CARE SERVICES LTD,29/03/2022,654.01,6541-Domiciliary Care,THIRD PARTY PAYMENTS,PRIVATE CONTRACTOR,REVENUE
Walsall Council,http://opendatacommunities.org/id/metropolitan-district-council/walsall ,WC136-125,31.03.2022,ADULT SOCIAL CARE,5 CARE SERVICES LTD,29/03/2022,326.97,6541-Domiciliary Care,THIRD PARTY PAYMENTS,PRIVATE CONTRACTOR,REVENUE
Walsall Council,http://opendatacommunities.org/id/metropolitan-district-council/walsall ,WC136-126,31.03.2022,ADULT SOCIAL CARE,5 CARE SERVICES LTD,29/03/2022,-428.20,6541-Domiciliary Care,THIRD PARTY PAYMENTS,PRIVATE CONTRACTOR,REVENUE
Walsall Council,http://opendatacommunities.org/id/metropolitan-district-council/walsall ,WC136-127,31.03.2022,ADULT SOCIAL CARE,5 CARE SERVICES LTD,29/03/2022,705.84,6541-Domiciliary Care,THIRD PARTY PAYMENTS,PRIVATE CONTRACTOR,REVENUE
Walsall Council,http://opendatacommunities.org/id/metropolitan-district-council/walsall ,WC136-128,31.03.2022,ADULT SOCIAL CARE,5 CARE SERVICES LTD,29/03/2022,482.74,6541-Domiciliary Care,THIRD PARTY PAYMENTS,PRIVATE CONTRACTOR,REVENUE
Walsall Council,http://opendatacommunities.org/id/metropolitan-district-council/walsall ,WC136-129,31.03.2022,ADULT SOCIAL CARE,5 CARE SERVICES LTD,29/03/2022,"1,121.28",6541-Domiciliary Care,THIRD PARTY PAYMENTS,PRIVATE CONTRACTOR,REVENUE
Walsall Council,http://opendatacommunities.org/id/metropolitan-district-council/walsall ,WC136-130,31.03.2022,ADULT SOCIAL CARE,5 CARE SERVICES LTD,29/03/2022,"-1,168.00",6541-Domiciliary Care,THIRD PARTY PAYMENTS,PRIVATE CONTRACTOR,REVENUE
Walsall Council,http://opendatacommunities.org/id/metropolitan-district-council/walsall ,WC136-131,31.03.2022,ADULT SOCIAL CARE,5 CARE SERVICES LTD,29/03/2022,420.39,6541-Domiciliary Care,THIRD PARTY PAYMENTS,PRIVATE CONTRACTOR,REVENUE
Walsall Council,http://opendatacommunities.org/id/metropolitan-district-council/walsall ,WC136-132,31.03.2022,ADULT SOCIAL CARE,5 CARE SERVICES LTD,29/03/2022,268.68,6541-Domiciliary Care,THIRD PARTY PAYMENTS,PRIVATE CONTRACTOR,REVENUE
Walsall Council,http://opendatacommunities.org/id/metropolitan-district-council/walsall ,WC136-133,31.03.2022,ADULT SOCIAL CARE,5 CARE SERVICES LTD,29/03/2022,724.06,6541-Domiciliary Care,THIRD PARTY PAYMENTS,PRIVATE CONTRACTOR,REVENUE
Walsall Council,http://opendatacommunities.org/id/metropolitan-district-council/walsall ,WC136-134,31.03.2022,ADULT SOCIAL CARE,5 CARE SERVICES LTD,29/03/2022,654.01,6541-Domiciliary Care,THIRD PARTY PAYMENTS,PRIVATE CONTRACTOR,REVENUE
Walsall Council,http://opendatacommunities.org/id/metropolitan-district-council/walsall ,WC136-135,31.03.2022,ADULT SOCIAL CARE,5 CARE SERVICES LTD,29/03/2022,326.97,6541-Domiciliary Care,THIRD PARTY PAYMENTS,PRIVATE CONTRACTOR,REVENUE
Walsall Council,http://opendatacommunities.org/id/metropolitan-district-council/walsall ,WC136-136,31.03.2022,ADULT SOCIAL CARE,5 CARE SERVICES LTD,29/03/2022,635.81,6541-Domiciliary Care,THIRD PARTY PAYMENTS,PRIVATE CONTRACTOR,REVENUE
Walsall Council,http://opendatacommunities.org/id/metropolitan-district-council/walsall ,WC136-137,31.03.2022,ADULT SOCIAL CARE,5 CARE SERVICES LTD,29/03/2022,"1,198.89",6541-Domiciliary Care,THIRD PARTY PAYMENTS,PRIVATE CONTRACTOR,REVENUE
Walsall Council,http://opendatacommunities.org/id/metropolitan-district-council/walsall ,WC136-138,31.03.2022,ADULT SOCIAL CARE,5 CARE SERVICES LTD,29/03/2022,560.52,6541-Domiciliary Care,THIRD PARTY PAYMENTS,PRIVATE CONTRACTOR,REVENUE
Walsall Council,http://opendatacommunities.org/id/metropolitan-district-council/walsall ,WC136-139,31.03.2022,ADULT SOCIAL CARE,5 CARE SERVICES LTD,29/03/2022,490.49,6541-Domiciliary Care,THIRD PARTY PAYMENTS,PRIVATE CONTRACTOR,REVENUE
Walsall Council,http://opendatacommunities.org/id/metropolitan-district-council/walsall ,WC136-140,31.03.2022,ADULT SOCIAL CARE,5 CARE SERVICES LTD,29/03/2022,490.49,6541-Domiciliary Care,THIRD PARTY PAYMENTS,PRIVATE CONTRACTOR,REVENUE
Walsall Council,http://opendatacommunities.org/id/metropolitan-district-council/walsall ,WC136-141,31.03.2022,ADULT SOCIAL CARE,5 CARE SERVICES LTD,29/03/2022,420.39,6541-Domiciliary Care,THIRD PARTY PAYMENTS,PRIVATE CONTRACTOR,REVENUE
Walsall Council,http://opendatacommunities.org/id/metropolitan-district-council/walsall ,WC136-142,31.03.2022,ADULT SOCIAL CARE,5 CARE SERVICES LTD,29/03/2022,490.49,6541-Domiciliary Care,THIRD PARTY PAYMENTS,PRIVATE CONTRACTOR,REVENUE
Walsall Council,http://opendatacommunities.org/id/metropolitan-district-council/walsall ,WC136-143,31.03.2022,ADULT SOCIAL CARE,5 CARE SERVICES LTD,29/03/2022,871.92,6541-Domiciliary Care,THIRD PARTY PAYMENTS,PRIVATE CONTRACTOR,REVENUE
Walsall Council,http://opendatacommunities.org/id/metropolitan-district-council/walsall ,WC136-144,31.03.2022,ADULT SOCIAL CARE,5 CARE SERVICES LTD,29/03/2022,482.74,6541-Domiciliary Care,THIRD PARTY PAYMENTS,PRIVATE CONTRACTOR,REVENUE
Walsall Council,http://opendatacommunities.org/id/metropolitan-district-council/walsall ,WC136-145,31.03.2022,ADULT SOCIAL CARE,5 CARE SERVICES LTD,29/03/2022,292.06,6541-Domiciliary Care,THIRD PARTY PAYMENTS,PRIVATE CONTRACTOR,REVENUE
Walsall Council,http://opendatacommunities.org/id/metropolitan-district-council/walsall ,WC136-146,31.03.2022,ADULT SOCIAL CARE,5 CARE SERVICES LTD,29/03/2022,"1,307.88",6541-Domiciliary Care,THIRD PARTY PAYMENTS,PRIVATE CONTRACTOR,REVENUE
Walsall Council,http://opendatacommunities.org/id/metropolitan-district-council/walsall ,WC136-147,31.03.2022,ADULT SOCIAL CARE,5 CARE SERVICES LTD,29/03/2022,327.04,6541-Domiciliary Care,THIRD PARTY PAYMENTS,PRIVATE CONTRACTOR,REVENUE
Walsall Council,http://opendatacommunities.org/id/metropolitan-district-council/walsall ,WC136-148,31.03.2022,ADULT SOCIAL CARE,5 CARE SERVICES LTD,29/03/2022,638.37,6541-Domiciliary Care,THIRD PARTY PAYMENTS,PRIVATE CONTRACTOR,REVENUE
Walsall Council,http://opendatacommunities.org/id/metropolitan-district-council/walsall ,WC136-149,31.03.2022,ADULT SOCIAL CARE,5 CARE SERVICES LTD,29/03/2022,311.40,6541-Domiciliary Care,THIRD PARTY PAYMENTS,PRIVATE CONTRACTOR,REVENUE
Walsall Council,http://opendatacommunities.org/id/metropolitan-district-council/walsall ,WC136-150,31.03.2022,ADULT SOCIAL CARE,5 CARE SERVICES LTD,29/03/2022,326.97,6541-Domiciliary Care,THIRD PARTY PAYMENTS,PRIVATE CONTRACTOR,REVENUE
Walsall Council,http://opendatacommunities.org/id/metropolitan-district-council/walsall ,WC136-151,31.03.2022,ADULT SOCIAL CARE,5 CARE SERVICES LTD,29/03/2022,490.49,6541-Domiciliary Care,THIRD PARTY PAYMENTS,PRIVATE CONTRACTOR,REVENUE
Walsall Council,http://opendatacommunities.org/id/metropolitan-district-council/walsall ,WC136-152,31.03.2022,ADULT SOCIAL CARE,5 CARE SERVICES LTD,16/03/2022,"6,283.46",6550-COVID-19 Local Support Grant Exp,TRANSFER PAYMENTS,COVID TRANSFER PAYMENT,REVENUE
Walsall Council,http://opendatacommunities.org/id/metropolitan-district-council/walsall ,WC136-153,31.03.2022,ADULT SOCIAL CARE,5 CARE SERVICES LTD,16/03/2022,"1,324.64",6550-National Tutoring Exp,TRANSFER PAYMENTS,COVID TRANSFER PAYMENT,REVENUE
Walsall Council,http://opendatacommunities.org/id/metropolitan-district-council/walsall ,WC136-154,31.03.2022,ADULT SOCIAL CARE,5 CARE SERVICES LTD,22/03/2022,"65,266.64",6540-Professional Services-Priv Contractor & Other Agencies,THIRD PARTY PAYMENTS,PRIVATE CONTRACTOR,REVENUE
Walsall Council,http://opendatacommunities.org/id/metropolitan-district-council/walsall ,WC136-155,31.03.2022,ADULT SOCIAL CARE,5 CARE SERVICES LTD,17/03/2022,"14,325.73",6540-Professional Services-Priv Contractor & Other Agencies,THIRD PARTY PAYMENTS,PRIVATE CONTRACTOR,REVENUE
Walsall Council,http://opendatacommunities.org/id/metropolitan-district-council/walsall ,WC136-156,31.03.2022,"ECONOMY, ENVIRONMENT & COMMUNITIES",58TH WALSALL (AL HUDA) SCOUT GROUP,21/03/2022,571.40,6430-Professional Services-Priv Contractor & Other Agencies,THIRD PARTY PAYMENTS,PRIVATE CONTRACTOR,REVENUE
Walsall Council,http://opendatacommunities.org/id/metropolitan-district-council/walsall ,WC136-157,31.03.2022,CHILDRENS,A D T FIRE AND SECURITY PLC,16/03/2022,966.12,6223-Operational Maintenance,PREMISES,REPAIRS & MAINTENANCE,REVENUE
Walsall Council,http://opendatacommunities.org/id/metropolitan-district-council/walsall ,WC136-158,31.03.2022,ADULT SOCIAL CARE,A F BLAKEMORE & SON LTD,02/03/2022,338.53,6543-Food & Drink Supplies,SUPPLIES & SERVICES,CATERING,REVENUE
Walsall Council,http://opendatacommunities.org/id/metropolitan-district-council/walsall ,WC136-159,31.03.2022,"ECONOMY, ENVIRONMENT & COMMUNITIES",A F BLAKEMORE & SON LTD,11/03/2022,255.41,6413-Food & Drink Supplies,SUPPLIES & SERVICES,CATERING,REVENUE
Walsall Council,http://opendatacommunities.org/id/metropolitan-district-council/walsall ,WC136-160,31.03.2022,"ECONOMY, ENVIRONMENT & COMMUNITIES",A F BLAKEMORE & SON LTD,11/03/2022,365.97,6413-Food & Drink Supplies,SUPPLIES & SERVICES,CATERING,REVENUE
Walsall Council,http://opendatacommunities.org/id/metropolitan-district-council/walsall ,WC136-161,31.03.2022,"ECONOMY, ENVIRONMENT & COMMUNITIES",A F BLAKEMORE & SON LTD,16/03/2022,455.00,6413-Food & Drink Supplies,SUPPLIES & SERVICES,CATERING,REVENUE
Walsall Council,http://opendatacommunities.org/id/metropolitan-district-council/walsall ,WC136-162,31.03.2022,ADULT SOCIAL CARE,A1 RISK SOLUTIONS LTD,08/03/2022,"6,095.00",6540-External Training,INDIRECT EMPLOYEES,EXTERNAL TRAINING,REVENUE
Walsall Council,http://opendatacommunities.org/id/metropolitan-district-council/walsall ,WC136-163,31.03.2022,ADULT SOCIAL CARE,A1 RISK SOLUTIONS LTD,08/03/2022,"6,095.00",6540-External Training,INDIRECT EMPLOYEES,EXTERNAL TRAINING,REVENUE
Walsall Council,http://opendatacommunities.org/id/metropolitan-district-council/walsall ,WC136-164,31.03.2022,ADULT SOCIAL CARE,A1 RISK SOLUTIONS LTD,08/03/2022,"6,095.00",6540-External Training,INDIRECT EMPLOYEES,EXTERNAL TRAINING,REVENUE
Walsall Council,http://opendatacommunities.org/id/metropolitan-district-council/walsall ,WC136-165,31.03.2022,ADULT SOCIAL CARE,A1 RISK SOLUTIONS LTD,08/03/2022,"6,095.00",6540-External Training,INDIRECT EMPLOYEES,EXTERNAL TRAINING,REVENUE
Walsall Council,http://opendatacommunities.org/id/metropolitan-district-council/walsall ,WC136-166,31.03.2022,ADULT SOCIAL CARE,A1 RISK SOLUTIONS LTD,08/03/2022,"6,095.00",6540-External Training,INDIRECT EMPLOYEES,EXTERNAL TRAINING,REVENUE
Walsall Council,http://opendatacommunities.org/id/metropolitan-district-council/walsall ,WC136-167,31.03.2022,ADULT SOCIAL CARE,A1 RISK SOLUTIONS LTD,08/03/2022,"6,095.00",6540-External Training,INDIRECT EMPLOYEES,EXTERNAL TRAINING,REVENUE
Walsall Council,http://opendatacommunities.org/id/metropolitan-district-council/walsall ,WC136-168,31.03.2022,ADULT SOCIAL CARE,A1 RISK SOLUTIONS LTD,08/03/2022,"6,095.00",6540-External Training,INDIRECT EMPLOYEES,EXTERNAL TRAINING,REVENUE
Walsall Council,http://opendatacommunities.org/id/metropolitan-district-council/walsall ,WC136-169,31.03.2022,ADULT SOCIAL CARE,A1 RISK SOLUTIONS LTD,08/03/2022,"6,095.00",6540-External Training,INDIRECT EMPLOYEES,EXTERNAL TRAINING,REVENUE
Walsall Council,http://opendatacommunities.org/id/metropolitan-district-council/walsall ,WC136-170,31.03.2022,ADULT SOCIAL CARE,A1 RISK SOLUTIONS LTD,08/03/2022,"6,095.00",6540-External Training,INDIRECT EMPLOYEES,EXTERNAL TRAINING,REVENUE
Walsall Council,http://opendatacommunities.org/id/metropolitan-district-council/walsall ,WC136-171,31.03.2022,ADULT SOCIAL CARE,A1 RISK SOLUTIONS LTD,08/03/2022,"6,095.00",6540-External Training,INDIRECT EMPLOYEES,EXTERNAL TRAINING,REVENUE
Walsall Council,http://opendatacommunities.org/id/metropolitan-district-council/walsall ,WC136-172,31.03.2022,CHILDRENS,A1 WALSALL RADIO CARS,28/03/2022,660.00,6241-Hire of Vehicle with Driver,TRANSPORT,DIRECT TRANSPORT COSTS,REVENUE
Walsall Council,http://opendatacommunities.org/id/metropolitan-district-council/walsall ,WC136-173,31.03.2022,CHILDRENS,A1 WALSALL RADIO CARS,28/03/2022,290.00,6241-Hire of Vehicle with Driver,TRANSPORT,DIRECT TRANSPORT COSTS,REVENUE
Walsall Council,http://opendatacommunities.org/id/metropolitan-district-council/walsall ,WC136-174,31.03.2022,CHILDRENS,AAINA COMMUNITY HUB,21/03/2022,"10,000.00",6314-Grants to Other Orgs,SUPPLIES & SERVICES,GRANTS (EXP) & SUBSCRIPTIONS,REVENUE
Walsall Council,http://opendatacommunities.org/id/metropolitan-district-council/walsall ,WC136-175,31.03.2022,CHILDRENS,AAINA COMMUNITY HUB,31/03/2022,"2,500.00",6314-Grants to Other Orgs,SUPPLIES & SERVICES,GRANTS (EXP) & SUBSCRIPTIONS,REVENUE
Walsall Council,http://opendatacommunities.org/id/metropolitan-district-council/walsall ,WC136-176,31.03.2022,CHILDRENS,AAINA COMMUNITY HUB,31/03/2022,400.00,6314-Grants to Other Orgs,SUPPLIES & SERVICES,GRANTS (EXP) & SUBSCRIPTIONS,REVENUE
Walsall Council,http://opendatacommunities.org/id/metropolitan-district-council/walsall ,WC136-177,31.03.2022,CHILDRENS,AAINA COMMUNITY HUB,24/03/2022,"1,747.20",6213-Professional Fees & Services,SUPPLIES & SERVICES,SERVICES,REVENUE
Walsall Council,http://opendatacommunities.org/id/metropolitan-district-council/walsall ,WC136-178,31.03.2022,ADULT SOCIAL CARE,ABBEY COURT NURSING & RESIDEN,15/03/2022,"2,331.08",6541-Residential EMI,THIRD PARTY PAYMENTS,PRIVATE CONTRACTOR,REVENUE
Walsall Council,http://opendatacommunities.org/id/metropolitan-district-council/walsall ,WC136-179,31.03.2022,ADULT SOCIAL CARE,ABBEY COURT NURSING & RESIDEN,15/03/2022,"2,571.08",6541-Residential EMI,THIRD PARTY PAYMENTS,PRIVATE CONTRACTOR,REVENUE
Walsall Council,http://opendatacommunities.org/id/metropolitan-district-council/walsall ,WC136-180,31.03.2022,ADULT SOCIAL CARE,ABBEY COURT NURSING & RESIDEN,15/03/2022,"2,064.44",6541-Residential,THIRD PARTY PAYMENTS,PRIVATE CONTRACTOR,REVENUE
Walsall Council,http://opendatacommunities.org/id/metropolitan-district-council/walsall ,WC136-181,31.03.2022,ADULT SOCIAL CARE,ABBEY HEALTHCARE HOMES LTD,15/03/2022,"3,133.76",6541-Residential,THIRD PARTY PAYMENTS,PRIVATE CONTRACTOR,REVENUE
Walsall Council,http://opendatacommunities.org/id/metropolitan-district-council/walsall ,WC136-182,31.03.2022,ADULT SOCIAL CARE,ABBEY HEALTHCARE HOMES LTD,15/03/2022,"2,396.36",6541-Residential,THIRD PARTY PAYMENTS,PRIVATE CONTRACTOR,REVENUE
Walsall Council,http://opendatacommunities.org/id/metropolitan-district-council/walsall ,WC136-183,31.03.2022,ADULT SOCIAL CARE,ABBEY HEALTHCARE HOMES LTD,15/03/2022,"3,133.76",6541-Residential,THIRD PARTY PAYMENTS,PRIVATE CONTRACTOR,REVENUE
Walsall Council,http://opendatacommunities.org/id/metropolitan-district-council/walsall ,WC136-184,31.03.2022,ADULT SOCIAL CARE,ABBEY HEALTHCARE HOMES LTD,15/03/2022,"3,551.56",6541-Residential,THIRD PARTY PAYMENTS,PRIVATE CONTRACTOR,REVENUE
Walsall Council,http://opendatacommunities.org/id/metropolitan-district-council/walsall ,WC136-185,31.03.2022,CHILDRENS,ABBOTT TOXICOLOGY LTD - FORMERLY ALERE TOXICOLOGY PLC,02/03/2022,"2,675.00",6223-Materials,SUPPLIES & SERVICES,EQUIPMENT FURNITURE & MATERIALS,REVENUE
Walsall Council,http://opendatacommunities.org/id/metropolitan-district-council/walsall ,WC136-186,31.03.2022,"ECONOMY, ENVIRONMENT & COMMUNITIES",ABEL ALARM CO LTD,29/03/2022,251.00,6413-Repair & Maintenance of Furniture & Equipment,SUPPLIES & SERVICES,EQUIPMENT FURNITURE & MATERIALS,REVENUE
Walsall Council,http://opendatacommunities.org/id/metropolitan-district-council/walsall ,WC136-187,31.03.2022,ADULT SOCIAL CARE,REDACTED,10/03/2022,"2,665.60",6541-Direct Payment,THIRD PARTY PAYMENTS,PRIVATE CONTRACTOR,REVENUE
Walsall Council,http://opendatacommunities.org/id/metropolitan-district-council/walsall ,WC136-188,31.03.2022,ADULT SOCIAL CARE,ABILITY HEALTHCARE LTD,09/03/2022,607.42,6541-Domiciliary Care,THIRD PARTY PAYMENTS,PRIVATE CONTRACTOR,REVENUE
Walsall Council,http://opendatacommunities.org/id/metropolitan-district-council/walsall ,WC136-189,31.03.2022,ADULT SOCIAL CARE,ABILITY HEALTHCARE LTD,09/03/2022,732.11,6541-Domiciliary Care,THIRD PARTY PAYMENTS,PRIVATE CONTRACTOR,REVENUE
Walsall Council,http://opendatacommunities.org/id/metropolitan-district-council/walsall ,WC136-190,31.03.2022,ADULT SOCIAL CARE,ABILITY HEALTHCARE LTD,09/03/2022,810.16,6541-Domiciliary Care,THIRD PARTY PAYMENTS,PRIVATE CONTRACTOR,REVENUE
Walsall Council,http://opendatacommunities.org/id/metropolitan-district-council/walsall ,WC136-191,31.03.2022,ADULT SOCIAL CARE,ABILITY HEALTHCARE LTD,09/03/2022,506.35,6541-Domiciliary Care,THIRD PARTY PAYMENTS,PRIVATE CONTRACTOR,REVENUE
Walsall Council,http://opendatacommunities.org/id/metropolitan-district-council/walsall ,WC136-192,31.03.2022,ADULT SOCIAL CARE,ABILITY HEALTHCARE LTD,30/03/2022,490.77,6541-Domiciliary Care,THIRD PARTY PAYMENTS,PRIVATE CONTRACTOR,REVENUE
Walsall Council,http://opendatacommunities.org/id/metropolitan-district-council/walsall ,WC136-193,31.03.2022,ADULT SOCIAL CARE,ABILITY HEALTHCARE LTD,09/03/2022,802.20,6541-Domiciliary Care,THIRD PARTY PAYMENTS,PRIVATE CONTRACTOR,REVENUE
Walsall Council,http://opendatacommunities.org/id/metropolitan-district-council/walsall ,WC136-194,31.03.2022,ADULT SOCIAL CARE,ABILITY HEALTHCARE LTD,30/03/2022,810.16,6541-Domiciliary Care,THIRD PARTY PAYMENTS,PRIVATE CONTRACTOR,REVENUE
Walsall Council,http://opendatacommunities.org/id/metropolitan-district-council/walsall ,WC136-195,31.03.2022,ADULT SOCIAL CARE,ABILITY HEALTHCARE LTD,30/03/2022,506.16,6541-Domiciliary Care,THIRD PARTY PAYMENTS,PRIVATE CONTRACTOR,REVENUE
Walsall Council,http://opendatacommunities.org/id/metropolitan-district-council/walsall ,WC136-196,31.03.2022,"ECONOMY, ENVIRONMENT & COMMUNITIES",ABLE INVESTIGATIONS & ENFORCEMENTS LTD,30/03/2022,"1,970.00",6440-Professional Fees & Services,SUPPLIES & SERVICES,SERVICES,REVENUE
Walsall Council,http://opendatacommunities.org/id/metropolitan-district-council/walsall ,WC136-197,31.03.2022,CHILDRENS,ABLEWELL ADVICE SERVICES,31/03/2022,"5,000.00",6314-Grants to Other Orgs,SUPPLIES & SERVICES,GRANTS (EXP) & SUBSCRIPTIONS,REVENUE
Walsall Council,http://opendatacommunities.org/id/metropolitan-district-council/walsall ,WC136-198,31.03.2022,CHILDRENS,ABLEWELL CARS,01/03/2022,"1,664.00",6241-Hire of Vehicle with Driver,TRANSPORT,DIRECT TRANSPORT COSTS,REVENUE
Walsall Council,http://opendatacommunities.org/id/metropolitan-district-council/walsall ,WC136-199,31.03.2022,CHILDRENS,ABLEWELL CARS,01/03/2022,"1,976.00",6241-Hire of Vehicle with Driver,TRANSPORT,DIRECT TRANSPORT COSTS,REVENUE
Walsall Council,http://opendatacommunities.org/id/metropolitan-district-council/walsall ,WC136-200,31.03.2022,CHILDRENS,ABLEWELL CARS,01/03/2022,"2,920.00",6241-Hire of Vehicle with Driver,TRANSPORT,DIRECT TRANSPORT COSTS,REVENUE
Walsall Council,http://opendatacommunities.org/id/metropolitan-district-council/walsall ,WC136-201,31.03.2022,CHILDRENS,ABLEWELL CARS,01/03/2022,900.00,6241-Hire of Vehicle with Driver,TRANSPORT,DIRECT TRANSPORT COSTS,REVENUE
Walsall Council,http://opendatacommunities.org/id/metropolitan-district-council/walsall ,WC136-202,31.03.2022,CHILDRENS,ABLEWELL CARS,01/03/2022,"1,144.80",6241-Hire of Vehicle with Driver,TRANSPORT,DIRECT TRANSPORT COSTS,REVENUE
Walsall Council,http://opendatacommunities.org/id/metropolitan-district-council/walsall ,WC136-203,31.03.2022,CHILDRENS,ABLEWELL CARS,01/03/2022,"1,323.60",6241-Hire of Vehicle with Driver,TRANSPORT,DIRECT TRANSPORT COSTS,REVENUE
Walsall Council,http://opendatacommunities.org/id/metropolitan-district-council/walsall ,WC136-204,31.03.2022,CHILDRENS,ABLEWELL CARS,28/03/2022,"1,383.20",6241-Hire of Vehicle with Driver,TRANSPORT,DIRECT TRANSPORT COSTS,REVENUE
Walsall Council,http://opendatacommunities.org/id/metropolitan-district-council/walsall ,WC136-205,31.03.2022,CHILDRENS,ABLEWELL CARS,28/03/2022,"2,190.00",6241-Hire of Vehicle with Driver,TRANSPORT,DIRECT TRANSPORT COSTS,REVENUE
Walsall Council,http://opendatacommunities.org/id/metropolitan-district-council/walsall ,WC136-206,31.03.2022,CHILDRENS,ABLEWELL CARS,28/03/2022,992.70,6241-Hire of Vehicle with Driver,TRANSPORT,DIRECT TRANSPORT COSTS,REVENUE
Walsall Council,http://opendatacommunities.org/id/metropolitan-district-council/walsall ,WC136-207,31.03.2022,CHILDRENS,ABLEWELL CARS,28/03/2022,858.60,6241-Hire of Vehicle with Driver,TRANSPORT,DIRECT TRANSPORT COSTS,REVENUE
Walsall Council,http://opendatacommunities.org/id/metropolitan-district-council/walsall ,WC136-208,31.03.2022,CHILDRENS,ABLEWELL CARS,28/03/2022,675.00,6241-Hire of Vehicle with Driver,TRANSPORT,DIRECT TRANSPORT COSTS,REVENUE
Walsall Council,http://opendatacommunities.org/id/metropolitan-district-council/walsall ,WC136-209,31.03.2022,CHILDRENS,ABLEWELL CARS,28/03/2022,"1,248.00",6241-Hire of Vehicle with Driver,TRANSPORT,DIRECT TRANSPORT COSTS,REVENUE
Walsall Council,http://opendatacommunities.org/id/metropolitan-district-council/walsall ,WC136-210,31.03.2022,CHILDRENS,ABS TAXIS (ALDRIDGE),01/03/2022,"1,814.00",6241-Hire of Vehicle with Driver,TRANSPORT,DIRECT TRANSPORT COSTS,REVENUE
Walsall Council,http://opendatacommunities.org/id/metropolitan-district-council/walsall ,WC136-211,31.03.2022,CHILDRENS,ABS TAXIS (ALDRIDGE),01/03/2022,"1,676.00",6241-Hire of Vehicle with Driver,TRANSPORT,DIRECT TRANSPORT COSTS,REVENUE
Walsall Council,http://opendatacommunities.org/id/metropolitan-district-council/walsall ,WC136-212,31.03.2022,CHILDRENS,ABS TAXIS (ALDRIDGE),01/03/2022,"1,974.00",6241-Hire of Vehicle with Driver,TRANSPORT,DIRECT TRANSPORT COSTS,REVENUE
Walsall Council,http://opendatacommunities.org/id/metropolitan-district-council/walsall ,WC136-213,31.03.2022,CHILDRENS,ABS TAXIS (ALDRIDGE),28/03/2022,"1,360.50",6241-Hire of Vehicle with Driver,TRANSPORT,DIRECT TRANSPORT COSTS,REVENUE
Walsall Council,http://opendatacommunities.org/id/metropolitan-district-council/walsall ,WC136-214,31.03.2022,CHILDRENS,ABS TAXIS (ALDRIDGE),28/03/2022,"1,480.50",6241-Hire of Vehicle with Driver,TRANSPORT,DIRECT TRANSPORT COSTS,REVENUE
Walsall Council,http://opendatacommunities.org/id/metropolitan-district-council/walsall ,WC136-215,31.03.2022,CHILDRENS,ABS TAXIS (ALDRIDGE),28/03/2022,"1,257.00",6241-Hire of Vehicle with Driver,TRANSPORT,DIRECT TRANSPORT COSTS,REVENUE
Walsall Council,http://opendatacommunities.org/id/metropolitan-district-council/walsall ,WC136-216,31.03.2022,CHILDRENS CAPITAL,AC GLAZING LTD,11/03/2022,"9,894.00",7155-Site Works Contractors,CAPITAL,"NEW CONSTRUCTION,CONVERSION & RENOVATION",CAPITAL
Walsall Council,http://opendatacommunities.org/id/metropolitan-district-council/walsall ,WC136-217,31.03.2022,"ECONOMY, ENVIRONMENT & COMMUNITIES",AC OPTICS LTD,03/03/2022,996.82,6313-Grants to Other Orgs,SUPPLIES & SERVICES,GRANTS (EXP) & SUBSCRIPTIONS,REVENUE
Walsall Council,http://opendatacommunities.org/id/metropolitan-district-council/walsall ,WC136-218,31.03.2022,"ECONOMY, ENVIRONMENT & COMMUNITIES",AC OPTICS LTD,30/03/2022,996.82,6313-Grants to Other Orgs,SUPPLIES & SERVICES,GRANTS (EXP) & SUBSCRIPTIONS,REVENUE
Walsall Council,http://opendatacommunities.org/id/metropolitan-district-council/walsall ,WC136-219,31.03.2022,"ECONOMY, ENVIRONMENT & COMMUNITIES",AC OPTICS LTD,09/03/2022,710.64,6313-Grants to Other Orgs,SUPPLIES & SERVICES,GRANTS (EXP) & SUBSCRIPTIONS,REVENUE
Walsall Council,http://opendatacommunities.org/id/metropolitan-district-council/walsall ,WC136-220,31.03.2022,CHILDRENS,ACCALIA CARE SERVICES LTD,21/03/2022,"20,000.00",6223-External Residential Care-Oth Agency Provision,THIRD PARTY PAYMENTS,PRIVATE CONTRACTOR,REVENUE
Walsall Council,http://opendatacommunities.org/id/metropolitan-district-council/walsall ,WC136-221,31.03.2022,CHILDRENS,ACCEPTING BEHAVIOUR - AARON YORKE,09/03/2022,520.00,1220-Professional Fees & Services,SUPPLIES & SERVICES,SERVICES,REVENUE
Walsall Council,http://opendatacommunities.org/id/metropolitan-district-council/walsall ,WC136-222,31.03.2022,ADULT SOCIAL CARE,ACCESS UK LTD ,24/03/2022,"18,315.00",6551-Repair & Maintenance of Furniture & Equipment,SUPPLIES & SERVICES,EQUIPMENT FURNITURE & MATERIALS,REVENUE
Walsall Council,http://opendatacommunities.org/id/metropolitan-district-council/walsall ,WC136-223,31.03.2022,ADULT SOCIAL CARE,ACCOMPLISH GROUP LTD,15/03/2022,"7,881.48",6541-Residential,THIRD PARTY PAYMENTS,PRIVATE CONTRACTOR,REVENUE
Walsall Council,http://opendatacommunities.org/id/metropolitan-district-council/walsall ,WC136-224,31.03.2022,ADULT SOCIAL CARE,ACCORD HOUSING ASSOCIATION LIMITED - HOBS MEADOW,15/03/2022,"4,706.24",6541-Residential,THIRD PARTY PAYMENTS,PRIVATE CONTRACTOR,REVENUE
Walsall Council,http://opendatacommunities.org/id/metropolitan-district-council/walsall ,WC136-225,31.03.2022,ADULT SOCIAL CARE,ACCORD HOUSING ASSOCIATION LIMITED - HOBS MEADOW,15/03/2022,"4,706.24",6541-Residential,THIRD PARTY PAYMENTS,PRIVATE CONTRACTOR,REVENUE
Walsall Council,http://opendatacommunities.org/id/metropolitan-district-council/walsall ,WC136-226,31.03.2022,ADULT SOCIAL CARE,ACCORD HOUSING ASSOCIATION LIMITED - HOBS MEADOW,15/03/2022,"4,706.24",6541-Residential,THIRD PARTY PAYMENTS,PRIVATE CONTRACTOR,REVENUE
Walsall Council,http://opendatacommunities.org/id/metropolitan-district-council/walsall ,WC136-227,31.03.2022,ADULT SOCIAL CARE,ACCORD HOUSING ASSOCIATION LIMITED - HOBS MEADOW,15/03/2022,"4,706.24",6541-Residential,THIRD PARTY PAYMENTS,PRIVATE CONTRACTOR,REVENUE
Walsall Council,http://opendatacommunities.org/id/metropolitan-district-council/walsall ,WC136-228,31.03.2022,ADULT SOCIAL CARE,ACE CARE AGENCY,16/03/2022,311.80,6550-COVID-19 Household Support Grant Exp,TRANSFER PAYMENTS,COVID TRANSFER PAYMENT,REVENUE
Walsall Council,http://opendatacommunities.org/id/metropolitan-district-council/walsall ,WC136-229,31.03.2022,ADULT SOCIAL CARE,ACE CARE AGENCY,16/03/2022,369.52,6550-COVID-19 Local Support Grant Exp,TRANSFER PAYMENTS,COVID TRANSFER PAYMENT,REVENUE
Walsall Council,http://opendatacommunities.org/id/metropolitan-district-council/walsall ,WC136-230,31.03.2022,ADULT SOCIAL CARE,ACE CARE AGENCY,22/03/2022,"5,675.36",6540-Professional Services-Priv Contractor & Other Agencies,THIRD PARTY PAYMENTS,PRIVATE CONTRACTOR,REVENUE
Walsall Council,http://opendatacommunities.org/id/metropolitan-district-council/walsall ,WC136-231,31.03.2022,ADULT SOCIAL CARE,ACE CARE AGENCY,17/03/2022,"1,222.93",6540-Professional Services-Priv Contractor & Other Agencies,THIRD PARTY PAYMENTS,PRIVATE CONTRACTOR,REVENUE
Walsall Council,http://opendatacommunities.org/id/metropolitan-district-council/walsall ,WC136-232,31.03.2022,CHILDRENS,ACE CARS & MINIBUSES LTD,01/03/2022,"2,140.00",6241-Hire of Vehicle with Driver,TRANSPORT,DIRECT TRANSPORT COSTS,REVENUE
Walsall Council,http://opendatacommunities.org/id/metropolitan-district-council/walsall ,WC136-233,31.03.2022,CHILDRENS,ACE CARS & MINIBUSES LTD,01/03/2022,"2,140.00",6241-Hire of Vehicle with Driver,TRANSPORT,DIRECT TRANSPORT COSTS,REVENUE
Walsall Council,http://opendatacommunities.org/id/metropolitan-district-council/walsall ,WC136-234,31.03.2022,CHILDRENS,ACE CARS & MINIBUSES LTD,01/03/2022,"2,360.00",6241-Hire of Vehicle with Driver,TRANSPORT,DIRECT TRANSPORT COSTS,REVENUE
Walsall Council,http://opendatacommunities.org/id/metropolitan-district-council/walsall ,WC136-235,31.03.2022,CHILDRENS,ACE CARS & MINIBUSES LTD,01/03/2022,"2,390.00",6241-Hire of Vehicle with Driver,TRANSPORT,DIRECT TRANSPORT COSTS,REVENUE
Walsall Council,http://opendatacommunities.org/id/metropolitan-district-council/walsall ,WC136-236,31.03.2022,CHILDRENS,ACE CARS & MINIBUSES LTD,01/03/2022,"2,722.00",6241-Hire of Vehicle with Driver,TRANSPORT,DIRECT TRANSPORT COSTS,REVENUE
Walsall Council,http://opendatacommunities.org/id/metropolitan-district-council/walsall ,WC136-237,31.03.2022,CHILDRENS,ACE CARS & MINIBUSES LTD,01/03/2022,"2,722.00",6241-Hire of Vehicle with Driver,TRANSPORT,DIRECT TRANSPORT COSTS,REVENUE
Walsall Council,http://opendatacommunities.org/id/metropolitan-district-council/walsall ,WC136-238,31.03.2022,CHILDRENS,ACE CARS & MINIBUSES LTD,01/03/2022,"2,722.00",6241-Hire of Vehicle with Driver,TRANSPORT,DIRECT TRANSPORT COSTS,REVENUE
Walsall Council,http://opendatacommunities.org/id/metropolitan-district-council/walsall ,WC136-239,31.03.2022,CHILDRENS,ACE CARS & MINIBUSES LTD,01/03/2022,"2,722.00",6241-Hire of Vehicle with Driver,TRANSPORT,DIRECT TRANSPORT COSTS,REVENUE
Walsall Council,http://opendatacommunities.org/id/metropolitan-district-council/walsall ,WC136-240,31.03.2022,CHILDRENS,ACE CARS & MINIBUSES LTD,01/03/2022,"2,722.00",6241-Hire of Vehicle with Driver,TRANSPORT,DIRECT TRANSPORT COSTS,REVENUE
Walsall Council,http://opendatacommunities.org/id/metropolitan-district-council/walsall ,WC136-241,31.03.2022,CHILDRENS,ACE CARS & MINIBUSES LTD,01/03/2022,"2,140.00",6241-Hire of Vehicle with Driver,TRANSPORT,DIRECT TRANSPORT COSTS,REVENUE
Walsall Council,http://opendatacommunities.org/id/metropolitan-district-council/walsall ,WC136-242,31.03.2022,CHILDRENS,ACE CARS & MINIBUSES LTD,01/03/2022,"2,140.00",6241-Hire of Vehicle with Driver,TRANSPORT,DIRECT TRANSPORT COSTS,REVENUE
Walsall Council,http://opendatacommunities.org/id/metropolitan-district-council/walsall ,WC136-243,31.03.2022,CHILDRENS,ACE CARS & MINIBUSES LTD,01/03/2022,"2,280.00",6241-Hire of Vehicle with Driver,TRANSPORT,DIRECT TRANSPORT COSTS,REVENUE
Walsall Council,http://opendatacommunities.org/id/metropolitan-district-council/walsall ,WC136-244,31.03.2022,CHILDRENS,ACE CARS & MINIBUSES LTD,01/03/2022,"2,390.00",6241-Hire of Vehicle with Driver,TRANSPORT,DIRECT TRANSPORT COSTS,REVENUE
Walsall Council,http://opendatacommunities.org/id/metropolitan-district-council/walsall ,WC136-245,31.03.2022,CHILDRENS,ACE CARS & MINIBUSES LTD,01/03/2022,"2,280.00",6241-Hire of Vehicle with Driver,TRANSPORT,DIRECT TRANSPORT COSTS,REVENUE
Walsall Council,http://opendatacommunities.org/id/metropolitan-district-council/walsall ,WC136-246,31.03.2022,CHILDRENS,ACE CARS & MINIBUSES LTD,01/03/2022,"2,140.00",6241-Hire of Vehicle with Driver,TRANSPORT,DIRECT TRANSPORT COSTS,REVENUE
Walsall Council,http://opendatacommunities.org/id/metropolitan-district-council/walsall ,WC136-247,31.03.2022,CHILDRENS,ACE CARS & MINIBUSES LTD,01/03/2022,"4,248.00",6241-Hire of Vehicle with Driver,TRANSPORT,DIRECT TRANSPORT COSTS,REVENUE
Walsall Council,http://opendatacommunities.org/id/metropolitan-district-council/walsall ,WC136-248,31.03.2022,CHILDRENS,ACE CARS & MINIBUSES LTD,01/03/2022,"2,140.00",6241-Hire of Vehicle with Driver,TRANSPORT,DIRECT TRANSPORT COSTS,REVENUE
Walsall Council,http://opendatacommunities.org/id/metropolitan-district-council/walsall ,WC136-249,31.03.2022,CHILDRENS,ACE CARS & MINIBUSES LTD,01/03/2022,"2,722.00",6241-Hire of Vehicle with Driver,TRANSPORT,DIRECT TRANSPORT COSTS,REVENUE
Walsall Council,http://opendatacommunities.org/id/metropolitan-district-council/walsall ,WC136-250,31.03.2022,CHILDRENS,ACE CARS & MINIBUSES LTD,01/03/2022,"2,140.00",6241-Hire of Vehicle with Driver,TRANSPORT,DIRECT TRANSPORT COSTS,REVENUE
Walsall Council,http://opendatacommunities.org/id/metropolitan-district-council/walsall ,WC136-251,31.03.2022,CHILDRENS,ACE CARS & MINIBUSES LTD,01/03/2022,"2,360.00",6241-Hire of Vehicle with Driver,TRANSPORT,DIRECT TRANSPORT COSTS,REVENUE
Walsall Council,http://opendatacommunities.org/id/metropolitan-district-council/walsall ,WC136-252,31.03.2022,CHILDRENS,ACE CARS & MINIBUSES LTD,01/03/2022,"2,360.00",6241-Hire of Vehicle with Driver,TRANSPORT,DIRECT TRANSPORT COSTS,REVENUE
Walsall Council,http://opendatacommunities.org/id/metropolitan-district-council/walsall ,WC136-253,31.03.2022,CHILDRENS,ACE CARS & MINIBUSES LTD,01/03/2022,"2,280.00",6241-Hire of Vehicle with Driver,TRANSPORT,DIRECT TRANSPORT COSTS,REVENUE
Walsall Council,http://opendatacommunities.org/id/metropolitan-district-council/walsall ,WC136-254,31.03.2022,CHILDRENS,ACE CARS & MINIBUSES LTD,01/03/2022,"2,140.00",6241-Hire of Vehicle with Driver,TRANSPORT,DIRECT TRANSPORT COSTS,REVENUE
Walsall Council,http://opendatacommunities.org/id/metropolitan-district-council/walsall ,WC136-255,31.03.2022,CHILDRENS,ACE CARS & MINIBUSES LTD,01/03/2022,"2,140.00",6241-Hire of Vehicle with Driver,TRANSPORT,DIRECT TRANSPORT COSTS,REVENUE
Walsall Council,http://opendatacommunities.org/id/metropolitan-district-council/walsall ,WC136-256,31.03.2022,CHILDRENS,ACE CARS & MINIBUSES LTD,01/03/2022,"2,390.00",6241-Hire of Vehicle with Driver,TRANSPORT,DIRECT TRANSPORT COSTS,REVENUE
Walsall Council,http://opendatacommunities.org/id/metropolitan-district-council/walsall ,WC136-257,31.03.2022,CHILDRENS,ACE CARS & MINIBUSES LTD,01/03/2022,"2,390.00",6241-Hire of Vehicle with Driver,TRANSPORT,DIRECT TRANSPORT COSTS,REVENUE
Walsall Council,http://opendatacommunities.org/id/metropolitan-district-council/walsall ,WC136-258,31.03.2022,CHILDRENS,ACE CARS & MINIBUSES LTD,01/03/2022,"2,390.00",6241-Hire of Vehicle with Driver,TRANSPORT,DIRECT TRANSPORT COSTS,REVENUE
Walsall Council,http://opendatacommunities.org/id/metropolitan-district-council/walsall ,WC136-259,31.03.2022,CHILDRENS,ACE CARS & MINIBUSES LTD,01/03/2022,"2,722.00",6241-Hire of Vehicle with Driver,TRANSPORT,DIRECT TRANSPORT COSTS,REVENUE
Walsall Council,http://opendatacommunities.org/id/metropolitan-district-council/walsall ,WC136-260,31.03.2022,CHILDRENS,ACE CARS & MINIBUSES LTD,01/03/2022,"2,722.00",6241-Hire of Vehicle with Driver,TRANSPORT,DIRECT TRANSPORT COSTS,REVENUE
Walsall Council,http://opendatacommunities.org/id/metropolitan-district-council/walsall ,WC136-261,31.03.2022,CHILDRENS,ACE CARS & MINIBUSES LTD,01/03/2022,"3,360.00",6241-Hire of Vehicle with Driver,TRANSPORT,DIRECT TRANSPORT COSTS,REVENUE
Walsall Council,http://opendatacommunities.org/id/metropolitan-district-council/walsall ,WC136-262,31.03.2022,CHILDRENS,ACE CARS & MINIBUSES LTD,01/03/2022,"2,360.00",6241-Hire of Vehicle with Driver,TRANSPORT,DIRECT TRANSPORT COSTS,REVENUE
Walsall Council,http://opendatacommunities.org/id/metropolitan-district-council/walsall ,WC136-263,31.03.2022,CHILDRENS,ACE CARS & MINIBUSES LTD,01/03/2022,"2,690.40",6241-Hire of Vehicle with Driver,TRANSPORT,DIRECT TRANSPORT COSTS,REVENUE
Walsall Council,http://opendatacommunities.org/id/metropolitan-district-council/walsall ,WC136-264,31.03.2022,CHILDRENS,ACE CARS & MINIBUSES LTD,01/03/2022,"2,501.60",6241-Hire of Vehicle with Driver,TRANSPORT,DIRECT TRANSPORT COSTS,REVENUE
Walsall Council,http://opendatacommunities.org/id/metropolitan-district-council/walsall ,WC136-265,31.03.2022,CHILDRENS,ACE CARS & MINIBUSES LTD,01/03/2022,"2,360.00",6241-Hire of Vehicle with Driver,TRANSPORT,DIRECT TRANSPORT COSTS,REVENUE
Walsall Council,http://opendatacommunities.org/id/metropolitan-district-council/walsall ,WC136-266,31.03.2022,CHILDRENS,ACE CARS & MINIBUSES LTD,01/03/2022,"2,280.00",6241-Hire of Vehicle with Driver,TRANSPORT,DIRECT TRANSPORT COSTS,REVENUE
Walsall Council,http://opendatacommunities.org/id/metropolitan-district-council/walsall ,WC136-267,31.03.2022,CHILDRENS,ACE CARS & MINIBUSES LTD,01/03/2022,"2,390.00",6241-Hire of Vehicle with Driver,TRANSPORT,DIRECT TRANSPORT COSTS,REVENUE
Walsall Council,http://opendatacommunities.org/id/metropolitan-district-council/walsall ,WC136-268,31.03.2022,CHILDRENS,ACE CARS & MINIBUSES LTD,28/03/2022,"1,769.30",6241-Hire of Vehicle with Driver,TRANSPORT,DIRECT TRANSPORT COSTS,REVENUE
Walsall Council,http://opendatacommunities.org/id/metropolitan-district-council/walsall ,WC136-269,31.03.2022,CHILDRENS,ACE CARS & MINIBUSES LTD,28/03/2022,"1,769.30",6241-Hire of Vehicle with Driver,TRANSPORT,DIRECT TRANSPORT COSTS,REVENUE
Walsall Council,http://opendatacommunities.org/id/metropolitan-district-council/walsall ,WC136-270,31.03.2022,CHILDRENS,ACE CARS & MINIBUSES LTD,28/03/2022,"1,769.30",6241-Hire of Vehicle with Driver,TRANSPORT,DIRECT TRANSPORT COSTS,REVENUE
Walsall Council,http://opendatacommunities.org/id/metropolitan-district-council/walsall ,WC136-271,31.03.2022,CHILDRENS,ACE CARS & MINIBUSES LTD,28/03/2022,"1,605.00",6241-Hire of Vehicle with Driver,TRANSPORT,DIRECT TRANSPORT COSTS,REVENUE
Walsall Council,http://opendatacommunities.org/id/metropolitan-district-council/walsall ,WC136-272,31.03.2022,CHILDRENS,ACE CARS & MINIBUSES LTD,28/03/2022,"1,605.00",6241-Hire of Vehicle with Driver,TRANSPORT,DIRECT TRANSPORT COSTS,REVENUE
Walsall Council,http://opendatacommunities.org/id/metropolitan-district-council/walsall ,WC136-273,31.03.2022,CHILDRENS,ACE CARS & MINIBUSES LTD,28/03/2022,"1,710.00",6241-Hire of Vehicle with Driver,TRANSPORT,DIRECT TRANSPORT COSTS,REVENUE
Walsall Council,http://opendatacommunities.org/id/metropolitan-district-council/walsall ,WC136-274,31.03.2022,CHILDRENS,ACE CARS & MINIBUSES LTD,28/03/2022,"1,792.50",6241-Hire of Vehicle with Driver,TRANSPORT,DIRECT TRANSPORT COSTS,REVENUE
Walsall Council,http://opendatacommunities.org/id/metropolitan-district-council/walsall ,WC136-275,31.03.2022,CHILDRENS,ACE CARS & MINIBUSES LTD,28/03/2022,"1,710.00",6241-Hire of Vehicle with Driver,TRANSPORT,DIRECT TRANSPORT COSTS,REVENUE
Walsall Council,http://opendatacommunities.org/id/metropolitan-district-council/walsall ,WC136-276,31.03.2022,CHILDRENS,ACE CARS & MINIBUSES LTD,28/03/2022,"1,605.00",6241-Hire of Vehicle with Driver,TRANSPORT,DIRECT TRANSPORT COSTS,REVENUE
Walsall Council,http://opendatacommunities.org/id/metropolitan-district-council/walsall ,WC136-277,31.03.2022,CHILDRENS,ACE CARS & MINIBUSES LTD,28/03/2022,"3,186.00",6241-Hire of Vehicle with Driver,TRANSPORT,DIRECT TRANSPORT COSTS,REVENUE
Walsall Council,http://opendatacommunities.org/id/metropolitan-district-council/walsall ,WC136-278,31.03.2022,CHILDRENS,ACE CARS & MINIBUSES LTD,28/03/2022,"1,605.00",6241-Hire of Vehicle with Driver,TRANSPORT,DIRECT TRANSPORT COSTS,REVENUE
Walsall Council,http://opendatacommunities.org/id/metropolitan-district-council/walsall ,WC136-279,31.03.2022,CHILDRENS,ACE CARS & MINIBUSES LTD,28/03/2022,"1,769.30",6241-Hire of Vehicle with Driver,TRANSPORT,DIRECT TRANSPORT COSTS,REVENUE
Walsall Council,http://opendatacommunities.org/id/metropolitan-district-council/walsall ,WC136-280,31.03.2022,CHILDRENS,ACE CARS & MINIBUSES LTD,28/03/2022,"1,605.00",6241-Hire of Vehicle with Driver,TRANSPORT,DIRECT TRANSPORT COSTS,REVENUE
Walsall Council,http://opendatacommunities.org/id/metropolitan-district-council/walsall ,WC136-281,31.03.2022,CHILDRENS,ACE CARS & MINIBUSES LTD,28/03/2022,"1,605.00",6241-Hire of Vehicle with Driver,TRANSPORT,DIRECT TRANSPORT COSTS,REVENUE
Walsall Council,http://opendatacommunities.org/id/metropolitan-district-council/walsall ,WC136-282,31.03.2022,CHILDRENS,ACE CARS & MINIBUSES LTD,28/03/2022,"1,588.00",6241-Hire of Vehicle with Driver,TRANSPORT,DIRECT TRANSPORT COSTS,REVENUE
Walsall Council,http://opendatacommunities.org/id/metropolitan-district-council/walsall ,WC136-283,31.03.2022,CHILDRENS,ACE CARS & MINIBUSES LTD,28/03/2022,"1,792.50",6241-Hire of Vehicle with Driver,TRANSPORT,DIRECT TRANSPORT COSTS,REVENUE
Walsall Council,http://opendatacommunities.org/id/metropolitan-district-council/walsall ,WC136-284,31.03.2022,CHILDRENS,ACE CARS & MINIBUSES LTD,28/03/2022,"1,792.50",6241-Hire of Vehicle with Driver,TRANSPORT,DIRECT TRANSPORT COSTS,REVENUE
Walsall Council,http://opendatacommunities.org/id/metropolitan-district-council/walsall ,WC136-285,31.03.2022,CHILDRENS,ACE CARS & MINIBUSES LTD,28/03/2022,"1,792.50",6241-Hire of Vehicle with Driver,TRANSPORT,DIRECT TRANSPORT COSTS,REVENUE
Walsall Council,http://opendatacommunities.org/id/metropolitan-district-council/walsall ,WC136-286,31.03.2022,CHILDRENS,ACE CARS & MINIBUSES LTD,28/03/2022,"1,769.30",6241-Hire of Vehicle with Driver,TRANSPORT,DIRECT TRANSPORT COSTS,REVENUE
Walsall Council,http://opendatacommunities.org/id/metropolitan-district-council/walsall ,WC136-287,31.03.2022,CHILDRENS,ACE CARS & MINIBUSES LTD,28/03/2022,"1,769.30",6241-Hire of Vehicle with Driver,TRANSPORT,DIRECT TRANSPORT COSTS,REVENUE
Walsall Council,http://opendatacommunities.org/id/metropolitan-district-council/walsall ,WC136-288,31.03.2022,CHILDRENS,ACE CARS & MINIBUSES LTD,28/03/2022,"2,790.00",6241-Hire of Vehicle with Driver,TRANSPORT,DIRECT TRANSPORT COSTS,REVENUE
Walsall Council,http://opendatacommunities.org/id/metropolitan-district-council/walsall ,WC136-289,31.03.2022,CHILDRENS,ACE CARS & MINIBUSES LTD,28/03/2022,"1,770.00",6241-Hire of Vehicle with Driver,TRANSPORT,DIRECT TRANSPORT COSTS,REVENUE
Walsall Council,http://opendatacommunities.org/id/metropolitan-district-council/walsall ,WC136-290,31.03.2022,CHILDRENS,ACE CARS & MINIBUSES LTD,28/03/2022,"1,710.00",6241-Hire of Vehicle with Driver,TRANSPORT,DIRECT TRANSPORT COSTS,REVENUE
Walsall Council,http://opendatacommunities.org/id/metropolitan-district-council/walsall ,WC136-291,31.03.2022,CHILDRENS,ACE CARS & MINIBUSES LTD,28/03/2022,"1,605.00",6241-Hire of Vehicle with Driver,TRANSPORT,DIRECT TRANSPORT COSTS,REVENUE
Walsall Council,http://opendatacommunities.org/id/metropolitan-district-council/walsall ,WC136-292,31.03.2022,CHILDRENS,ACE CARS & MINIBUSES LTD,28/03/2022,"1,770.00",6241-Hire of Vehicle with Driver,TRANSPORT,DIRECT TRANSPORT COSTS,REVENUE
Walsall Council,http://opendatacommunities.org/id/metropolitan-district-council/walsall ,WC136-293,31.03.2022,CHILDRENS,ACE CARS & MINIBUSES LTD,28/03/2022,"1,605.00",6241-Hire of Vehicle with Driver,TRANSPORT,DIRECT TRANSPORT COSTS,REVENUE
Walsall Council,http://opendatacommunities.org/id/metropolitan-district-council/walsall ,WC136-294,31.03.2022,CHILDRENS,ACE CARS & MINIBUSES LTD,28/03/2022,"1,605.00",6241-Hire of Vehicle with Driver,TRANSPORT,DIRECT TRANSPORT COSTS,REVENUE
Walsall Council,http://opendatacommunities.org/id/metropolitan-district-council/walsall ,WC136-295,31.03.2022,CHILDRENS,ACE CARS & MINIBUSES LTD,28/03/2022,"1,770.00",6241-Hire of Vehicle with Driver,TRANSPORT,DIRECT TRANSPORT COSTS,REVENUE
Walsall Council,http://opendatacommunities.org/id/metropolitan-district-council/walsall ,WC136-296,31.03.2022,CHILDRENS,ACE CARS & MINIBUSES LTD,28/03/2022,"1,792.50",6241-Hire of Vehicle with Driver,TRANSPORT,DIRECT TRANSPORT COSTS,REVENUE
Walsall Council,http://opendatacommunities.org/id/metropolitan-district-council/walsall ,WC136-297,31.03.2022,CHILDRENS,ACE CARS & MINIBUSES LTD,28/03/2022,"1,769.30",6241-Hire of Vehicle with Driver,TRANSPORT,DIRECT TRANSPORT COSTS,REVENUE
Walsall Council,http://opendatacommunities.org/id/metropolitan-district-council/walsall ,WC136-298,31.03.2022,CHILDRENS,ACE CARS & MINIBUSES LTD,28/03/2022,"1,769.30",6241-Hire of Vehicle with Driver,TRANSPORT,DIRECT TRANSPORT COSTS,REVENUE
Walsall Council,http://opendatacommunities.org/id/metropolitan-district-council/walsall ,WC136-299,31.03.2022,CHILDRENS,ACE CARS & MINIBUSES LTD,28/03/2022,"1,770.00",6241-Hire of Vehicle with Driver,TRANSPORT,DIRECT TRANSPORT COSTS,REVENUE
Walsall Council,http://opendatacommunities.org/id/metropolitan-district-council/walsall ,WC136-300,31.03.2022,CHILDRENS,ACE CARS & MINIBUSES LTD,28/03/2022,"2,017.80",6241-Hire of Vehicle with Driver,TRANSPORT,DIRECT TRANSPORT COSTS,REVENUE
Walsall Council,http://opendatacommunities.org/id/metropolitan-district-council/walsall ,WC136-301,31.03.2022,CHILDRENS,ACE CARS & MINIBUSES LTD,28/03/2022,"1,876.20",6241-Hire of Vehicle with Driver,TRANSPORT,DIRECT TRANSPORT COSTS,REVENUE
Walsall Council,http://opendatacommunities.org/id/metropolitan-district-council/walsall ,WC136-302,31.03.2022,CHILDRENS,ACE CARS & MINIBUSES LTD,28/03/2022,"1,770.00",6241-Hire of Vehicle with Driver,TRANSPORT,DIRECT TRANSPORT COSTS,REVENUE
Walsall Council,http://opendatacommunities.org/id/metropolitan-district-council/walsall ,WC136-303,31.03.2022,CHILDRENS,ACE CARS & MINIBUSES LTD,28/03/2022,"1,710.00",6241-Hire of Vehicle with Driver,TRANSPORT,DIRECT TRANSPORT COSTS,REVENUE
Walsall Council,http://opendatacommunities.org/id/metropolitan-district-council/walsall ,WC136-304,31.03.2022,CHILDRENS,ACE CARS & MINIBUSES LTD,28/03/2022,"1,792.50",6241-Hire of Vehicle with Driver,TRANSPORT,DIRECT TRANSPORT COSTS,REVENUE
Walsall Council,http://opendatacommunities.org/id/metropolitan-district-council/walsall ,WC136-305,31.03.2022,CHILDRENS,ACE COACHING LIMITED,24/03/2022,"1,616.00",6213-Professional Fees & Services,SUPPLIES & SERVICES,SERVICES,REVENUE
Walsall Council,http://opendatacommunities.org/id/metropolitan-district-council/walsall ,WC136-306,31.03.2022,ADULT SOCIAL CARE,ACEPAY LTD (COTTAGE NUR HOME),15/03/2022,"2,419.96",6541-Nursing,THIRD PARTY PAYMENTS,PRIVATE CONTRACTOR,REVENUE
Walsall Council,http://opendatacommunities.org/id/metropolitan-district-council/walsall ,WC136-307,31.03.2022,ADULT SOCIAL CARE,ACEPAY LTD (COTTAGE NUR HOME),15/03/2022,"2,419.96",6541-Nursing,THIRD PARTY PAYMENTS,PRIVATE CONTRACTOR,REVENUE
Walsall Council,http://opendatacommunities.org/id/metropolitan-district-council/walsall ,WC136-308,31.03.2022,ADULT SOCIAL CARE,ACEPAY LTD (COTTAGE NUR HOME),15/03/2022,345.71,6541-Nursing,THIRD PARTY PAYMENTS,PRIVATE CONTRACTOR,REVENUE
Walsall Council,http://opendatacommunities.org/id/metropolitan-district-council/walsall ,WC136-309,31.03.2022,ADULT SOCIAL CARE,ACEPAY LTD (COTTAGE NUR HOME),15/03/2022,"2,419.96",6541-Nursing,THIRD PARTY PAYMENTS,PRIVATE CONTRACTOR,REVENUE
Walsall Council,http://opendatacommunities.org/id/metropolitan-district-council/walsall ,WC136-310,31.03.2022,ADULT SOCIAL CARE,ACEPAY LTD (COTTAGE NUR HOME),15/03/2022,"2,419.96",6541-Nursing,THIRD PARTY PAYMENTS,PRIVATE CONTRACTOR,REVENUE
Walsall Council,http://opendatacommunities.org/id/metropolitan-district-council/walsall ,WC136-311,31.03.2022,ADULT SOCIAL CARE,ACEPAY LTD (COTTAGE NUR HOME),15/03/2022,"2,419.96",6541-Nursing,THIRD PARTY PAYMENTS,PRIVATE CONTRACTOR,REVENUE
Walsall Council,http://opendatacommunities.org/id/metropolitan-district-council/walsall ,WC136-312,31.03.2022,ADULT SOCIAL CARE,ACEPAY LTD (COTTAGE NUR HOME),15/03/2022,"2,619.96",6541-Nursing,THIRD PARTY PAYMENTS,PRIVATE CONTRACTOR,REVENUE
Walsall Council,http://opendatacommunities.org/id/metropolitan-district-council/walsall ,WC136-313,31.03.2022,ADULT SOCIAL CARE,ACEPAY LTD (COTTAGE NUR HOME),15/03/2022,"2,331.08",6541-Residential EMI,THIRD PARTY PAYMENTS,PRIVATE CONTRACTOR,REVENUE
Walsall Council,http://opendatacommunities.org/id/metropolitan-district-council/walsall ,WC136-314,31.03.2022,ADULT SOCIAL CARE,ACEPAY LTD (COTTAGE NUR HOME),15/03/2022,"1,037.13",6541-Nursing,THIRD PARTY PAYMENTS,PRIVATE CONTRACTOR,REVENUE
Walsall Council,http://opendatacommunities.org/id/metropolitan-district-council/walsall ,WC136-315,31.03.2022,ADULT SOCIAL CARE,ACEPAY LTD (COTTAGE NUR HOME),15/03/2022,"2,722.96",6541-Nursing EMI,THIRD PARTY PAYMENTS,PRIVATE CONTRACTOR,REVENUE
Walsall Council,http://opendatacommunities.org/id/metropolitan-district-council/walsall ,WC136-316,31.03.2022,ADULT SOCIAL CARE,ACEPAY LTD (COTTAGE NUR HOME),15/03/2022,"2,419.96",6541-Nursing,THIRD PARTY PAYMENTS,PRIVATE CONTRACTOR,REVENUE
Walsall Council,http://opendatacommunities.org/id/metropolitan-district-council/walsall ,WC136-317,31.03.2022,ADULT SOCIAL CARE,ACEPAY LTD (COTTAGE NUR HOME),15/03/2022,"2,419.96",6541-Nursing,THIRD PARTY PAYMENTS,PRIVATE CONTRACTOR,REVENUE
Walsall Council,http://opendatacommunities.org/id/metropolitan-district-council/walsall ,WC136-318,31.03.2022,ADULT SOCIAL CARE,ACEPAY LTD (COTTAGE NUR HOME),15/03/2022,516.11,6541-Residential & Nursing Care Placements,THIRD PARTY PAYMENTS,PRIVATE CONTRACTOR,REVENUE
Walsall Council,http://opendatacommunities.org/id/metropolitan-district-council/walsall ,WC136-319,31.03.2022,ADULT SOCIAL CARE,ACEPAY LTD (COTTAGE NUR HOME),15/03/2022,"2,331.08",6541-Residential EMI,THIRD PARTY PAYMENTS,PRIVATE CONTRACTOR,REVENUE
Walsall Council,http://opendatacommunities.org/id/metropolitan-district-council/walsall ,WC136-320,31.03.2022,ADULT SOCIAL CARE,ACEPAY LTD (COTTAGE NUR HOME),15/03/2022,"2,419.96",6541-Nursing,THIRD PARTY PAYMENTS,PRIVATE CONTRACTOR,REVENUE
Walsall Council,http://opendatacommunities.org/id/metropolitan-district-council/walsall ,WC136-321,31.03.2022,ADULT SOCIAL CARE,ACEPAY LTD (COTTAGE NUR HOME),15/03/2022,"2,722.96",6541-Nursing EMI,THIRD PARTY PAYMENTS,PRIVATE CONTRACTOR,REVENUE
Walsall Council,http://opendatacommunities.org/id/metropolitan-district-council/walsall ,WC136-322,31.03.2022,ADULT SOCIAL CARE,ACEPAY LTD (COTTAGE NUR HOME),15/03/2022,"2,722.96",6541-Nursing EMI,THIRD PARTY PAYMENTS,PRIVATE CONTRACTOR,REVENUE
Walsall Council,http://opendatacommunities.org/id/metropolitan-district-council/walsall ,WC136-323,31.03.2022,ADULT SOCIAL CARE,ACEPAY LTD (COTTAGE NUR HOME),16/03/2022,"3,674.09",6550-COVID-19 Local Support Grant Exp,TRANSFER PAYMENTS,COVID TRANSFER PAYMENT,REVENUE
Walsall Council,http://opendatacommunities.org/id/metropolitan-district-council/walsall ,WC136-324,31.03.2022,ADULT SOCIAL CARE,ACEPAY LTD (COTTAGE NUR HOME),16/03/2022,"2,610.56",6550-COVID-19 Household Support Grant Exp,TRANSFER PAYMENTS,COVID TRANSFER PAYMENT,REVENUE
Walsall Council,http://opendatacommunities.org/id/metropolitan-district-council/walsall ,WC136-325,31.03.2022,ADULT SOCIAL CARE,ACEPAY LTD (COTTAGE NUR HOME),16/03/2022,258.32,6550-National Tutoring Exp,TRANSFER PAYMENTS,COVID TRANSFER PAYMENT,REVENUE
Walsall Council,http://opendatacommunities.org/id/metropolitan-district-council/walsall ,WC136-326,31.03.2022,ADULT SOCIAL CARE,ACEPAY LTD (COTTAGE NUR HOME),22/03/2022,"7,598.72",6540-Professional Services-Priv Contractor & Other Agencies,THIRD PARTY PAYMENTS,PRIVATE CONTRACTOR,REVENUE
Walsall Council,http://opendatacommunities.org/id/metropolitan-district-council/walsall ,WC136-327,31.03.2022,CHILDRENS,ACIRE CARE LTD,02/03/2022,"7,436.80",6223-Accommodation and Related Costs-Assistance to S/S Clients,TRANSFER PAYMENTS,ADULT SOCIAL SERVICES CLIENT,REVENUE
Walsall Council,http://opendatacommunities.org/id/metropolitan-district-council/walsall ,WC136-328,31.03.2022,CHILDRENS,ACORN CARE & EDUCATION LTD (SALES),21/03/2022,"14,000.00",6223-External Residential Care-Oth Agency Provision,THIRD PARTY PAYMENTS,PRIVATE CONTRACTOR,REVENUE
Walsall Council,http://opendatacommunities.org/id/metropolitan-district-council/walsall ,WC136-329,31.03.2022,CHILDRENS,ACORN CARE & EDUCATION LTD (SALES),23/03/2022,"25,960.00",1220-Top Up Funding -Grants to Schools,SUPPLIES & SERVICES,GRANTS (EXP) & SUBSCRIPTIONS,REVENUE
Walsall Council,http://opendatacommunities.org/id/metropolitan-district-council/walsall ,WC136-330,31.03.2022,CHILDRENS,ACORN CARE & EDUCATION LTD (SALES),23/03/2022,"17,302.00",1220-Top Up Funding -Grants to Schools,SUPPLIES & SERVICES,GRANTS (EXP) & SUBSCRIPTIONS,REVENUE
Walsall Council,http://opendatacommunities.org/id/metropolitan-district-council/walsall ,WC136-331,31.03.2022,CHILDRENS,ACORN CARE & EDUCATION LTD (SALES),23/03/2022,"-19,883.33",1220-Top Up Funding -Grants to Schools,SUPPLIES & SERVICES,GRANTS (EXP) & SUBSCRIPTIONS,REVENUE
Walsall Council,http://opendatacommunities.org/id/metropolitan-district-council/walsall ,WC136-332,31.03.2022,CHILDRENS,ACORN CARE & EDUCATION LTD (SALES),23/03/2022,"-17,883.33",1220-Top Up Funding -Grants to Schools,SUPPLIES & SERVICES,GRANTS (EXP) & SUBSCRIPTIONS,REVENUE
Walsall Council,http://opendatacommunities.org/id/metropolitan-district-council/walsall ,WC136-333,31.03.2022,CHILDRENS,ACORN CARE & EDUCATION LTD (SALES),23/03/2022,"17,883.33",1220-Top Up Funding -Grants to Schools,SUPPLIES & SERVICES,GRANTS (EXP) & SUBSCRIPTIONS,REVENUE
Walsall Council,http://opendatacommunities.org/id/metropolitan-district-council/walsall ,WC136-334,31.03.2022,CHILDRENS,ACORN CARE & EDUCATION LTD (SALES),23/03/2022,"19,883.33",1220-Professional Fees & Services,SUPPLIES & SERVICES,SERVICES,REVENUE
Walsall Council,http://opendatacommunities.org/id/metropolitan-district-council/walsall ,WC136-335,31.03.2022,CHILDRENS,ACORN CARE & EDUCATION LTD (SALES),23/03/2022,"19,883.33",1220-Top Up Funding -Grants to Schools,SUPPLIES & SERVICES,GRANTS (EXP) & SUBSCRIPTIONS,REVENUE
Walsall Council,http://opendatacommunities.org/id/metropolitan-district-council/walsall ,WC136-336,31.03.2022,CHILDRENS,ACORN CARE & EDUCATION LTD (SALES),23/03/2022,"14,456.67",1220-Professional Fees & Services,SUPPLIES & SERVICES,SERVICES,REVENUE
Walsall Council,http://opendatacommunities.org/id/metropolitan-district-council/walsall ,WC136-337,31.03.2022,CHILDRENS,ACORN CARE & EDUCATION LTD (SALES),23/03/2022,"17,302.00",1220-Professional Fees & Services,SUPPLIES & SERVICES,SERVICES,REVENUE
Walsall Council,http://opendatacommunities.org/id/metropolitan-district-council/walsall ,WC136-338,31.03.2022,CHILDRENS,ACORN CARE & EDUCATION LTD (SALES),23/03/2022,"17,302.00",1220-Top Up Funding -Grants to Schools,SUPPLIES & SERVICES,GRANTS (EXP) & SUBSCRIPTIONS,REVENUE
Walsall Council,http://opendatacommunities.org/id/metropolitan-district-council/walsall ,WC136-339,31.03.2022,CHILDRENS,ACORN CARE & EDUCATION LTD (SALES),23/03/2022,"17,803.33",1220-Top Up Funding -Grants to Schools,SUPPLIES & SERVICES,GRANTS (EXP) & SUBSCRIPTIONS,REVENUE
Walsall Council,http://opendatacommunities.org/id/metropolitan-district-council/walsall ,WC136-340,31.03.2022,CHILDRENS,ACORN CARE & EDUCATION LTD (SALES),23/03/2022,"5,681.00",1220-Professional Fees & Services,SUPPLIES & SERVICES,SERVICES,REVENUE
Walsall Council,http://opendatacommunities.org/id/metropolitan-district-council/walsall ,WC136-341,31.03.2022,CHILDRENS,ACORN CARE & EDUCATION LTD (SALES),23/03/2022,"17,302.00",1220-Professional Fees & Services,SUPPLIES & SERVICES,SERVICES,REVENUE
Walsall Council,http://opendatacommunities.org/id/metropolitan-district-council/walsall ,WC136-342,31.03.2022,CHILDRENS,ACORN CARE & EDUCATION LTD (SALES),23/03/2022,"15,554.33",1220-Top Up Funding -Grants to Schools,SUPPLIES & SERVICES,GRANTS (EXP) & SUBSCRIPTIONS,REVENUE
Walsall Council,http://opendatacommunities.org/id/metropolitan-district-council/walsall ,WC136-343,31.03.2022,CHILDRENS,ACPAS LIMITED,02/03/2022,280.80,6220-School Only Payments - Catering,THIRD PARTY PAYMENTS,INDEPENDENT UNIT WITHIN COUNCIL,REVENUE
Walsall Council,http://opendatacommunities.org/id/metropolitan-district-council/walsall ,WC136-344,31.03.2022,CHILDRENS,ACTI FIT (MIDLANDS) LIMITED,24/03/2022,"6,032.00",6213-Professional Fees & Services,SUPPLIES & SERVICES,SERVICES,REVENUE
Walsall Council,http://opendatacommunities.org/id/metropolitan-district-council/walsall ,WC136-345,31.03.2022,"ECONOMY, ENVIRONMENT & COMMUNITIES",ACTION GRAPHICS & DISPLAY LTD,01/03/2022,282.90,6414-External Printing Services,SUPPLIES & SERVICES,PRINTING STATIONERY & GENERAL OFFICE,REVENUE
Walsall Council,http://opendatacommunities.org/id/metropolitan-district-council/walsall ,WC136-346,31.03.2022,"ECONOMY, ENVIRONMENT & COMMUNITIES",ACTIVE GYM LIMITED,23/03/2022,650.00,6413-External Training,INDIRECT EMPLOYEES,EXTERNAL TRAINING,REVENUE
Walsall Council,http://opendatacommunities.org/id/metropolitan-district-council/walsall ,WC136-347,31.03.2022,CHILDRENS,ACTIVE GYM LIMITED,24/03/2022,"2,464.00",6213-Professional Fees & Services,SUPPLIES & SERVICES,SERVICES,REVENUE
Walsall Council,http://opendatacommunities.org/id/metropolitan-district-council/walsall ,WC136-348,31.03.2022,CHILDRENS,REDACTED,09/03/2022,363.24,6223-Residents Orders,TRANSFER PAYMENTS,CHILDREN SOCIAL SERVICES CLIENT,REVENUE
Walsall Council,http://opendatacommunities.org/id/metropolitan-district-council/walsall ,WC136-349,31.03.2022,ADULT SOCIAL CARE,REDACTED,10/03/2022,"2,604.00",6541-Direct Payment,THIRD PARTY PAYMENTS,PRIVATE CONTRACTOR,REVENUE
Walsall Council,http://opendatacommunities.org/id/metropolitan-district-council/walsall ,WC136-350,31.03.2022,ADULT SOCIAL CARE,ADVANCE HEALTH CARE (UK) LTD,09/03/2022,825.28,6541-Domiciliary Care,THIRD PARTY PAYMENTS,PRIVATE CONTRACTOR,REVENUE
Walsall Council,http://opendatacommunities.org/id/metropolitan-district-council/walsall ,WC136-351,31.03.2022,ADULT SOCIAL CARE,ADVANCE HEALTH CARE (UK) LTD,30/03/2022,454.30,6541-Domiciliary Care,THIRD PARTY PAYMENTS,PRIVATE CONTRACTOR,REVENUE
Walsall Council,http://opendatacommunities.org/id/metropolitan-district-council/walsall ,WC136-352,31.03.2022,ADULT SOCIAL CARE,ADVANCE HEALTH CARE (UK) LTD,09/03/2022,"2,107.84",6541-Domiciliary Care,THIRD PARTY PAYMENTS,PRIVATE CONTRACTOR,REVENUE
Walsall Council,http://opendatacommunities.org/id/metropolitan-district-council/walsall ,WC136-353,31.03.2022,ADULT SOCIAL CARE,ADVANCE HEALTH CARE (UK) LTD,09/03/2022,"2,520.57",6541-Domiciliary Care,THIRD PARTY PAYMENTS,PRIVATE CONTRACTOR,REVENUE
Walsall Council,http://opendatacommunities.org/id/metropolitan-district-council/walsall ,WC136-354,31.03.2022,ADULT SOCIAL CARE,ADVANCE HEALTH CARE (UK) LTD,09/03/2022,"1,028.20",6541-Domiciliary Care,THIRD PARTY PAYMENTS,PRIVATE CONTRACTOR,REVENUE
Walsall Council,http://opendatacommunities.org/id/metropolitan-district-council/walsall ,WC136-355,31.03.2022,ADULT SOCIAL CARE,ADVANCE HEALTH CARE (UK) LTD,09/03/2022,"1,012.56",6541-Domiciliary Care,THIRD PARTY PAYMENTS,PRIVATE CONTRACTOR,REVENUE
Walsall Council,http://opendatacommunities.org/id/metropolitan-district-council/walsall ,WC136-356,31.03.2022,ADULT SOCIAL CARE,ADVANCE HEALTH CARE (UK) LTD,09/03/2022,763.00,6541-Domiciliary Care,THIRD PARTY PAYMENTS,PRIVATE CONTRACTOR,REVENUE
Walsall Council,http://opendatacommunities.org/id/metropolitan-district-council/walsall ,WC136-357,31.03.2022,ADULT SOCIAL CARE,ADVANCE HEALTH CARE (UK) LTD,09/03/2022,799.40,6541-Domiciliary Care,THIRD PARTY PAYMENTS,PRIVATE CONTRACTOR,REVENUE
Walsall Council,http://opendatacommunities.org/id/metropolitan-district-council/walsall ,WC136-358,31.03.2022,ADULT SOCIAL CARE,ADVANCE HEALTH CARE (UK) LTD,09/03/2022,726.88,6541-Domiciliary Care,THIRD PARTY PAYMENTS,PRIVATE CONTRACTOR,REVENUE
Walsall Council,http://opendatacommunities.org/id/metropolitan-district-council/walsall ,WC136-359,31.03.2022,ADULT SOCIAL CARE,ADVANCE HEALTH CARE (UK) LTD,09/03/2022,742.53,6541-Domiciliary Care,THIRD PARTY PAYMENTS,PRIVATE CONTRACTOR,REVENUE
Walsall Council,http://opendatacommunities.org/id/metropolitan-district-council/walsall ,WC136-360,31.03.2022,ADULT SOCIAL CARE,ADVANCE HEALTH CARE (UK) LTD,09/03/2022,"1,744.12",6541-Domiciliary Care,THIRD PARTY PAYMENTS,PRIVATE CONTRACTOR,REVENUE
Walsall Council,http://opendatacommunities.org/id/metropolitan-district-council/walsall ,WC136-361,31.03.2022,ADULT SOCIAL CARE,ADVANCE HEALTH CARE (UK) LTD,09/03/2022,825.28,6541-Domiciliary Care,THIRD PARTY PAYMENTS,PRIVATE CONTRACTOR,REVENUE
Walsall Council,http://opendatacommunities.org/id/metropolitan-district-council/walsall ,WC136-362,31.03.2022,ADULT SOCIAL CARE,ADVANCE HEALTH CARE (UK) LTD,09/03/2022,472.36,6541-Domiciliary Care,THIRD PARTY PAYMENTS,PRIVATE CONTRACTOR,REVENUE
Walsall Council,http://opendatacommunities.org/id/metropolitan-district-council/walsall ,WC136-363,31.03.2022,ADULT SOCIAL CARE,ADVANCE HEALTH CARE (UK) LTD,30/03/2022,799.68,6541-Domiciliary Care,THIRD PARTY PAYMENTS,PRIVATE CONTRACTOR,REVENUE
Walsall Council,http://opendatacommunities.org/id/metropolitan-district-council/walsall ,WC136-364,31.03.2022,ADULT SOCIAL CARE,ADVANCE HEALTH CARE (UK) LTD,30/03/2022,908.60,6541-Domiciliary Care,THIRD PARTY PAYMENTS,PRIVATE CONTRACTOR,REVENUE
Walsall Council,http://opendatacommunities.org/id/metropolitan-district-council/walsall ,WC136-365,31.03.2022,ADULT SOCIAL CARE,ADVANCE HEALTH CARE (UK) LTD,09/03/2022,"8,091.00",6554-Carers One off Payment,TRANSFER PAYMENTS,ADULT SOCIAL SERVICES CLIENT,REVENUE
Walsall Council,http://opendatacommunities.org/id/metropolitan-district-council/walsall ,WC136-366,31.03.2022,ADULT SOCIAL CARE,ADVANCE HEALTH CARE (UK) LTD,01/03/2022,490.49,6541-Domiciliary Care,THIRD PARTY PAYMENTS,PRIVATE CONTRACTOR,REVENUE
Walsall Council,http://opendatacommunities.org/id/metropolitan-district-council/walsall ,WC136-367,31.03.2022,ADULT SOCIAL CARE,ADVANCE HEALTH CARE (UK) LTD,01/03/2022,490.49,6541-Domiciliary Care,THIRD PARTY PAYMENTS,PRIVATE CONTRACTOR,REVENUE
Walsall Council,http://opendatacommunities.org/id/metropolitan-district-council/walsall ,WC136-368,31.03.2022,ADULT SOCIAL CARE,ADVANCE HEALTH CARE (UK) LTD,01/03/2022,435.96,6541-Domiciliary Care,THIRD PARTY PAYMENTS,PRIVATE CONTRACTOR,REVENUE
Walsall Council,http://opendatacommunities.org/id/metropolitan-district-council/walsall ,WC136-369,31.03.2022,ADULT SOCIAL CARE,ADVANCE HEALTH CARE (UK) LTD,01/03/2022,435.96,6541-Domiciliary Care,THIRD PARTY PAYMENTS,PRIVATE CONTRACTOR,REVENUE
Walsall Council,http://opendatacommunities.org/id/metropolitan-district-council/walsall ,WC136-370,31.03.2022,ADULT SOCIAL CARE,ADVANCE HEALTH CARE (UK) LTD,01/03/2022,381.50,6541-Domiciliary Care,THIRD PARTY PAYMENTS,PRIVATE CONTRACTOR,REVENUE
Walsall Council,http://opendatacommunities.org/id/metropolitan-district-council/walsall ,WC136-371,31.03.2022,ADULT SOCIAL CARE,ADVANCE HEALTH CARE (UK) LTD,01/03/2022,490.49,6541-Domiciliary Care,THIRD PARTY PAYMENTS,PRIVATE CONTRACTOR,REVENUE
Walsall Council,http://opendatacommunities.org/id/metropolitan-district-council/walsall ,WC136-372,31.03.2022,ADULT SOCIAL CARE,ADVANCE HEALTH CARE (UK) LTD,01/03/2022,871.92,6541-Domiciliary Care,THIRD PARTY PAYMENTS,PRIVATE CONTRACTOR,REVENUE
Walsall Council,http://opendatacommunities.org/id/metropolitan-district-council/walsall ,WC136-373,31.03.2022,ADULT SOCIAL CARE,ADVANCE HEALTH CARE (UK) LTD,01/03/2022,381.50,6541-Domiciliary Care,THIRD PARTY PAYMENTS,PRIVATE CONTRACTOR,REVENUE
Walsall Council,http://opendatacommunities.org/id/metropolitan-district-council/walsall ,WC136-374,31.03.2022,ADULT SOCIAL CARE,ADVANCE HEALTH CARE (UK) LTD,01/03/2022,490.49,6541-Domiciliary Care,THIRD PARTY PAYMENTS,PRIVATE CONTRACTOR,REVENUE
Walsall Council,http://opendatacommunities.org/id/metropolitan-district-council/walsall ,WC136-375,31.03.2022,ADULT SOCIAL CARE,ADVANCE HEALTH CARE (UK) LTD,01/03/2022,635.81,6541-Domiciliary Care,THIRD PARTY PAYMENTS,PRIVATE CONTRACTOR,REVENUE
Walsall Council,http://opendatacommunities.org/id/metropolitan-district-council/walsall ,WC136-376,31.03.2022,ADULT SOCIAL CARE,ADVANCE HEALTH CARE (UK) LTD,01/03/2022,537.20,6541-Domiciliary Care,THIRD PARTY PAYMENTS,PRIVATE CONTRACTOR,REVENUE
Walsall Council,http://opendatacommunities.org/id/metropolitan-district-council/walsall ,WC136-377,31.03.2022,ADULT SOCIAL CARE,ADVANCE HEALTH CARE (UK) LTD,01/03/2022,490.49,6541-Domiciliary Care,THIRD PARTY PAYMENTS,PRIVATE CONTRACTOR,REVENUE
Walsall Council,http://opendatacommunities.org/id/metropolitan-district-council/walsall ,WC136-378,31.03.2022,ADULT SOCIAL CARE,ADVANCE HEALTH CARE (UK) LTD,01/03/2022,490.49,6541-Domiciliary Care,THIRD PARTY PAYMENTS,PRIVATE CONTRACTOR,REVENUE
Walsall Council,http://opendatacommunities.org/id/metropolitan-district-council/walsall ,WC136-379,31.03.2022,ADULT SOCIAL CARE,ADVANCE HEALTH CARE (UK) LTD,01/03/2022,435.96,6541-Domiciliary Care,THIRD PARTY PAYMENTS,PRIVATE CONTRACTOR,REVENUE
Walsall Council,http://opendatacommunities.org/id/metropolitan-district-council/walsall ,WC136-380,31.03.2022,ADULT SOCIAL CARE,ADVANCE HEALTH CARE (UK) LTD,01/03/2022,490.49,6541-Domiciliary Care,THIRD PARTY PAYMENTS,PRIVATE CONTRACTOR,REVENUE
Walsall Council,http://opendatacommunities.org/id/metropolitan-district-council/walsall ,WC136-381,31.03.2022,ADULT SOCIAL CARE,ADVANCE HEALTH CARE (UK) LTD,01/03/2022,435.96,6541-Domiciliary Care,THIRD PARTY PAYMENTS,PRIVATE CONTRACTOR,REVENUE
Walsall Council,http://opendatacommunities.org/id/metropolitan-district-council/walsall ,WC136-382,31.03.2022,ADULT SOCIAL CARE,ADVANCE HEALTH CARE (UK) LTD,01/03/2022,490.49,6541-Domiciliary Care,THIRD PARTY PAYMENTS,PRIVATE CONTRACTOR,REVENUE
Walsall Council,http://opendatacommunities.org/id/metropolitan-district-council/walsall ,WC136-383,31.03.2022,ADULT SOCIAL CARE,ADVANCE HEALTH CARE (UK) LTD,01/03/2022,454.16,6541-Domiciliary Care,THIRD PARTY PAYMENTS,PRIVATE CONTRACTOR,REVENUE
Walsall Council,http://opendatacommunities.org/id/metropolitan-district-council/walsall ,WC136-384,31.03.2022,ADULT SOCIAL CARE,ADVANCE HEALTH CARE (UK) LTD,01/03/2022,490.49,6541-Domiciliary Care,THIRD PARTY PAYMENTS,PRIVATE CONTRACTOR,REVENUE
Walsall Council,http://opendatacommunities.org/id/metropolitan-district-council/walsall ,WC136-385,31.03.2022,ADULT SOCIAL CARE,ADVANCE HEALTH CARE (UK) LTD,01/03/2022,490.49,6541-Domiciliary Care,THIRD PARTY PAYMENTS,PRIVATE CONTRACTOR,REVENUE
Walsall Council,http://opendatacommunities.org/id/metropolitan-district-council/walsall ,WC136-386,31.03.2022,ADULT SOCIAL CARE,ADVANCE HEALTH CARE (UK) LTD,01/03/2022,490.49,6541-Domiciliary Care,THIRD PARTY PAYMENTS,PRIVATE CONTRACTOR,REVENUE
Walsall Council,http://opendatacommunities.org/id/metropolitan-district-council/walsall ,WC136-387,31.03.2022,ADULT SOCIAL CARE,ADVANCE HEALTH CARE (UK) LTD,01/03/2022,490.49,6541-Domiciliary Care,THIRD PARTY PAYMENTS,PRIVATE CONTRACTOR,REVENUE
Walsall Council,http://opendatacommunities.org/id/metropolitan-district-council/walsall ,WC136-388,31.03.2022,ADULT SOCIAL CARE,ADVANCE HEALTH CARE (UK) LTD,01/03/2022,363.30,6541-Domiciliary Care,THIRD PARTY PAYMENTS,PRIVATE CONTRACTOR,REVENUE
Walsall Council,http://opendatacommunities.org/id/metropolitan-district-council/walsall ,WC136-389,31.03.2022,ADULT SOCIAL CARE,ADVANCE HEALTH CARE (UK) LTD,01/03/2022,490.49,6541-Domiciliary Care,THIRD PARTY PAYMENTS,PRIVATE CONTRACTOR,REVENUE
Walsall Council,http://opendatacommunities.org/id/metropolitan-district-council/walsall ,WC136-390,31.03.2022,ADULT SOCIAL CARE,ADVANCE HEALTH CARE (UK) LTD,01/03/2022,490.49,6541-Domiciliary Care,THIRD PARTY PAYMENTS,PRIVATE CONTRACTOR,REVENUE
Walsall Council,http://opendatacommunities.org/id/metropolitan-district-council/walsall ,WC136-391,31.03.2022,ADULT SOCIAL CARE,ADVANCE HEALTH CARE (UK) LTD,01/03/2022,490.49,6541-Domiciliary Care,THIRD PARTY PAYMENTS,PRIVATE CONTRACTOR,REVENUE
Walsall Council,http://opendatacommunities.org/id/metropolitan-district-council/walsall ,WC136-392,31.03.2022,ADULT SOCIAL CARE,ADVANCE HEALTH CARE (UK) LTD,01/03/2022,544.95,6541-Domiciliary Care,THIRD PARTY PAYMENTS,PRIVATE CONTRACTOR,REVENUE
Walsall Council,http://opendatacommunities.org/id/metropolitan-district-council/walsall ,WC136-393,31.03.2022,ADULT SOCIAL CARE,ADVANCE HEALTH CARE (UK) LTD,01/03/2022,490.49,6541-Domiciliary Care,THIRD PARTY PAYMENTS,PRIVATE CONTRACTOR,REVENUE
Walsall Council,http://opendatacommunities.org/id/metropolitan-district-council/walsall ,WC136-394,31.03.2022,ADULT SOCIAL CARE,ADVANCE HEALTH CARE (UK) LTD,01/03/2022,544.95,6541-Domiciliary Care,THIRD PARTY PAYMENTS,PRIVATE CONTRACTOR,REVENUE
Walsall Council,http://opendatacommunities.org/id/metropolitan-district-council/walsall ,WC136-395,31.03.2022,ADULT SOCIAL CARE,ADVANCE HEALTH CARE (UK) LTD,01/03/2022,326.97,6541-Domiciliary Care,THIRD PARTY PAYMENTS,PRIVATE CONTRACTOR,REVENUE
Walsall Council,http://opendatacommunities.org/id/metropolitan-district-council/walsall ,WC136-396,31.03.2022,ADULT SOCIAL CARE,ADVANCE HEALTH CARE (UK) LTD,01/03/2022,544.95,6541-Domiciliary Care,THIRD PARTY PAYMENTS,PRIVATE CONTRACTOR,REVENUE
Walsall Council,http://opendatacommunities.org/id/metropolitan-district-council/walsall ,WC136-397,31.03.2022,ADULT SOCIAL CARE,ADVANCE HEALTH CARE (UK) LTD,01/03/2022,490.49,6541-Domiciliary Care,THIRD PARTY PAYMENTS,PRIVATE CONTRACTOR,REVENUE
Walsall Council,http://opendatacommunities.org/id/metropolitan-district-council/walsall ,WC136-398,31.03.2022,ADULT SOCIAL CARE,ADVANCE HEALTH CARE (UK) LTD,01/03/2022,326.97,6541-Domiciliary Care,THIRD PARTY PAYMENTS,PRIVATE CONTRACTOR,REVENUE
Walsall Council,http://opendatacommunities.org/id/metropolitan-district-council/walsall ,WC136-399,31.03.2022,ADULT SOCIAL CARE,ADVANCE HEALTH CARE (UK) LTD,01/03/2022,454.16,6541-Domiciliary Care,THIRD PARTY PAYMENTS,PRIVATE CONTRACTOR,REVENUE
Walsall Council,http://opendatacommunities.org/id/metropolitan-district-council/walsall ,WC136-400,31.03.2022,ADULT SOCIAL CARE,ADVANCE HEALTH CARE (UK) LTD,01/03/2022,490.49,6541-Domiciliary Care,THIRD PARTY PAYMENTS,PRIVATE CONTRACTOR,REVENUE
Walsall Council,http://opendatacommunities.org/id/metropolitan-district-council/walsall ,WC136-401,31.03.2022,ADULT SOCIAL CARE,ADVANCE HEALTH CARE (UK) LTD,01/03/2022,833.03,6541-Domiciliary Care,THIRD PARTY PAYMENTS,PRIVATE CONTRACTOR,REVENUE
Walsall Council,http://opendatacommunities.org/id/metropolitan-district-council/walsall ,WC136-402,31.03.2022,ADULT SOCIAL CARE,ADVANCE HEALTH CARE (UK) LTD,01/03/2022,490.49,6541-Domiciliary Care,THIRD PARTY PAYMENTS,PRIVATE CONTRACTOR,REVENUE
Walsall Council,http://opendatacommunities.org/id/metropolitan-district-council/walsall ,WC136-403,31.03.2022,ADULT SOCIAL CARE,ADVANCE HEALTH CARE (UK) LTD,01/03/2022,490.49,6541-Domiciliary Care,THIRD PARTY PAYMENTS,PRIVATE CONTRACTOR,REVENUE
Walsall Council,http://opendatacommunities.org/id/metropolitan-district-council/walsall ,WC136-404,31.03.2022,ADULT SOCIAL CARE,ADVANCE HEALTH CARE (UK) LTD,01/03/2022,524.19,6541-Domiciliary Care,THIRD PARTY PAYMENTS,PRIVATE CONTRACTOR,REVENUE
Walsall Council,http://opendatacommunities.org/id/metropolitan-district-council/walsall ,WC136-405,31.03.2022,ADULT SOCIAL CARE,ADVANCE HEALTH CARE (UK) LTD,01/03/2022,399.63,6541-Domiciliary Care,THIRD PARTY PAYMENTS,PRIVATE CONTRACTOR,REVENUE
Walsall Council,http://opendatacommunities.org/id/metropolitan-district-council/walsall ,WC136-406,31.03.2022,ADULT SOCIAL CARE,ADVANCE HEALTH CARE (UK) LTD,01/03/2022,326.97,6541-Domiciliary Care,THIRD PARTY PAYMENTS,PRIVATE CONTRACTOR,REVENUE
Walsall Council,http://opendatacommunities.org/id/metropolitan-district-council/walsall ,WC136-407,31.03.2022,ADULT SOCIAL CARE,ADVANCE HEALTH CARE (UK) LTD,01/03/2022,506.06,6541-Domiciliary Care,THIRD PARTY PAYMENTS,PRIVATE CONTRACTOR,REVENUE
Walsall Council,http://opendatacommunities.org/id/metropolitan-district-council/walsall ,WC136-408,31.03.2022,ADULT SOCIAL CARE,ADVANCE HEALTH CARE (UK) LTD,01/03/2022,490.49,6541-Domiciliary Care,THIRD PARTY PAYMENTS,PRIVATE CONTRACTOR,REVENUE
Walsall Council,http://opendatacommunities.org/id/metropolitan-district-council/walsall ,WC136-409,31.03.2022,ADULT SOCIAL CARE,ADVANCE HEALTH CARE (UK) LTD,01/03/2022,544.95,6541-Domiciliary Care,THIRD PARTY PAYMENTS,PRIVATE CONTRACTOR,REVENUE
Walsall Council,http://opendatacommunities.org/id/metropolitan-district-council/walsall ,WC136-410,31.03.2022,ADULT SOCIAL CARE,ADVANCE HEALTH CARE (UK) LTD,01/03/2022,498.84,6541-Domiciliary Care,THIRD PARTY PAYMENTS,PRIVATE CONTRACTOR,REVENUE
Walsall Council,http://opendatacommunities.org/id/metropolitan-district-council/walsall ,WC136-411,31.03.2022,ADULT SOCIAL CARE,ADVANCE HEALTH CARE (UK) LTD,01/03/2022,435.96,6541-Domiciliary Care,THIRD PARTY PAYMENTS,PRIVATE CONTRACTOR,REVENUE
Walsall Council,http://opendatacommunities.org/id/metropolitan-district-council/walsall ,WC136-412,31.03.2022,ADULT SOCIAL CARE,ADVANCE HEALTH CARE (UK) LTD,01/03/2022,"8,355.90",6541-Domiciliary Care,THIRD PARTY PAYMENTS,PRIVATE CONTRACTOR,REVENUE
Walsall Council,http://opendatacommunities.org/id/metropolitan-district-council/walsall ,WC136-413,31.03.2022,ADULT SOCIAL CARE,ADVANCE HEALTH CARE (UK) LTD,01/03/2022,363.30,6541-Domiciliary Care,THIRD PARTY PAYMENTS,PRIVATE CONTRACTOR,REVENUE
Walsall Council,http://opendatacommunities.org/id/metropolitan-district-council/walsall ,WC136-414,31.03.2022,ADULT SOCIAL CARE,ADVANCE HEALTH CARE (UK) LTD,01/03/2022,490.49,6541-Domiciliary Care,THIRD PARTY PAYMENTS,PRIVATE CONTRACTOR,REVENUE
Walsall Council,http://opendatacommunities.org/id/metropolitan-district-council/walsall ,WC136-415,31.03.2022,ADULT SOCIAL CARE,ADVANCE HEALTH CARE (UK) LTD,01/03/2022,490.49,6541-Domiciliary Care,THIRD PARTY PAYMENTS,PRIVATE CONTRACTOR,REVENUE
Walsall Council,http://opendatacommunities.org/id/metropolitan-district-council/walsall ,WC136-416,31.03.2022,ADULT SOCIAL CARE,ADVANCE HEALTH CARE (UK) LTD,01/03/2022,490.49,6541-Domiciliary Care,THIRD PARTY PAYMENTS,PRIVATE CONTRACTOR,REVENUE
Walsall Council,http://opendatacommunities.org/id/metropolitan-district-council/walsall ,WC136-417,31.03.2022,ADULT SOCIAL CARE,ADVANCE HEALTH CARE (UK) LTD,01/03/2022,435.96,6541-Domiciliary Care,THIRD PARTY PAYMENTS,PRIVATE CONTRACTOR,REVENUE
Walsall Council,http://opendatacommunities.org/id/metropolitan-district-council/walsall ,WC136-418,31.03.2022,ADULT SOCIAL CARE,ADVANCE HEALTH CARE (UK) LTD,01/03/2022,435.96,6541-Domiciliary Care,THIRD PARTY PAYMENTS,PRIVATE CONTRACTOR,REVENUE
Walsall Council,http://opendatacommunities.org/id/metropolitan-district-council/walsall ,WC136-419,31.03.2022,ADULT SOCIAL CARE,ADVANCE HEALTH CARE (UK) LTD,01/03/2022,381.50,6541-Domiciliary Care,THIRD PARTY PAYMENTS,PRIVATE CONTRACTOR,REVENUE
Walsall Council,http://opendatacommunities.org/id/metropolitan-district-council/walsall ,WC136-420,31.03.2022,ADULT SOCIAL CARE,ADVANCE HEALTH CARE (UK) LTD,01/03/2022,490.49,6541-Domiciliary Care,THIRD PARTY PAYMENTS,PRIVATE CONTRACTOR,REVENUE
Walsall Council,http://opendatacommunities.org/id/metropolitan-district-council/walsall ,WC136-421,31.03.2022,ADULT SOCIAL CARE,ADVANCE HEALTH CARE (UK) LTD,01/03/2022,454.16,6541-Domiciliary Care,THIRD PARTY PAYMENTS,PRIVATE CONTRACTOR,REVENUE
Walsall Council,http://opendatacommunities.org/id/metropolitan-district-council/walsall ,WC136-422,31.03.2022,ADULT SOCIAL CARE,ADVANCE HEALTH CARE (UK) LTD,01/03/2022,490.49,6541-Domiciliary Care,THIRD PARTY PAYMENTS,PRIVATE CONTRACTOR,REVENUE
Walsall Council,http://opendatacommunities.org/id/metropolitan-district-council/walsall ,WC136-423,31.03.2022,ADULT SOCIAL CARE,ADVANCE HEALTH CARE (UK) LTD,01/03/2022,490.49,6541-Domiciliary Care,THIRD PARTY PAYMENTS,PRIVATE CONTRACTOR,REVENUE
Walsall Council,http://opendatacommunities.org/id/metropolitan-district-council/walsall ,WC136-424,31.03.2022,ADULT SOCIAL CARE,ADVANCE HEALTH CARE (UK) LTD,01/03/2022,326.97,6541-Domiciliary Care,THIRD PARTY PAYMENTS,PRIVATE CONTRACTOR,REVENUE
Walsall Council,http://opendatacommunities.org/id/metropolitan-district-council/walsall ,WC136-425,31.03.2022,ADULT SOCIAL CARE,ADVANCE HEALTH CARE (UK) LTD,01/03/2022,544.95,6541-Domiciliary Care,THIRD PARTY PAYMENTS,PRIVATE CONTRACTOR,REVENUE
Walsall Council,http://opendatacommunities.org/id/metropolitan-district-council/walsall ,WC136-426,31.03.2022,ADULT SOCIAL CARE,ADVANCE HEALTH CARE (UK) LTD,01/03/2022,490.49,6541-Domiciliary Care,THIRD PARTY PAYMENTS,PRIVATE CONTRACTOR,REVENUE
Walsall Council,http://opendatacommunities.org/id/metropolitan-district-council/walsall ,WC136-427,31.03.2022,ADULT SOCIAL CARE,ADVANCE HEALTH CARE (UK) LTD,01/03/2022,544.95,6541-Domiciliary Care,THIRD PARTY PAYMENTS,PRIVATE CONTRACTOR,REVENUE
Walsall Council,http://opendatacommunities.org/id/metropolitan-district-council/walsall ,WC136-428,31.03.2022,ADULT SOCIAL CARE,ADVANCE HEALTH CARE (UK) LTD,01/03/2022,498.84,6541-Domiciliary Care,THIRD PARTY PAYMENTS,PRIVATE CONTRACTOR,REVENUE
Walsall Council,http://opendatacommunities.org/id/metropolitan-district-council/walsall ,WC136-429,31.03.2022,ADULT SOCIAL CARE,ADVANCE HEALTH CARE (UK) LTD,01/03/2022,490.49,6541-Domiciliary Care,THIRD PARTY PAYMENTS,PRIVATE CONTRACTOR,REVENUE
Walsall Council,http://opendatacommunities.org/id/metropolitan-district-council/walsall ,WC136-430,31.03.2022,ADULT SOCIAL CARE,ADVANCE HEALTH CARE (UK) LTD,01/03/2022,871.92,6541-Domiciliary Care,THIRD PARTY PAYMENTS,PRIVATE CONTRACTOR,REVENUE
Walsall Council,http://opendatacommunities.org/id/metropolitan-district-council/walsall ,WC136-431,31.03.2022,ADULT SOCIAL CARE,ADVANCE HEALTH CARE (UK) LTD,01/03/2022,381.50,6541-Domiciliary Care,THIRD PARTY PAYMENTS,PRIVATE CONTRACTOR,REVENUE
Walsall Council,http://opendatacommunities.org/id/metropolitan-district-council/walsall ,WC136-432,31.03.2022,ADULT SOCIAL CARE,ADVANCE HEALTH CARE (UK) LTD,01/03/2022,490.49,6541-Domiciliary Care,THIRD PARTY PAYMENTS,PRIVATE CONTRACTOR,REVENUE
Walsall Council,http://opendatacommunities.org/id/metropolitan-district-council/walsall ,WC136-433,31.03.2022,ADULT SOCIAL CARE,ADVANCE HEALTH CARE (UK) LTD,01/03/2022,490.49,6541-Domiciliary Care,THIRD PARTY PAYMENTS,PRIVATE CONTRACTOR,REVENUE
Walsall Council,http://opendatacommunities.org/id/metropolitan-district-council/walsall ,WC136-434,31.03.2022,ADULT SOCIAL CARE,ADVANCE HEALTH CARE (UK) LTD,01/03/2022,544.95,6541-Domiciliary Care,THIRD PARTY PAYMENTS,PRIVATE CONTRACTOR,REVENUE
Walsall Council,http://opendatacommunities.org/id/metropolitan-district-council/walsall ,WC136-435,31.03.2022,ADULT SOCIAL CARE,ADVANCE HEALTH CARE (UK) LTD,01/03/2022,506.06,6541-Domiciliary Care,THIRD PARTY PAYMENTS,PRIVATE CONTRACTOR,REVENUE
Walsall Council,http://opendatacommunities.org/id/metropolitan-district-council/walsall ,WC136-436,31.03.2022,ADULT SOCIAL CARE,ADVANCE HEALTH CARE (UK) LTD,01/03/2022,490.49,6541-Domiciliary Care,THIRD PARTY PAYMENTS,PRIVATE CONTRACTOR,REVENUE
Walsall Council,http://opendatacommunities.org/id/metropolitan-district-council/walsall ,WC136-437,31.03.2022,ADULT SOCIAL CARE,ADVANCE HEALTH CARE (UK) LTD,01/03/2022,435.96,6541-Domiciliary Care,THIRD PARTY PAYMENTS,PRIVATE CONTRACTOR,REVENUE
Walsall Council,http://opendatacommunities.org/id/metropolitan-district-council/walsall ,WC136-438,31.03.2022,ADULT SOCIAL CARE,ADVANCE HEALTH CARE (UK) LTD,01/03/2022,490.49,6541-Domiciliary Care,THIRD PARTY PAYMENTS,PRIVATE CONTRACTOR,REVENUE
Walsall Council,http://opendatacommunities.org/id/metropolitan-district-council/walsall ,WC136-439,31.03.2022,ADULT SOCIAL CARE,ADVANCE HEALTH CARE (UK) LTD,01/03/2022,326.97,6541-Domiciliary Care,THIRD PARTY PAYMENTS,PRIVATE CONTRACTOR,REVENUE
Walsall Council,http://opendatacommunities.org/id/metropolitan-district-council/walsall ,WC136-440,31.03.2022,ADULT SOCIAL CARE,ADVANCE HEALTH CARE (UK) LTD,01/03/2022,454.16,6541-Domiciliary Care,THIRD PARTY PAYMENTS,PRIVATE CONTRACTOR,REVENUE
Walsall Council,http://opendatacommunities.org/id/metropolitan-district-council/walsall ,WC136-441,31.03.2022,ADULT SOCIAL CARE,ADVANCE HEALTH CARE (UK) LTD,01/03/2022,833.03,6541-Domiciliary Care,THIRD PARTY PAYMENTS,PRIVATE CONTRACTOR,REVENUE
Walsall Council,http://opendatacommunities.org/id/metropolitan-district-council/walsall ,WC136-442,31.03.2022,ADULT SOCIAL CARE,ADVANCE HEALTH CARE (UK) LTD,01/03/2022,490.49,6541-Domiciliary Care,THIRD PARTY PAYMENTS,PRIVATE CONTRACTOR,REVENUE
Walsall Council,http://opendatacommunities.org/id/metropolitan-district-council/walsall ,WC136-443,31.03.2022,ADULT SOCIAL CARE,ADVANCE HEALTH CARE (UK) LTD,01/03/2022,490.49,6541-Domiciliary Care,THIRD PARTY PAYMENTS,PRIVATE CONTRACTOR,REVENUE
Walsall Council,http://opendatacommunities.org/id/metropolitan-district-council/walsall ,WC136-444,31.03.2022,ADULT SOCIAL CARE,ADVANCE HEALTH CARE (UK) LTD,01/03/2022,524.19,6541-Domiciliary Care,THIRD PARTY PAYMENTS,PRIVATE CONTRACTOR,REVENUE
Walsall Council,http://opendatacommunities.org/id/metropolitan-district-council/walsall ,WC136-445,31.03.2022,ADULT SOCIAL CARE,ADVANCE HEALTH CARE (UK) LTD,01/03/2022,490.49,6541-Domiciliary Care,THIRD PARTY PAYMENTS,PRIVATE CONTRACTOR,REVENUE
Walsall Council,http://opendatacommunities.org/id/metropolitan-district-council/walsall ,WC136-446,31.03.2022,ADULT SOCIAL CARE,ADVANCE HEALTH CARE (UK) LTD,01/03/2022,490.49,6541-Domiciliary Care,THIRD PARTY PAYMENTS,PRIVATE CONTRACTOR,REVENUE
Walsall Council,http://opendatacommunities.org/id/metropolitan-district-council/walsall ,WC136-447,31.03.2022,ADULT SOCIAL CARE,ADVANCE HEALTH CARE (UK) LTD,01/03/2022,635.81,6541-Domiciliary Care,THIRD PARTY PAYMENTS,PRIVATE CONTRACTOR,REVENUE
Walsall Council,http://opendatacommunities.org/id/metropolitan-district-council/walsall ,WC136-448,31.03.2022,ADULT SOCIAL CARE,ADVANCE HEALTH CARE (UK) LTD,01/03/2022,537.20,6541-Domiciliary Care,THIRD PARTY PAYMENTS,PRIVATE CONTRACTOR,REVENUE
Walsall Council,http://opendatacommunities.org/id/metropolitan-district-council/walsall ,WC136-449,31.03.2022,ADULT SOCIAL CARE,ADVANCE HEALTH CARE (UK) LTD,01/03/2022,490.49,6541-Domiciliary Care,THIRD PARTY PAYMENTS,PRIVATE CONTRACTOR,REVENUE
Walsall Council,http://opendatacommunities.org/id/metropolitan-district-council/walsall ,WC136-450,31.03.2022,ADULT SOCIAL CARE,ADVANCE HEALTH CARE (UK) LTD,01/03/2022,490.49,6541-Domiciliary Care,THIRD PARTY PAYMENTS,PRIVATE CONTRACTOR,REVENUE
Walsall Council,http://opendatacommunities.org/id/metropolitan-district-council/walsall ,WC136-451,31.03.2022,ADULT SOCIAL CARE,ADVANCE HEALTH CARE (UK) LTD,01/03/2022,490.49,6541-Domiciliary Care,THIRD PARTY PAYMENTS,PRIVATE CONTRACTOR,REVENUE
Walsall Council,http://opendatacommunities.org/id/metropolitan-district-council/walsall ,WC136-452,31.03.2022,ADULT SOCIAL CARE,ADVANCE HEALTH CARE (UK) LTD,01/03/2022,363.30,6541-Domiciliary Care,THIRD PARTY PAYMENTS,PRIVATE CONTRACTOR,REVENUE
Walsall Council,http://opendatacommunities.org/id/metropolitan-district-council/walsall ,WC136-453,31.03.2022,ADULT SOCIAL CARE,ADVANCE HEALTH CARE (UK) LTD,01/03/2022,399.63,6541-Domiciliary Care,THIRD PARTY PAYMENTS,PRIVATE CONTRACTOR,REVENUE
Walsall Council,http://opendatacommunities.org/id/metropolitan-district-council/walsall ,WC136-454,31.03.2022,ADULT SOCIAL CARE,ADVANCE HEALTH CARE (UK) LTD,01/03/2022,326.97,6541-Domiciliary Care,THIRD PARTY PAYMENTS,PRIVATE CONTRACTOR,REVENUE
Walsall Council,http://opendatacommunities.org/id/metropolitan-district-council/walsall ,WC136-455,31.03.2022,ADULT SOCIAL CARE,ADVANCE HEALTH CARE (UK) LTD,01/03/2022,435.96,6541-Domiciliary Care,THIRD PARTY PAYMENTS,PRIVATE CONTRACTOR,REVENUE
Walsall Council,http://opendatacommunities.org/id/metropolitan-district-council/walsall ,WC136-456,31.03.2022,ADULT SOCIAL CARE,ADVANCE HEALTH CARE (UK) LTD,01/03/2022,435.96,6541-Domiciliary Care,THIRD PARTY PAYMENTS,PRIVATE CONTRACTOR,REVENUE
Walsall Council,http://opendatacommunities.org/id/metropolitan-district-council/walsall ,WC136-457,31.03.2022,ADULT SOCIAL CARE,ADVANCE HEALTH CARE (UK) LTD,01/03/2022,363.30,6541-Domiciliary Care,THIRD PARTY PAYMENTS,PRIVATE CONTRACTOR,REVENUE
Walsall Council,http://opendatacommunities.org/id/metropolitan-district-council/walsall ,WC136-458,31.03.2022,ADULT SOCIAL CARE,ADVANCE HEALTH CARE (UK) LTD,01/03/2022,490.49,6541-Domiciliary Care,THIRD PARTY PAYMENTS,PRIVATE CONTRACTOR,REVENUE
Walsall Council,http://opendatacommunities.org/id/metropolitan-district-council/walsall ,WC136-459,31.03.2022,ADULT SOCIAL CARE,ADVANCE HEALTH CARE (UK) LTD,01/03/2022,490.49,6541-Domiciliary Care,THIRD PARTY PAYMENTS,PRIVATE CONTRACTOR,REVENUE
Walsall Council,http://opendatacommunities.org/id/metropolitan-district-council/walsall ,WC136-460,31.03.2022,ADULT SOCIAL CARE,ADVANCE HEALTH CARE (UK) LTD,01/03/2022,326.97,6541-Domiciliary Care,THIRD PARTY PAYMENTS,PRIVATE CONTRACTOR,REVENUE
Walsall Council,http://opendatacommunities.org/id/metropolitan-district-council/walsall ,WC136-461,31.03.2022,ADULT SOCIAL CARE,ADVANCE HEALTH CARE (UK) LTD,09/03/2022,622.88,6541-Domiciliary Care,THIRD PARTY PAYMENTS,PRIVATE CONTRACTOR,REVENUE
Walsall Council,http://opendatacommunities.org/id/metropolitan-district-council/walsall ,WC136-462,31.03.2022,ADULT SOCIAL CARE,ADVANCE HEALTH CARE (UK) LTD,09/03/2022,"2,467.97",6541-Domiciliary Care,THIRD PARTY PAYMENTS,PRIVATE CONTRACTOR,REVENUE
Walsall Council,http://opendatacommunities.org/id/metropolitan-district-council/walsall ,WC136-463,31.03.2022,ADULT SOCIAL CARE,ADVANCE HEALTH CARE (UK) LTD,09/03/2022,381.49,6541-Domiciliary Care,THIRD PARTY PAYMENTS,PRIVATE CONTRACTOR,REVENUE
Walsall Council,http://opendatacommunities.org/id/metropolitan-district-council/walsall ,WC136-464,31.03.2022,ADULT SOCIAL CARE,ADVANCE HEALTH CARE (UK) LTD,09/03/2022,980.98,6541-Domiciliary Care,THIRD PARTY PAYMENTS,PRIVATE CONTRACTOR,REVENUE
Walsall Council,http://opendatacommunities.org/id/metropolitan-district-council/walsall ,WC136-465,31.03.2022,ADULT SOCIAL CARE,ADVANCE HEALTH CARE (UK) LTD,09/03/2022,981.40,6541-Domiciliary Care,THIRD PARTY PAYMENTS,PRIVATE CONTRACTOR,REVENUE
Walsall Council,http://opendatacommunities.org/id/metropolitan-district-council/walsall ,WC136-466,31.03.2022,ADULT SOCIAL CARE,ADVANCE HEALTH CARE (UK) LTD,09/03/2022,"1,276.74",6541-Domiciliary Care,THIRD PARTY PAYMENTS,PRIVATE CONTRACTOR,REVENUE
Walsall Council,http://opendatacommunities.org/id/metropolitan-district-council/walsall ,WC136-467,31.03.2022,ADULT SOCIAL CARE,ADVANCE HEALTH CARE (UK) LTD,09/03/2022,871.92,6541-Domiciliary Care,THIRD PARTY PAYMENTS,PRIVATE CONTRACTOR,REVENUE
Walsall Council,http://opendatacommunities.org/id/metropolitan-district-council/walsall ,WC136-468,31.03.2022,ADULT SOCIAL CARE,ADVANCE HEALTH CARE (UK) LTD,09/03/2022,910.91,6541-Domiciliary Care,THIRD PARTY PAYMENTS,PRIVATE CONTRACTOR,REVENUE
Walsall Council,http://opendatacommunities.org/id/metropolitan-district-council/walsall ,WC136-469,31.03.2022,ADULT SOCIAL CARE,ADVANCE HEALTH CARE (UK) LTD,14/03/2022,833.03,6541-Domiciliary Care,THIRD PARTY PAYMENTS,PRIVATE CONTRACTOR,REVENUE
Walsall Council,http://opendatacommunities.org/id/metropolitan-district-council/walsall ,WC136-470,31.03.2022,ADULT SOCIAL CARE,ADVANCE HEALTH CARE (UK) LTD,14/03/2022,490.49,6541-Domiciliary Care,THIRD PARTY PAYMENTS,PRIVATE CONTRACTOR,REVENUE
Walsall Council,http://opendatacommunities.org/id/metropolitan-district-council/walsall ,WC136-471,31.03.2022,ADULT SOCIAL CARE,ADVANCE HEALTH CARE (UK) LTD,14/03/2022,490.49,6541-Domiciliary Care,THIRD PARTY PAYMENTS,PRIVATE CONTRACTOR,REVENUE
Walsall Council,http://opendatacommunities.org/id/metropolitan-district-council/walsall ,WC136-472,31.03.2022,ADULT SOCIAL CARE,ADVANCE HEALTH CARE (UK) LTD,14/03/2022,524.19,6541-Domiciliary Care,THIRD PARTY PAYMENTS,PRIVATE CONTRACTOR,REVENUE
Walsall Council,http://opendatacommunities.org/id/metropolitan-district-council/walsall ,WC136-473,31.03.2022,ADULT SOCIAL CARE,ADVANCE HEALTH CARE (UK) LTD,14/03/2022,490.49,6541-Domiciliary Care,THIRD PARTY PAYMENTS,PRIVATE CONTRACTOR,REVENUE
Walsall Council,http://opendatacommunities.org/id/metropolitan-district-council/walsall ,WC136-474,31.03.2022,ADULT SOCIAL CARE,ADVANCE HEALTH CARE (UK) LTD,14/03/2022,490.49,6541-Domiciliary Care,THIRD PARTY PAYMENTS,PRIVATE CONTRACTOR,REVENUE
Walsall Council,http://opendatacommunities.org/id/metropolitan-district-council/walsall ,WC136-475,31.03.2022,ADULT SOCIAL CARE,ADVANCE HEALTH CARE (UK) LTD,14/03/2022,635.81,6541-Domiciliary Care,THIRD PARTY PAYMENTS,PRIVATE CONTRACTOR,REVENUE
Walsall Council,http://opendatacommunities.org/id/metropolitan-district-council/walsall ,WC136-476,31.03.2022,ADULT SOCIAL CARE,ADVANCE HEALTH CARE (UK) LTD,14/03/2022,537.20,6541-Domiciliary Care,THIRD PARTY PAYMENTS,PRIVATE CONTRACTOR,REVENUE
Walsall Council,http://opendatacommunities.org/id/metropolitan-district-council/walsall ,WC136-477,31.03.2022,ADULT SOCIAL CARE,ADVANCE HEALTH CARE (UK) LTD,14/03/2022,490.49,6541-Domiciliary Care,THIRD PARTY PAYMENTS,PRIVATE CONTRACTOR,REVENUE
Walsall Council,http://opendatacommunities.org/id/metropolitan-district-council/walsall ,WC136-478,31.03.2022,ADULT SOCIAL CARE,ADVANCE HEALTH CARE (UK) LTD,14/03/2022,363.30,6541-Domiciliary Care,THIRD PARTY PAYMENTS,PRIVATE CONTRACTOR,REVENUE
Walsall Council,http://opendatacommunities.org/id/metropolitan-district-council/walsall ,WC136-479,31.03.2022,ADULT SOCIAL CARE,ADVANCE HEALTH CARE (UK) LTD,14/03/2022,399.63,6541-Domiciliary Care,THIRD PARTY PAYMENTS,PRIVATE CONTRACTOR,REVENUE
Walsall Council,http://opendatacommunities.org/id/metropolitan-district-council/walsall ,WC136-480,31.03.2022,ADULT SOCIAL CARE,ADVANCE HEALTH CARE (UK) LTD,14/03/2022,490.49,6541-Domiciliary Care,THIRD PARTY PAYMENTS,PRIVATE CONTRACTOR,REVENUE
Walsall Council,http://opendatacommunities.org/id/metropolitan-district-council/walsall ,WC136-481,31.03.2022,ADULT SOCIAL CARE,ADVANCE HEALTH CARE (UK) LTD,14/03/2022,490.49,6541-Domiciliary Care,THIRD PARTY PAYMENTS,PRIVATE CONTRACTOR,REVENUE
Walsall Council,http://opendatacommunities.org/id/metropolitan-district-council/walsall ,WC136-482,31.03.2022,ADULT SOCIAL CARE,ADVANCE HEALTH CARE (UK) LTD,14/03/2022,871.92,6541-Domiciliary Care,THIRD PARTY PAYMENTS,PRIVATE CONTRACTOR,REVENUE
Walsall Council,http://opendatacommunities.org/id/metropolitan-district-council/walsall ,WC136-483,31.03.2022,ADULT SOCIAL CARE,ADVANCE HEALTH CARE (UK) LTD,14/03/2022,381.50,6541-Domiciliary Care,THIRD PARTY PAYMENTS,PRIVATE CONTRACTOR,REVENUE
Walsall Council,http://opendatacommunities.org/id/metropolitan-district-council/walsall ,WC136-484,31.03.2022,ADULT SOCIAL CARE,ADVANCE HEALTH CARE (UK) LTD,14/03/2022,435.96,6541-Domiciliary Care,THIRD PARTY PAYMENTS,PRIVATE CONTRACTOR,REVENUE
Walsall Council,http://opendatacommunities.org/id/metropolitan-district-council/walsall ,WC136-485,31.03.2022,ADULT SOCIAL CARE,ADVANCE HEALTH CARE (UK) LTD,14/03/2022,490.49,6541-Domiciliary Care,THIRD PARTY PAYMENTS,PRIVATE CONTRACTOR,REVENUE
Walsall Council,http://opendatacommunities.org/id/metropolitan-district-council/walsall ,WC136-486,31.03.2022,ADULT SOCIAL CARE,ADVANCE HEALTH CARE (UK) LTD,14/03/2022,490.49,6541-Domiciliary Care,THIRD PARTY PAYMENTS,PRIVATE CONTRACTOR,REVENUE
Walsall Council,http://opendatacommunities.org/id/metropolitan-district-council/walsall ,WC136-487,31.03.2022,ADULT SOCIAL CARE,ADVANCE HEALTH CARE (UK) LTD,14/03/2022,490.49,6541-Domiciliary Care,THIRD PARTY PAYMENTS,PRIVATE CONTRACTOR,REVENUE
Walsall Council,http://opendatacommunities.org/id/metropolitan-district-council/walsall ,WC136-488,31.03.2022,ADULT SOCIAL CARE,ADVANCE HEALTH CARE (UK) LTD,14/03/2022,490.49,6541-Domiciliary Care,THIRD PARTY PAYMENTS,PRIVATE CONTRACTOR,REVENUE
Walsall Council,http://opendatacommunities.org/id/metropolitan-district-council/walsall ,WC136-489,31.03.2022,ADULT SOCIAL CARE,ADVANCE HEALTH CARE (UK) LTD,14/03/2022,435.96,6541-Domiciliary Care,THIRD PARTY PAYMENTS,PRIVATE CONTRACTOR,REVENUE
Walsall Council,http://opendatacommunities.org/id/metropolitan-district-council/walsall ,WC136-490,31.03.2022,ADULT SOCIAL CARE,ADVANCE HEALTH CARE (UK) LTD,14/03/2022,326.97,6541-Domiciliary Care,THIRD PARTY PAYMENTS,PRIVATE CONTRACTOR,REVENUE
Walsall Council,http://opendatacommunities.org/id/metropolitan-district-council/walsall ,WC136-491,31.03.2022,ADULT SOCIAL CARE,ADVANCE HEALTH CARE (UK) LTD,14/03/2022,490.49,6541-Domiciliary Care,THIRD PARTY PAYMENTS,PRIVATE CONTRACTOR,REVENUE
Walsall Council,http://opendatacommunities.org/id/metropolitan-district-council/walsall ,WC136-492,31.03.2022,ADULT SOCIAL CARE,ADVANCE HEALTH CARE (UK) LTD,14/03/2022,490.49,6541-Domiciliary Care,THIRD PARTY PAYMENTS,PRIVATE CONTRACTOR,REVENUE
Walsall Council,http://opendatacommunities.org/id/metropolitan-district-council/walsall ,WC136-493,31.03.2022,ADULT SOCIAL CARE,ADVANCE HEALTH CARE (UK) LTD,14/03/2022,544.95,6541-Domiciliary Care,THIRD PARTY PAYMENTS,PRIVATE CONTRACTOR,REVENUE
Walsall Council,http://opendatacommunities.org/id/metropolitan-district-council/walsall ,WC136-494,31.03.2022,ADULT SOCIAL CARE,ADVANCE HEALTH CARE (UK) LTD,14/03/2022,326.97,6541-Domiciliary Care,THIRD PARTY PAYMENTS,PRIVATE CONTRACTOR,REVENUE
Walsall Council,http://opendatacommunities.org/id/metropolitan-district-council/walsall ,WC136-495,31.03.2022,ADULT SOCIAL CARE,ADVANCE HEALTH CARE (UK) LTD,14/03/2022,454.16,6541-Domiciliary Care,THIRD PARTY PAYMENTS,PRIVATE CONTRACTOR,REVENUE
Walsall Council,http://opendatacommunities.org/id/metropolitan-district-council/walsall ,WC136-496,31.03.2022,ADULT SOCIAL CARE,ADVANCE HEALTH CARE (UK) LTD,14/03/2022,490.49,6541-Domiciliary Care,THIRD PARTY PAYMENTS,PRIVATE CONTRACTOR,REVENUE
Walsall Council,http://opendatacommunities.org/id/metropolitan-district-council/walsall ,WC136-497,31.03.2022,ADULT SOCIAL CARE,ADVANCE HEALTH CARE (UK) LTD,14/03/2022,490.49,6541-Domiciliary Care,THIRD PARTY PAYMENTS,PRIVATE CONTRACTOR,REVENUE
Walsall Council,http://opendatacommunities.org/id/metropolitan-district-council/walsall ,WC136-498,31.03.2022,ADULT SOCIAL CARE,ADVANCE HEALTH CARE (UK) LTD,14/03/2022,506.06,6541-Domiciliary Care,THIRD PARTY PAYMENTS,PRIVATE CONTRACTOR,REVENUE
Walsall Council,http://opendatacommunities.org/id/metropolitan-district-council/walsall ,WC136-499,31.03.2022,ADULT SOCIAL CARE,ADVANCE HEALTH CARE (UK) LTD,14/03/2022,490.49,6541-Domiciliary Care,THIRD PARTY PAYMENTS,PRIVATE CONTRACTOR,REVENUE
Walsall Council,http://opendatacommunities.org/id/metropolitan-district-council/walsall ,WC136-500,31.03.2022,ADULT SOCIAL CARE,ADVANCE HEALTH CARE (UK) LTD,14/03/2022,326.97,6541-Domiciliary Care,THIRD PARTY PAYMENTS,PRIVATE CONTRACTOR,REVENUE
Walsall Council,http://opendatacommunities.org/id/metropolitan-district-council/walsall ,WC136-501,31.03.2022,ADULT SOCIAL CARE,ADVANCE HEALTH CARE (UK) LTD,14/03/2022,544.95,6541-Domiciliary Care,THIRD PARTY PAYMENTS,PRIVATE CONTRACTOR,REVENUE
Walsall Council,http://opendatacommunities.org/id/metropolitan-district-council/walsall ,WC136-502,31.03.2022,ADULT SOCIAL CARE,ADVANCE HEALTH CARE (UK) LTD,14/03/2022,498.84,6541-Domiciliary Care,THIRD PARTY PAYMENTS,PRIVATE CONTRACTOR,REVENUE
Walsall Council,http://opendatacommunities.org/id/metropolitan-district-council/walsall ,WC136-503,31.03.2022,ADULT SOCIAL CARE,ADVANCE HEALTH CARE (UK) LTD,14/03/2022,363.30,6541-Domiciliary Care,THIRD PARTY PAYMENTS,PRIVATE CONTRACTOR,REVENUE
Walsall Council,http://opendatacommunities.org/id/metropolitan-district-council/walsall ,WC136-504,31.03.2022,ADULT SOCIAL CARE,ADVANCE HEALTH CARE (UK) LTD,14/03/2022,490.49,6541-Domiciliary Care,THIRD PARTY PAYMENTS,PRIVATE CONTRACTOR,REVENUE
Walsall Council,http://opendatacommunities.org/id/metropolitan-district-council/walsall ,WC136-505,31.03.2022,ADULT SOCIAL CARE,ADVANCE HEALTH CARE (UK) LTD,14/03/2022,435.96,6541-Domiciliary Care,THIRD PARTY PAYMENTS,PRIVATE CONTRACTOR,REVENUE
Walsall Council,http://opendatacommunities.org/id/metropolitan-district-council/walsall ,WC136-506,31.03.2022,ADULT SOCIAL CARE,ADVANCE HEALTH CARE (UK) LTD,14/03/2022,381.50,6541-Domiciliary Care,THIRD PARTY PAYMENTS,PRIVATE CONTRACTOR,REVENUE
Walsall Council,http://opendatacommunities.org/id/metropolitan-district-council/walsall ,WC136-507,31.03.2022,ADULT SOCIAL CARE,ADVANCE HEALTH CARE (UK) LTD,14/03/2022,490.49,6541-Domiciliary Care,THIRD PARTY PAYMENTS,PRIVATE CONTRACTOR,REVENUE
Walsall Council,http://opendatacommunities.org/id/metropolitan-district-council/walsall ,WC136-508,31.03.2022,ADULT SOCIAL CARE,ADVANCE HEALTH CARE (UK) LTD,14/03/2022,454.16,6541-Domiciliary Care,THIRD PARTY PAYMENTS,PRIVATE CONTRACTOR,REVENUE
Walsall Council,http://opendatacommunities.org/id/metropolitan-district-council/walsall ,WC136-509,31.03.2022,ADULT SOCIAL CARE,ADVANCE HEALTH CARE (UK) LTD,14/03/2022,833.03,6541-Domiciliary Care,THIRD PARTY PAYMENTS,PRIVATE CONTRACTOR,REVENUE
Walsall Council,http://opendatacommunities.org/id/metropolitan-district-council/walsall ,WC136-510,31.03.2022,ADULT SOCIAL CARE,ADVANCE HEALTH CARE (UK) LTD,14/03/2022,490.49,6541-Domiciliary Care,THIRD PARTY PAYMENTS,PRIVATE CONTRACTOR,REVENUE
Walsall Council,http://opendatacommunities.org/id/metropolitan-district-council/walsall ,WC136-511,31.03.2022,ADULT SOCIAL CARE,ADVANCE HEALTH CARE (UK) LTD,14/03/2022,490.49,6541-Domiciliary Care,THIRD PARTY PAYMENTS,PRIVATE CONTRACTOR,REVENUE
Walsall Council,http://opendatacommunities.org/id/metropolitan-district-council/walsall ,WC136-512,31.03.2022,ADULT SOCIAL CARE,ADVANCE HEALTH CARE (UK) LTD,14/03/2022,524.19,6541-Domiciliary Care,THIRD PARTY PAYMENTS,PRIVATE CONTRACTOR,REVENUE
Walsall Council,http://opendatacommunities.org/id/metropolitan-district-council/walsall ,WC136-513,31.03.2022,ADULT SOCIAL CARE,ADVANCE HEALTH CARE (UK) LTD,14/03/2022,490.49,6541-Domiciliary Care,THIRD PARTY PAYMENTS,PRIVATE CONTRACTOR,REVENUE
Walsall Council,http://opendatacommunities.org/id/metropolitan-district-council/walsall ,WC136-514,31.03.2022,ADULT SOCIAL CARE,ADVANCE HEALTH CARE (UK) LTD,14/03/2022,490.49,6541-Domiciliary Care,THIRD PARTY PAYMENTS,PRIVATE CONTRACTOR,REVENUE
Walsall Council,http://opendatacommunities.org/id/metropolitan-district-council/walsall ,WC136-515,31.03.2022,ADULT SOCIAL CARE,ADVANCE HEALTH CARE (UK) LTD,14/03/2022,490.49,6541-Domiciliary Care,THIRD PARTY PAYMENTS,PRIVATE CONTRACTOR,REVENUE
Walsall Council,http://opendatacommunities.org/id/metropolitan-district-council/walsall ,WC136-516,31.03.2022,ADULT SOCIAL CARE,ADVANCE HEALTH CARE (UK) LTD,14/03/2022,490.49,6541-Domiciliary Care,THIRD PARTY PAYMENTS,PRIVATE CONTRACTOR,REVENUE
Walsall Council,http://opendatacommunities.org/id/metropolitan-district-council/walsall ,WC136-517,31.03.2022,ADULT SOCIAL CARE,ADVANCE HEALTH CARE (UK) LTD,14/03/2022,435.96,6541-Domiciliary Care,THIRD PARTY PAYMENTS,PRIVATE CONTRACTOR,REVENUE
Walsall Council,http://opendatacommunities.org/id/metropolitan-district-council/walsall ,WC136-518,31.03.2022,ADULT SOCIAL CARE,ADVANCE HEALTH CARE (UK) LTD,14/03/2022,381.50,6541-Domiciliary Care,THIRD PARTY PAYMENTS,PRIVATE CONTRACTOR,REVENUE
Walsall Council,http://opendatacommunities.org/id/metropolitan-district-council/walsall ,WC136-519,31.03.2022,ADULT SOCIAL CARE,ADVANCE HEALTH CARE (UK) LTD,14/03/2022,490.49,6541-Domiciliary Care,THIRD PARTY PAYMENTS,PRIVATE CONTRACTOR,REVENUE
Walsall Council,http://opendatacommunities.org/id/metropolitan-district-council/walsall ,WC136-520,31.03.2022,ADULT SOCIAL CARE,ADVANCE HEALTH CARE (UK) LTD,14/03/2022,653.94,6541-Domiciliary Care,THIRD PARTY PAYMENTS,PRIVATE CONTRACTOR,REVENUE
Walsall Council,http://opendatacommunities.org/id/metropolitan-district-council/walsall ,WC136-521,31.03.2022,ADULT SOCIAL CARE,ADVANCE HEALTH CARE (UK) LTD,14/03/2022,"1,089.90",6541-Domiciliary Care,THIRD PARTY PAYMENTS,PRIVATE CONTRACTOR,REVENUE
Walsall Council,http://opendatacommunities.org/id/metropolitan-district-council/walsall ,WC136-522,31.03.2022,ADULT SOCIAL CARE,ADVANCE HEALTH CARE (UK) LTD,14/03/2022,490.49,6541-Domiciliary Care,THIRD PARTY PAYMENTS,PRIVATE CONTRACTOR,REVENUE
Walsall Council,http://opendatacommunities.org/id/metropolitan-district-council/walsall ,WC136-523,31.03.2022,ADULT SOCIAL CARE,ADVANCE HEALTH CARE (UK) LTD,14/03/2022,544.95,6541-Domiciliary Care,THIRD PARTY PAYMENTS,PRIVATE CONTRACTOR,REVENUE
Walsall Council,http://opendatacommunities.org/id/metropolitan-district-council/walsall ,WC136-524,31.03.2022,ADULT SOCIAL CARE,ADVANCE HEALTH CARE (UK) LTD,14/03/2022,498.84,6541-Domiciliary Care,THIRD PARTY PAYMENTS,PRIVATE CONTRACTOR,REVENUE
Walsall Council,http://opendatacommunities.org/id/metropolitan-district-council/walsall ,WC136-525,31.03.2022,ADULT SOCIAL CARE,ADVANCE HEALTH CARE (UK) LTD,14/03/2022,454.16,6541-Domiciliary Care,THIRD PARTY PAYMENTS,PRIVATE CONTRACTOR,REVENUE
Walsall Council,http://opendatacommunities.org/id/metropolitan-district-council/walsall ,WC136-526,31.03.2022,ADULT SOCIAL CARE,ADVANCE HEALTH CARE (UK) LTD,14/03/2022,490.49,6541-Domiciliary Care,THIRD PARTY PAYMENTS,PRIVATE CONTRACTOR,REVENUE
Walsall Council,http://opendatacommunities.org/id/metropolitan-district-council/walsall ,WC136-527,31.03.2022,ADULT SOCIAL CARE,ADVANCE HEALTH CARE (UK) LTD,14/03/2022,435.96,6541-Domiciliary Care,THIRD PARTY PAYMENTS,PRIVATE CONTRACTOR,REVENUE
Walsall Council,http://opendatacommunities.org/id/metropolitan-district-council/walsall ,WC136-528,31.03.2022,ADULT SOCIAL CARE,ADVANCE HEALTH CARE (UK) LTD,14/03/2022,490.49,6541-Domiciliary Care,THIRD PARTY PAYMENTS,PRIVATE CONTRACTOR,REVENUE
Walsall Council,http://opendatacommunities.org/id/metropolitan-district-council/walsall ,WC136-529,31.03.2022,ADULT SOCIAL CARE,ADVANCE HEALTH CARE (UK) LTD,14/03/2022,326.97,6541-Domiciliary Care,THIRD PARTY PAYMENTS,PRIVATE CONTRACTOR,REVENUE
Walsall Council,http://opendatacommunities.org/id/metropolitan-district-council/walsall ,WC136-530,31.03.2022,ADULT SOCIAL CARE,ADVANCE HEALTH CARE (UK) LTD,14/03/2022,454.16,6541-Domiciliary Care,THIRD PARTY PAYMENTS,PRIVATE CONTRACTOR,REVENUE
Walsall Council,http://opendatacommunities.org/id/metropolitan-district-council/walsall ,WC136-531,31.03.2022,ADULT SOCIAL CARE,ADVANCE HEALTH CARE (UK) LTD,14/03/2022,490.49,6541-Domiciliary Care,THIRD PARTY PAYMENTS,PRIVATE CONTRACTOR,REVENUE
Walsall Council,http://opendatacommunities.org/id/metropolitan-district-council/walsall ,WC136-532,31.03.2022,ADULT SOCIAL CARE,ADVANCE HEALTH CARE (UK) LTD,14/03/2022,635.81,6541-Domiciliary Care,THIRD PARTY PAYMENTS,PRIVATE CONTRACTOR,REVENUE
Walsall Council,http://opendatacommunities.org/id/metropolitan-district-council/walsall ,WC136-533,31.03.2022,ADULT SOCIAL CARE,ADVANCE HEALTH CARE (UK) LTD,14/03/2022,537.20,6541-Domiciliary Care,THIRD PARTY PAYMENTS,PRIVATE CONTRACTOR,REVENUE
Walsall Council,http://opendatacommunities.org/id/metropolitan-district-council/walsall ,WC136-534,31.03.2022,ADULT SOCIAL CARE,ADVANCE HEALTH CARE (UK) LTD,14/03/2022,490.49,6541-Domiciliary Care,THIRD PARTY PAYMENTS,PRIVATE CONTRACTOR,REVENUE
Walsall Council,http://opendatacommunities.org/id/metropolitan-district-council/walsall ,WC136-535,31.03.2022,ADULT SOCIAL CARE,ADVANCE HEALTH CARE (UK) LTD,14/03/2022,980.98,6541-Domiciliary Care,THIRD PARTY PAYMENTS,PRIVATE CONTRACTOR,REVENUE
Walsall Council,http://opendatacommunities.org/id/metropolitan-district-council/walsall ,WC136-536,31.03.2022,ADULT SOCIAL CARE,ADVANCE HEALTH CARE (UK) LTD,14/03/2022,980.98,6541-Domiciliary Care,THIRD PARTY PAYMENTS,PRIVATE CONTRACTOR,REVENUE
Walsall Council,http://opendatacommunities.org/id/metropolitan-district-council/walsall ,WC136-537,31.03.2022,ADULT SOCIAL CARE,ADVANCE HEALTH CARE (UK) LTD,14/03/2022,363.30,6541-Domiciliary Care,THIRD PARTY PAYMENTS,PRIVATE CONTRACTOR,REVENUE
Walsall Council,http://opendatacommunities.org/id/metropolitan-district-council/walsall ,WC136-538,31.03.2022,ADULT SOCIAL CARE,ADVANCE HEALTH CARE (UK) LTD,14/03/2022,399.63,6541-Domiciliary Care,THIRD PARTY PAYMENTS,PRIVATE CONTRACTOR,REVENUE
Walsall Council,http://opendatacommunities.org/id/metropolitan-district-council/walsall ,WC136-539,31.03.2022,ADULT SOCIAL CARE,ADVANCE HEALTH CARE (UK) LTD,14/03/2022,326.97,6541-Domiciliary Care,THIRD PARTY PAYMENTS,PRIVATE CONTRACTOR,REVENUE
Walsall Council,http://opendatacommunities.org/id/metropolitan-district-council/walsall ,WC136-540,31.03.2022,ADULT SOCIAL CARE,ADVANCE HEALTH CARE (UK) LTD,14/03/2022,490.49,6541-Domiciliary Care,THIRD PARTY PAYMENTS,PRIVATE CONTRACTOR,REVENUE
Walsall Council,http://opendatacommunities.org/id/metropolitan-district-council/walsall ,WC136-541,31.03.2022,ADULT SOCIAL CARE,ADVANCE HEALTH CARE (UK) LTD,14/03/2022,871.92,6541-Domiciliary Care,THIRD PARTY PAYMENTS,PRIVATE CONTRACTOR,REVENUE
Walsall Council,http://opendatacommunities.org/id/metropolitan-district-council/walsall ,WC136-542,31.03.2022,ADULT SOCIAL CARE,ADVANCE HEALTH CARE (UK) LTD,14/03/2022,381.50,6541-Domiciliary Care,THIRD PARTY PAYMENTS,PRIVATE CONTRACTOR,REVENUE
Walsall Council,http://opendatacommunities.org/id/metropolitan-district-council/walsall ,WC136-543,31.03.2022,ADULT SOCIAL CARE,ADVANCE HEALTH CARE (UK) LTD,14/03/2022,490.49,6541-Domiciliary Care,THIRD PARTY PAYMENTS,PRIVATE CONTRACTOR,REVENUE
Walsall Council,http://opendatacommunities.org/id/metropolitan-district-council/walsall ,WC136-544,31.03.2022,ADULT SOCIAL CARE,ADVANCE HEALTH CARE (UK) LTD,14/03/2022,490.49,6541-Domiciliary Care,THIRD PARTY PAYMENTS,PRIVATE CONTRACTOR,REVENUE
Walsall Council,http://opendatacommunities.org/id/metropolitan-district-council/walsall ,WC136-545,31.03.2022,ADULT SOCIAL CARE,ADVANCE HEALTH CARE (UK) LTD,14/03/2022,490.49,6541-Domiciliary Care,THIRD PARTY PAYMENTS,PRIVATE CONTRACTOR,REVENUE
Walsall Council,http://opendatacommunities.org/id/metropolitan-district-council/walsall ,WC136-546,31.03.2022,ADULT SOCIAL CARE,ADVANCE HEALTH CARE (UK) LTD,14/03/2022,544.95,6541-Domiciliary Care,THIRD PARTY PAYMENTS,PRIVATE CONTRACTOR,REVENUE
Walsall Council,http://opendatacommunities.org/id/metropolitan-district-council/walsall ,WC136-547,31.03.2022,ADULT SOCIAL CARE,ADVANCE HEALTH CARE (UK) LTD,14/03/2022,490.49,6541-Domiciliary Care,THIRD PARTY PAYMENTS,PRIVATE CONTRACTOR,REVENUE
Walsall Council,http://opendatacommunities.org/id/metropolitan-district-council/walsall ,WC136-548,31.03.2022,ADULT SOCIAL CARE,ADVANCE HEALTH CARE (UK) LTD,14/03/2022,326.97,6541-Domiciliary Care,THIRD PARTY PAYMENTS,PRIVATE CONTRACTOR,REVENUE
Walsall Council,http://opendatacommunities.org/id/metropolitan-district-council/walsall ,WC136-549,31.03.2022,ADULT SOCIAL CARE,ADVANCE HEALTH CARE (UK) LTD,14/03/2022,506.06,6541-Domiciliary Care,THIRD PARTY PAYMENTS,PRIVATE CONTRACTOR,REVENUE
Walsall Council,http://opendatacommunities.org/id/metropolitan-district-council/walsall ,WC136-550,31.03.2022,ADULT SOCIAL CARE,ADVANCE HEALTH CARE (UK) LTD,14/03/2022,490.49,6541-Domiciliary Care,THIRD PARTY PAYMENTS,PRIVATE CONTRACTOR,REVENUE
Walsall Council,http://opendatacommunities.org/id/metropolitan-district-council/walsall ,WC136-551,31.03.2022,ADULT SOCIAL CARE,ADVANCE HEALTH CARE (UK) LTD,14/03/2022,435.96,6541-Domiciliary Care,THIRD PARTY PAYMENTS,PRIVATE CONTRACTOR,REVENUE
Walsall Council,http://opendatacommunities.org/id/metropolitan-district-council/walsall ,WC136-552,31.03.2022,ADULT SOCIAL CARE,ADVANCE HEALTH CARE (UK) LTD,29/03/2022,833.03,6541-Domiciliary Care,THIRD PARTY PAYMENTS,PRIVATE CONTRACTOR,REVENUE
Walsall Council,http://opendatacommunities.org/id/metropolitan-district-council/walsall ,WC136-553,31.03.2022,ADULT SOCIAL CARE,ADVANCE HEALTH CARE (UK) LTD,29/03/2022,490.49,6541-Domiciliary Care,THIRD PARTY PAYMENTS,PRIVATE CONTRACTOR,REVENUE
Walsall Council,http://opendatacommunities.org/id/metropolitan-district-council/walsall ,WC136-554,31.03.2022,ADULT SOCIAL CARE,ADVANCE HEALTH CARE (UK) LTD,29/03/2022,490.49,6541-Domiciliary Care,THIRD PARTY PAYMENTS,PRIVATE CONTRACTOR,REVENUE
Walsall Council,http://opendatacommunities.org/id/metropolitan-district-council/walsall ,WC136-555,31.03.2022,ADULT SOCIAL CARE,ADVANCE HEALTH CARE (UK) LTD,29/03/2022,524.19,6541-Domiciliary Care,THIRD PARTY PAYMENTS,PRIVATE CONTRACTOR,REVENUE
Walsall Council,http://opendatacommunities.org/id/metropolitan-district-council/walsall ,WC136-556,31.03.2022,ADULT SOCIAL CARE,ADVANCE HEALTH CARE (UK) LTD,29/03/2022,490.49,6541-Domiciliary Care,THIRD PARTY PAYMENTS,PRIVATE CONTRACTOR,REVENUE
Walsall Council,http://opendatacommunities.org/id/metropolitan-district-council/walsall ,WC136-557,31.03.2022,ADULT SOCIAL CARE,ADVANCE HEALTH CARE (UK) LTD,29/03/2022,490.49,6541-Domiciliary Care,THIRD PARTY PAYMENTS,PRIVATE CONTRACTOR,REVENUE
Walsall Council,http://opendatacommunities.org/id/metropolitan-district-council/walsall ,WC136-558,31.03.2022,ADULT SOCIAL CARE,ADVANCE HEALTH CARE (UK) LTD,29/03/2022,435.96,6541-Domiciliary Care,THIRD PARTY PAYMENTS,PRIVATE CONTRACTOR,REVENUE
Walsall Council,http://opendatacommunities.org/id/metropolitan-district-council/walsall ,WC136-559,31.03.2022,ADULT SOCIAL CARE,ADVANCE HEALTH CARE (UK) LTD,29/03/2022,490.49,6541-Domiciliary Care,THIRD PARTY PAYMENTS,PRIVATE CONTRACTOR,REVENUE
Walsall Council,http://opendatacommunities.org/id/metropolitan-district-council/walsall ,WC136-560,31.03.2022,ADULT SOCIAL CARE,ADVANCE HEALTH CARE (UK) LTD,29/03/2022,490.49,6541-Domiciliary Care,THIRD PARTY PAYMENTS,PRIVATE CONTRACTOR,REVENUE
Walsall Council,http://opendatacommunities.org/id/metropolitan-district-council/walsall ,WC136-561,31.03.2022,ADULT SOCIAL CARE,ADVANCE HEALTH CARE (UK) LTD,29/03/2022,490.49,6541-Domiciliary Care,THIRD PARTY PAYMENTS,PRIVATE CONTRACTOR,REVENUE
Walsall Council,http://opendatacommunities.org/id/metropolitan-district-council/walsall ,WC136-562,31.03.2022,ADULT SOCIAL CARE,ADVANCE HEALTH CARE (UK) LTD,29/03/2022,490.49,6541-Domiciliary Care,THIRD PARTY PAYMENTS,PRIVATE CONTRACTOR,REVENUE
Walsall Council,http://opendatacommunities.org/id/metropolitan-district-council/walsall ,WC136-563,31.03.2022,ADULT SOCIAL CARE,ADVANCE HEALTH CARE (UK) LTD,29/03/2022,635.81,6541-Domiciliary Care,THIRD PARTY PAYMENTS,PRIVATE CONTRACTOR,REVENUE
Walsall Council,http://opendatacommunities.org/id/metropolitan-district-council/walsall ,WC136-564,31.03.2022,ADULT SOCIAL CARE,ADVANCE HEALTH CARE (UK) LTD,29/03/2022,537.20,6541-Domiciliary Care,THIRD PARTY PAYMENTS,PRIVATE CONTRACTOR,REVENUE
Walsall Council,http://opendatacommunities.org/id/metropolitan-district-council/walsall ,WC136-565,31.03.2022,ADULT SOCIAL CARE,ADVANCE HEALTH CARE (UK) LTD,29/03/2022,363.30,6541-Domiciliary Care,THIRD PARTY PAYMENTS,PRIVATE CONTRACTOR,REVENUE
Walsall Council,http://opendatacommunities.org/id/metropolitan-district-council/walsall ,WC136-566,31.03.2022,ADULT SOCIAL CARE,ADVANCE HEALTH CARE (UK) LTD,29/03/2022,399.63,6541-Domiciliary Care,THIRD PARTY PAYMENTS,PRIVATE CONTRACTOR,REVENUE
Walsall Council,http://opendatacommunities.org/id/metropolitan-district-council/walsall ,WC136-567,31.03.2022,ADULT SOCIAL CARE,ADVANCE HEALTH CARE (UK) LTD,29/03/2022,544.95,6541-Domiciliary Care,THIRD PARTY PAYMENTS,PRIVATE CONTRACTOR,REVENUE
Walsall Council,http://opendatacommunities.org/id/metropolitan-district-council/walsall ,WC136-568,31.03.2022,ADULT SOCIAL CARE,ADVANCE HEALTH CARE (UK) LTD,29/03/2022,498.84,6541-Domiciliary Care,THIRD PARTY PAYMENTS,PRIVATE CONTRACTOR,REVENUE
Walsall Council,http://opendatacommunities.org/id/metropolitan-district-council/walsall ,WC136-569,31.03.2022,ADULT SOCIAL CARE,ADVANCE HEALTH CARE (UK) LTD,29/03/2022,326.97,6541-Domiciliary Care,THIRD PARTY PAYMENTS,PRIVATE CONTRACTOR,REVENUE
Walsall Council,http://opendatacommunities.org/id/metropolitan-district-council/walsall ,WC136-570,31.03.2022,ADULT SOCIAL CARE,ADVANCE HEALTH CARE (UK) LTD,29/03/2022,326.97,6541-Domiciliary Care,THIRD PARTY PAYMENTS,PRIVATE CONTRACTOR,REVENUE
Walsall Council,http://opendatacommunities.org/id/metropolitan-district-council/walsall ,WC136-571,31.03.2022,ADULT SOCIAL CARE,ADVANCE HEALTH CARE (UK) LTD,29/03/2022,435.96,6541-Domiciliary Care,THIRD PARTY PAYMENTS,PRIVATE CONTRACTOR,REVENUE
Walsall Council,http://opendatacommunities.org/id/metropolitan-district-council/walsall ,WC136-572,31.03.2022,ADULT SOCIAL CARE,ADVANCE HEALTH CARE (UK) LTD,29/03/2022,490.49,6541-Domiciliary Care,THIRD PARTY PAYMENTS,PRIVATE CONTRACTOR,REVENUE
Walsall Council,http://opendatacommunities.org/id/metropolitan-district-council/walsall ,WC136-573,31.03.2022,ADULT SOCIAL CARE,ADVANCE HEALTH CARE (UK) LTD,29/03/2022,454.16,6541-Domiciliary Care,THIRD PARTY PAYMENTS,PRIVATE CONTRACTOR,REVENUE
Walsall Council,http://opendatacommunities.org/id/metropolitan-district-council/walsall ,WC136-574,31.03.2022,ADULT SOCIAL CARE,ADVANCE HEALTH CARE (UK) LTD,29/03/2022,490.49,6541-Domiciliary Care,THIRD PARTY PAYMENTS,PRIVATE CONTRACTOR,REVENUE
Walsall Council,http://opendatacommunities.org/id/metropolitan-district-council/walsall ,WC136-575,31.03.2022,ADULT SOCIAL CARE,ADVANCE HEALTH CARE (UK) LTD,29/03/2022,435.96,6541-Domiciliary Care,THIRD PARTY PAYMENTS,PRIVATE CONTRACTOR,REVENUE
Walsall Council,http://opendatacommunities.org/id/metropolitan-district-council/walsall ,WC136-576,31.03.2022,ADULT SOCIAL CARE,ADVANCE HEALTH CARE (UK) LTD,29/03/2022,381.50,6541-Domiciliary Care,THIRD PARTY PAYMENTS,PRIVATE CONTRACTOR,REVENUE
Walsall Council,http://opendatacommunities.org/id/metropolitan-district-council/walsall ,WC136-577,31.03.2022,ADULT SOCIAL CARE,ADVANCE HEALTH CARE (UK) LTD,29/03/2022,871.92,6541-Domiciliary Care,THIRD PARTY PAYMENTS,PRIVATE CONTRACTOR,REVENUE
Walsall Council,http://opendatacommunities.org/id/metropolitan-district-council/walsall ,WC136-578,31.03.2022,ADULT SOCIAL CARE,ADVANCE HEALTH CARE (UK) LTD,29/03/2022,381.50,6541-Domiciliary Care,THIRD PARTY PAYMENTS,PRIVATE CONTRACTOR,REVENUE
Walsall Council,http://opendatacommunities.org/id/metropolitan-district-council/walsall ,WC136-579,31.03.2022,ADULT SOCIAL CARE,ADVANCE HEALTH CARE (UK) LTD,29/03/2022,490.49,6541-Domiciliary Care,THIRD PARTY PAYMENTS,PRIVATE CONTRACTOR,REVENUE
Walsall Council,http://opendatacommunities.org/id/metropolitan-district-council/walsall ,WC136-580,31.03.2022,ADULT SOCIAL CARE,ADVANCE HEALTH CARE (UK) LTD,29/03/2022,490.49,6541-Domiciliary Care,THIRD PARTY PAYMENTS,PRIVATE CONTRACTOR,REVENUE
Walsall Council,http://opendatacommunities.org/id/metropolitan-district-council/walsall ,WC136-581,31.03.2022,ADULT SOCIAL CARE,ADVANCE HEALTH CARE (UK) LTD,29/03/2022,490.49,6541-Domiciliary Care,THIRD PARTY PAYMENTS,PRIVATE CONTRACTOR,REVENUE
Walsall Council,http://opendatacommunities.org/id/metropolitan-district-council/walsall ,WC136-582,31.03.2022,ADULT SOCIAL CARE,ADVANCE HEALTH CARE (UK) LTD,29/03/2022,490.49,6541-Domiciliary Care,THIRD PARTY PAYMENTS,PRIVATE CONTRACTOR,REVENUE
Walsall Council,http://opendatacommunities.org/id/metropolitan-district-council/walsall ,WC136-583,31.03.2022,ADULT SOCIAL CARE,ADVANCE HEALTH CARE (UK) LTD,29/03/2022,544.95,6541-Domiciliary Care,THIRD PARTY PAYMENTS,PRIVATE CONTRACTOR,REVENUE
Walsall Council,http://opendatacommunities.org/id/metropolitan-district-council/walsall ,WC136-584,31.03.2022,ADULT SOCIAL CARE,ADVANCE HEALTH CARE (UK) LTD,29/03/2022,490.49,6541-Domiciliary Care,THIRD PARTY PAYMENTS,PRIVATE CONTRACTOR,REVENUE
Walsall Council,http://opendatacommunities.org/id/metropolitan-district-council/walsall ,WC136-585,31.03.2022,ADULT SOCIAL CARE,ADVANCE HEALTH CARE (UK) LTD,29/03/2022,454.16,6541-Domiciliary Care,THIRD PARTY PAYMENTS,PRIVATE CONTRACTOR,REVENUE
Walsall Council,http://opendatacommunities.org/id/metropolitan-district-council/walsall ,WC136-586,31.03.2022,ADULT SOCIAL CARE,ADVANCE HEALTH CARE (UK) LTD,29/03/2022,326.97,6541-Domiciliary Care,THIRD PARTY PAYMENTS,PRIVATE CONTRACTOR,REVENUE
Walsall Council,http://opendatacommunities.org/id/metropolitan-district-council/walsall ,WC136-587,31.03.2022,ADULT SOCIAL CARE,ADVANCE HEALTH CARE (UK) LTD,29/03/2022,506.06,6541-Domiciliary Care,THIRD PARTY PAYMENTS,PRIVATE CONTRACTOR,REVENUE
Walsall Council,http://opendatacommunities.org/id/metropolitan-district-council/walsall ,WC136-588,31.03.2022,ADULT SOCIAL CARE,ADVANCE HEALTH CARE (UK) LTD,29/03/2022,490.49,6541-Domiciliary Care,THIRD PARTY PAYMENTS,PRIVATE CONTRACTOR,REVENUE
Walsall Council,http://opendatacommunities.org/id/metropolitan-district-council/walsall ,WC136-589,31.03.2022,ADULT SOCIAL CARE,ADVANCE HEALTH CARE (UK) LTD,29/03/2022,833.03,6541-Domiciliary Care,THIRD PARTY PAYMENTS,PRIVATE CONTRACTOR,REVENUE
Walsall Council,http://opendatacommunities.org/id/metropolitan-district-council/walsall ,WC136-590,31.03.2022,ADULT SOCIAL CARE,ADVANCE HEALTH CARE (UK) LTD,29/03/2022,490.49,6541-Domiciliary Care,THIRD PARTY PAYMENTS,PRIVATE CONTRACTOR,REVENUE
Walsall Council,http://opendatacommunities.org/id/metropolitan-district-council/walsall ,WC136-591,31.03.2022,ADULT SOCIAL CARE,ADVANCE HEALTH CARE (UK) LTD,29/03/2022,524.19,6541-Domiciliary Care,THIRD PARTY PAYMENTS,PRIVATE CONTRACTOR,REVENUE
Walsall Council,http://opendatacommunities.org/id/metropolitan-district-council/walsall ,WC136-592,31.03.2022,ADULT SOCIAL CARE,ADVANCE HEALTH CARE (UK) LTD,29/03/2022,490.49,6541-Domiciliary Care,THIRD PARTY PAYMENTS,PRIVATE CONTRACTOR,REVENUE
Walsall Council,http://opendatacommunities.org/id/metropolitan-district-council/walsall ,WC136-593,31.03.2022,ADULT SOCIAL CARE,ADVANCE HEALTH CARE (UK) LTD,29/03/2022,435.96,6541-Domiciliary Care,THIRD PARTY PAYMENTS,PRIVATE CONTRACTOR,REVENUE
Walsall Council,http://opendatacommunities.org/id/metropolitan-district-council/walsall ,WC136-594,31.03.2022,ADULT SOCIAL CARE,ADVANCE HEALTH CARE (UK) LTD,29/03/2022,490.49,6541-Domiciliary Care,THIRD PARTY PAYMENTS,PRIVATE CONTRACTOR,REVENUE
Walsall Council,http://opendatacommunities.org/id/metropolitan-district-council/walsall ,WC136-595,31.03.2022,ADULT SOCIAL CARE,ADVANCE HEALTH CARE (UK) LTD,29/03/2022,653.94,6541-Domiciliary Care,THIRD PARTY PAYMENTS,PRIVATE CONTRACTOR,REVENUE
Walsall Council,http://opendatacommunities.org/id/metropolitan-district-council/walsall ,WC136-596,31.03.2022,ADULT SOCIAL CARE,ADVANCE HEALTH CARE (UK) LTD,29/03/2022,490.49,6541-Domiciliary Care,THIRD PARTY PAYMENTS,PRIVATE CONTRACTOR,REVENUE
Walsall Council,http://opendatacommunities.org/id/metropolitan-district-council/walsall ,WC136-597,31.03.2022,ADULT SOCIAL CARE,ADVANCE HEALTH CARE (UK) LTD,29/03/2022,490.49,6541-Domiciliary Care,THIRD PARTY PAYMENTS,PRIVATE CONTRACTOR,REVENUE
Walsall Council,http://opendatacommunities.org/id/metropolitan-district-council/walsall ,WC136-598,31.03.2022,ADULT SOCIAL CARE,ADVANCE HEALTH CARE (UK) LTD,29/03/2022,490.49,6541-Domiciliary Care,THIRD PARTY PAYMENTS,PRIVATE CONTRACTOR,REVENUE
Walsall Council,http://opendatacommunities.org/id/metropolitan-district-council/walsall ,WC136-599,31.03.2022,ADULT SOCIAL CARE,ADVANCE HEALTH CARE (UK) LTD,29/03/2022,490.49,6541-Domiciliary Care,THIRD PARTY PAYMENTS,PRIVATE CONTRACTOR,REVENUE
Walsall Council,http://opendatacommunities.org/id/metropolitan-district-council/walsall ,WC136-600,31.03.2022,ADULT SOCIAL CARE,ADVANCE HEALTH CARE (UK) LTD,29/03/2022,311.40,6541-Domiciliary Care,THIRD PARTY PAYMENTS,PRIVATE CONTRACTOR,REVENUE
Walsall Council,http://opendatacommunities.org/id/metropolitan-district-council/walsall ,WC136-601,31.03.2022,ADULT SOCIAL CARE,ADVANCE HEALTH CARE (UK) LTD,29/03/2022,490.49,6541-Domiciliary Care,THIRD PARTY PAYMENTS,PRIVATE CONTRACTOR,REVENUE
Walsall Council,http://opendatacommunities.org/id/metropolitan-district-council/walsall ,WC136-602,31.03.2022,ADULT SOCIAL CARE,ADVANCE HEALTH CARE (UK) LTD,29/03/2022,635.81,6541-Domiciliary Care,THIRD PARTY PAYMENTS,PRIVATE CONTRACTOR,REVENUE
Walsall Council,http://opendatacommunities.org/id/metropolitan-district-council/walsall ,WC136-603,31.03.2022,ADULT SOCIAL CARE,ADVANCE HEALTH CARE (UK) LTD,29/03/2022,537.20,6541-Domiciliary Care,THIRD PARTY PAYMENTS,PRIVATE CONTRACTOR,REVENUE
Walsall Council,http://opendatacommunities.org/id/metropolitan-district-council/walsall ,WC136-604,31.03.2022,ADULT SOCIAL CARE,ADVANCE HEALTH CARE (UK) LTD,29/03/2022,980.98,6541-Domiciliary Care,THIRD PARTY PAYMENTS,PRIVATE CONTRACTOR,REVENUE
Walsall Council,http://opendatacommunities.org/id/metropolitan-district-council/walsall ,WC136-605,31.03.2022,ADULT SOCIAL CARE,ADVANCE HEALTH CARE (UK) LTD,29/03/2022,490.70,6541-Domiciliary Care,THIRD PARTY PAYMENTS,PRIVATE CONTRACTOR,REVENUE
Walsall Council,http://opendatacommunities.org/id/metropolitan-district-council/walsall ,WC136-606,31.03.2022,ADULT SOCIAL CARE,ADVANCE HEALTH CARE (UK) LTD,29/03/2022,980.98,6541-Domiciliary Care,THIRD PARTY PAYMENTS,PRIVATE CONTRACTOR,REVENUE
Walsall Council,http://opendatacommunities.org/id/metropolitan-district-council/walsall ,WC136-607,31.03.2022,ADULT SOCIAL CARE,ADVANCE HEALTH CARE (UK) LTD,29/03/2022,454.16,6541-Domiciliary Care,THIRD PARTY PAYMENTS,PRIVATE CONTRACTOR,REVENUE
Walsall Council,http://opendatacommunities.org/id/metropolitan-district-council/walsall ,WC136-608,31.03.2022,ADULT SOCIAL CARE,ADVANCE HEALTH CARE (UK) LTD,29/03/2022,350.35,6541-Domiciliary Care,THIRD PARTY PAYMENTS,PRIVATE CONTRACTOR,REVENUE
Walsall Council,http://opendatacommunities.org/id/metropolitan-district-council/walsall ,WC136-609,31.03.2022,ADULT SOCIAL CARE,ADVANCE HEALTH CARE (UK) LTD,29/03/2022,326.97,6541-Domiciliary Care,THIRD PARTY PAYMENTS,PRIVATE CONTRACTOR,REVENUE
Walsall Council,http://opendatacommunities.org/id/metropolitan-district-council/walsall ,WC136-610,31.03.2022,ADULT SOCIAL CARE,ADVANCE HEALTH CARE (UK) LTD,29/03/2022,653.94,6541-Domiciliary Care,THIRD PARTY PAYMENTS,PRIVATE CONTRACTOR,REVENUE
Walsall Council,http://opendatacommunities.org/id/metropolitan-district-council/walsall ,WC136-611,31.03.2022,ADULT SOCIAL CARE,ADVANCE HEALTH CARE (UK) LTD,29/03/2022,"1,089.90",6541-Domiciliary Care,THIRD PARTY PAYMENTS,PRIVATE CONTRACTOR,REVENUE
Walsall Council,http://opendatacommunities.org/id/metropolitan-district-council/walsall ,WC136-612,31.03.2022,ADULT SOCIAL CARE,ADVANCE HEALTH CARE (UK) LTD,29/03/2022,490.49,6541-Domiciliary Care,THIRD PARTY PAYMENTS,PRIVATE CONTRACTOR,REVENUE
Walsall Council,http://opendatacommunities.org/id/metropolitan-district-council/walsall ,WC136-613,31.03.2022,ADULT SOCIAL CARE,ADVANCE HEALTH CARE (UK) LTD,29/03/2022,544.95,6541-Domiciliary Care,THIRD PARTY PAYMENTS,PRIVATE CONTRACTOR,REVENUE
Walsall Council,http://opendatacommunities.org/id/metropolitan-district-council/walsall ,WC136-614,31.03.2022,ADULT SOCIAL CARE,ADVANCE HEALTH CARE (UK) LTD,29/03/2022,498.84,6541-Domiciliary Care,THIRD PARTY PAYMENTS,PRIVATE CONTRACTOR,REVENUE
Walsall Council,http://opendatacommunities.org/id/metropolitan-district-council/walsall ,WC136-615,31.03.2022,ADULT SOCIAL CARE,ADVANCE HEALTH CARE (UK) LTD,29/03/2022,980.98,6541-Domiciliary Care,THIRD PARTY PAYMENTS,PRIVATE CONTRACTOR,REVENUE
Walsall Council,http://opendatacommunities.org/id/metropolitan-district-council/walsall ,WC136-616,31.03.2022,ADULT SOCIAL CARE,ADVANCE HEALTH CARE (UK) LTD,29/03/2022,363.30,6541-Domiciliary Care,THIRD PARTY PAYMENTS,PRIVATE CONTRACTOR,REVENUE
Walsall Council,http://opendatacommunities.org/id/metropolitan-district-council/walsall ,WC136-617,31.03.2022,ADULT SOCIAL CARE,ADVANCE HEALTH CARE (UK) LTD,29/03/2022,399.63,6541-Domiciliary Care,THIRD PARTY PAYMENTS,PRIVATE CONTRACTOR,REVENUE
Walsall Council,http://opendatacommunities.org/id/metropolitan-district-council/walsall ,WC136-618,31.03.2022,ADULT SOCIAL CARE,ADVANCE HEALTH CARE (UK) LTD,29/03/2022,326.97,6541-Domiciliary Care,THIRD PARTY PAYMENTS,PRIVATE CONTRACTOR,REVENUE
Walsall Council,http://opendatacommunities.org/id/metropolitan-district-council/walsall ,WC136-619,31.03.2022,ADULT SOCIAL CARE,ADVANCE HEALTH CARE (UK) LTD,29/03/2022,326.97,6541-Domiciliary Care,THIRD PARTY PAYMENTS,PRIVATE CONTRACTOR,REVENUE
Walsall Council,http://opendatacommunities.org/id/metropolitan-district-council/walsall ,WC136-620,31.03.2022,ADULT SOCIAL CARE,ADVANCE HEALTH CARE (UK) LTD,29/03/2022,871.92,6541-Domiciliary Care,THIRD PARTY PAYMENTS,PRIVATE CONTRACTOR,REVENUE
Walsall Council,http://opendatacommunities.org/id/metropolitan-district-council/walsall ,WC136-621,31.03.2022,ADULT SOCIAL CARE,ADVANCE HEALTH CARE (UK) LTD,29/03/2022,381.50,6541-Domiciliary Care,THIRD PARTY PAYMENTS,PRIVATE CONTRACTOR,REVENUE
Walsall Council,http://opendatacommunities.org/id/metropolitan-district-council/walsall ,WC136-622,31.03.2022,ADULT SOCIAL CARE,ADVANCE HEALTH CARE (UK) LTD,29/03/2022,490.49,6541-Domiciliary Care,THIRD PARTY PAYMENTS,PRIVATE CONTRACTOR,REVENUE
Walsall Council,http://opendatacommunities.org/id/metropolitan-district-council/walsall ,WC136-623,31.03.2022,ADULT SOCIAL CARE,ADVANCE HEALTH CARE (UK) LTD,29/03/2022,435.96,6541-Domiciliary Care,THIRD PARTY PAYMENTS,PRIVATE CONTRACTOR,REVENUE
Walsall Council,http://opendatacommunities.org/id/metropolitan-district-council/walsall ,WC136-624,31.03.2022,ADULT SOCIAL CARE,ADVANCE HEALTH CARE (UK) LTD,29/03/2022,490.49,6541-Domiciliary Care,THIRD PARTY PAYMENTS,PRIVATE CONTRACTOR,REVENUE
Walsall Council,http://opendatacommunities.org/id/metropolitan-district-council/walsall ,WC136-625,31.03.2022,ADULT SOCIAL CARE,ADVANCE HEALTH CARE (UK) LTD,29/03/2022,544.95,6541-Domiciliary Care,THIRD PARTY PAYMENTS,PRIVATE CONTRACTOR,REVENUE
Walsall Council,http://opendatacommunities.org/id/metropolitan-district-council/walsall ,WC136-626,31.03.2022,ADULT SOCIAL CARE,ADVANCE HEALTH CARE (UK) LTD,29/03/2022,506.06,6541-Domiciliary Care,THIRD PARTY PAYMENTS,PRIVATE CONTRACTOR,REVENUE
Walsall Council,http://opendatacommunities.org/id/metropolitan-district-council/walsall ,WC136-627,31.03.2022,ADULT SOCIAL CARE,ADVANCE HEALTH CARE (UK) LTD,29/03/2022,490.49,6541-Domiciliary Care,THIRD PARTY PAYMENTS,PRIVATE CONTRACTOR,REVENUE
Walsall Council,http://opendatacommunities.org/id/metropolitan-district-council/walsall ,WC136-628,31.03.2022,ADULT SOCIAL CARE,ADVANCE HEALTH CARE (UK) LTD,29/03/2022,490.49,6541-Domiciliary Care,THIRD PARTY PAYMENTS,PRIVATE CONTRACTOR,REVENUE
Walsall Council,http://opendatacommunities.org/id/metropolitan-district-council/walsall ,WC136-629,31.03.2022,ADULT SOCIAL CARE,ADVANCE HEALTH CARE (UK) LTD,29/03/2022,435.96,6541-Domiciliary Care,THIRD PARTY PAYMENTS,PRIVATE CONTRACTOR,REVENUE
Walsall Council,http://opendatacommunities.org/id/metropolitan-district-council/walsall ,WC136-630,31.03.2022,ADULT SOCIAL CARE,ADVANCE HEALTH CARE (UK) LTD,29/03/2022,381.50,6541-Domiciliary Care,THIRD PARTY PAYMENTS,PRIVATE CONTRACTOR,REVENUE
Walsall Council,http://opendatacommunities.org/id/metropolitan-district-council/walsall ,WC136-631,31.03.2022,ADULT SOCIAL CARE,ADVANCE HEALTH CARE (UK) LTD,29/03/2022,490.49,6541-Domiciliary Care,THIRD PARTY PAYMENTS,PRIVATE CONTRACTOR,REVENUE
Walsall Council,http://opendatacommunities.org/id/metropolitan-district-council/walsall ,WC136-632,31.03.2022,ADULT SOCIAL CARE,ADVANCE HEALTH CARE (UK) LTD,29/03/2022,454.16,6541-Domiciliary Care,THIRD PARTY PAYMENTS,PRIVATE CONTRACTOR,REVENUE
Walsall Council,http://opendatacommunities.org/id/metropolitan-district-council/walsall ,WC136-633,31.03.2022,ADULT SOCIAL CARE,ADVANCE HEALTH CARE (UK) LTD,25/03/2022,"14,410.80",6550-COVID-19 Household Support Grant Exp,TRANSFER PAYMENTS,COVID TRANSFER PAYMENT,REVENUE
Walsall Council,http://opendatacommunities.org/id/metropolitan-district-council/walsall ,WC136-634,31.03.2022,ADULT SOCIAL CARE,ADVANCE HEALTH CARE (UK) LTD,16/03/2022,"5,105.01",6550-COVID-19 Household Support Grant Exp,TRANSFER PAYMENTS,COVID TRANSFER PAYMENT,REVENUE
Walsall Council,http://opendatacommunities.org/id/metropolitan-district-council/walsall ,WC136-635,31.03.2022,ADULT SOCIAL CARE,ADVANCE HEALTH CARE (UK) LTD,16/03/2022,"6,060.13",6550-COVID-19 Local Support Grant Exp,TRANSFER PAYMENTS,COVID TRANSFER PAYMENT,REVENUE
Walsall Council,http://opendatacommunities.org/id/metropolitan-district-council/walsall ,WC136-636,31.03.2022,ADULT SOCIAL CARE,ADVANCE HEALTH CARE (UK) LTD,16/03/2022,"1,277.89",6550-National Tutoring Exp,TRANSFER PAYMENTS,COVID TRANSFER PAYMENT,REVENUE
Walsall Council,http://opendatacommunities.org/id/metropolitan-district-council/walsall ,WC136-637,31.03.2022,ADULT SOCIAL CARE,ADVANCE HEALTH CARE (UK) LTD,22/03/2022,"85,130.40",6540-Professional Services-Priv Contractor & Other Agencies,THIRD PARTY PAYMENTS,PRIVATE CONTRACTOR,REVENUE
Walsall Council,http://opendatacommunities.org/id/metropolitan-district-council/walsall ,WC136-638,31.03.2022,ADULT SOCIAL CARE,ADVANCE HEALTH CARE (UK) LTD,17/03/2022,"20,964.48",6540-Professional Services-Priv Contractor & Other Agencies,THIRD PARTY PAYMENTS,PRIVATE CONTRACTOR,REVENUE
Walsall Council,http://opendatacommunities.org/id/metropolitan-district-council/walsall ,WC136-639,31.03.2022,CHILDRENS,ADVENTURELAND DAY NURSERY,28/03/2022,"3,061.08",1220-Top Up Funding -Grants to Schools,SUPPLIES & SERVICES,GRANTS (EXP) & SUBSCRIPTIONS,REVENUE
Walsall Council,http://opendatacommunities.org/id/metropolitan-district-council/walsall ,WC136-640,31.03.2022,ADULT SOCIAL CARE,ADVINIA CARE HOMES LTD - HAMMERWICH HALL CARE HOME,15/03/2022,"2,331.08",6541-Residential EMI,THIRD PARTY PAYMENTS,PRIVATE CONTRACTOR,REVENUE
Walsall Council,http://opendatacommunities.org/id/metropolitan-district-council/walsall ,WC136-641,31.03.2022,ADULT SOCIAL CARE,ADVINIA CARE HOMES LTD - HAMMERWICH HALL CARE HOME,15/03/2022,"2,064.44",6541-Residential,THIRD PARTY PAYMENTS,PRIVATE CONTRACTOR,REVENUE
Walsall Council,http://opendatacommunities.org/id/metropolitan-district-council/walsall ,WC136-642,31.03.2022,ADULT SOCIAL CARE,ADVOCACY MATTERS LIMITED,25/03/2022,"14,622.14",6553-Social Services-Fees to Voluntary Bodies,THIRD PARTY PAYMENTS,VOLUNTARY BODIES,REVENUE
Walsall Council,http://opendatacommunities.org/id/metropolitan-district-council/walsall ,WC136-643,31.03.2022,ADULT SOCIAL CARE,AESOP ARTS AND SOCIETY LTD,16/03/2022,"6,192.50",6420-Consultant Fees,SUPPLIES & SERVICES,SERVICES,REVENUE
Walsall Council,http://opendatacommunities.org/id/metropolitan-district-council/walsall ,WC136-644,31.03.2022,"ECONOMY, ENVIRONMENT & COMMUNITIES",AFGHAN COMMUNITY & WELFARE CENTRE,31/03/2022,"2,500.00",6430-Grants to Other Orgs,SUPPLIES & SERVICES,GRANTS (EXP) & SUBSCRIPTIONS,REVENUE
Walsall Council,http://opendatacommunities.org/id/metropolitan-district-council/walsall ,WC136-645,31.03.2022,CHILDRENS,AFGHAN COMMUNITY & WELFARE CENTRE,24/03/2022,"3,518.31",6213-Professional Fees & Services,SUPPLIES & SERVICES,SERVICES,REVENUE
Walsall Council,http://opendatacommunities.org/id/metropolitan-district-council/walsall ,WC136-646,31.03.2022,HOLDING ACCOUNTS,REDACTED,24/03/2022,480.00,2877-Insurance Payment Claims,SUPPLIES & SERVICES,INSURANCE,REVENUE
Walsall Council,http://opendatacommunities.org/id/metropolitan-district-council/walsall ,WC136-647,31.03.2022,CHILDRENS,REDACTED,09/03/2022,608.00,6223-Foster Carers Maintenance Allowance,TRANSFER PAYMENTS,CHILDREN SOCIAL SERVICES CLIENT,REVENUE
Walsall Council,http://opendatacommunities.org/id/metropolitan-district-council/walsall ,WC136-648,31.03.2022,CHILDRENS,REDACTED,09/03/2022,546.76,6223-Foster Carers Maintenance Allowance,TRANSFER PAYMENTS,CHILDREN SOCIAL SERVICES CLIENT,REVENUE
Walsall Council,http://opendatacommunities.org/id/metropolitan-district-council/walsall ,WC136-649,31.03.2022,CHILDRENS,REDACTED,09/03/2022,408.00,6223-Internal Foster Carers-Carer Fees,TRANSFER PAYMENTS,CHILDREN SOCIAL SERVICES CLIENT,REVENUE
Walsall Council,http://opendatacommunities.org/id/metropolitan-district-council/walsall ,WC136-650,31.03.2022,"ECONOMY, ENVIRONMENT & COMMUNITIES",AFRICA ADVOCACY FOUNDATION,18/03/2022,"1,600.00",6430-Grants to Other Orgs,SUPPLIES & SERVICES,GRANTS (EXP) & SUBSCRIPTIONS,REVENUE
Walsall Council,http://opendatacommunities.org/id/metropolitan-district-council/walsall ,WC136-651,31.03.2022,RESOURCES AND TRANSFORMATION,AGILISYS LTD,02/03/2022,"-95,000.00",6623-Computer Equipment,SUPPLIES & SERVICES,COMMUNICATIONS & COMPUTING,REVENUE
Walsall Council,http://opendatacommunities.org/id/metropolitan-district-council/walsall ,WC136-652,31.03.2022,RESOURCES AND TRANSFORMATION,AGILISYS LTD,02/03/2022,"95,000.00",6623-Computer Equipment,SUPPLIES & SERVICES,COMMUNICATIONS & COMPUTING,REVENUE
Walsall Council,http://opendatacommunities.org/id/metropolitan-district-council/walsall ,WC136-653,31.03.2022,RESOURCES AND TRANSFORMATION CAPITAL,AGILISYS LTD,15/03/2022,"15,526.00",7300-Consultants Fees,CAPITAL,"NEW CONSTRUCTION,CONVERSION & RENOVATION",CAPITAL
Walsall Council,http://opendatacommunities.org/id/metropolitan-district-council/walsall ,WC136-654,31.03.2022,RESOURCES AND TRANSFORMATION CAPITAL,AGILISYS LTD,15/03/2022,"20,699.00",7300-Consultants Fees,CAPITAL,"NEW CONSTRUCTION,CONVERSION & RENOVATION",CAPITAL
Walsall Council,http://opendatacommunities.org/id/metropolitan-district-council/walsall ,WC136-655,31.03.2022,RESOURCES AND TRANSFORMATION CAPITAL,AGILISYS LTD,15/03/2022,"103,504.00",7300-Consultants Fees,CAPITAL,"NEW CONSTRUCTION,CONVERSION & RENOVATION",CAPITAL
Walsall Council,http://opendatacommunities.org/id/metropolitan-district-council/walsall ,WC136-656,31.03.2022,RESOURCES AND TRANSFORMATION CAPITAL,AGILISYS LTD,15/03/2022,"-103,504.00",7300-Consultants Fees,CAPITAL,"NEW CONSTRUCTION,CONVERSION & RENOVATION",CAPITAL
Walsall Council,http://opendatacommunities.org/id/metropolitan-district-council/walsall ,WC136-657,31.03.2022,RESOURCES AND TRANSFORMATION CAPITAL,AGILISYS LTD,15/03/2022,"-20,699.00",7300-Consultants Fees,CAPITAL,"NEW CONSTRUCTION,CONVERSION & RENOVATION",CAPITAL
Walsall Council,http://opendatacommunities.org/id/metropolitan-district-council/walsall ,WC136-658,31.03.2022,RESOURCES AND TRANSFORMATION CAPITAL,AGILISYS LTD,15/03/2022,"-15,526.00",7300-Consultants Fees,CAPITAL,"NEW CONSTRUCTION,CONVERSION & RENOVATION",CAPITAL
Walsall Council,http://opendatacommunities.org/id/metropolitan-district-council/walsall ,WC136-659,31.03.2022,RESOURCES AND TRANSFORMATION CAPITAL,AGILISYS LTD,15/03/2022,"15,526.00",7300-Consultants Fees,CAPITAL,"NEW CONSTRUCTION,CONVERSION & RENOVATION",CAPITAL
Walsall Council,http://opendatacommunities.org/id/metropolitan-district-council/walsall ,WC136-660,31.03.2022,RESOURCES AND TRANSFORMATION CAPITAL,AGILISYS LTD,15/03/2022,"20,699.00",7300-Consultants Fees,CAPITAL,"NEW CONSTRUCTION,CONVERSION & RENOVATION",CAPITAL
Walsall Council,http://opendatacommunities.org/id/metropolitan-district-council/walsall ,WC136-661,31.03.2022,RESOURCES AND TRANSFORMATION CAPITAL,AGILISYS LTD,15/03/2022,"103,504.00",7300-Consultants Fees,CAPITAL,"NEW CONSTRUCTION,CONVERSION & RENOVATION",CAPITAL
Walsall Council,http://opendatacommunities.org/id/metropolitan-district-council/walsall ,WC136-662,31.03.2022,"ECONOMY, ENVIRONMENT & COMMUNITIES",AGROVISTA UK LTD,16/03/2022,"1,035.90",6410-Materials,SUPPLIES & SERVICES,EQUIPMENT FURNITURE & MATERIALS,REVENUE
Walsall Council,http://opendatacommunities.org/id/metropolitan-district-council/walsall ,WC136-663,31.03.2022,"ECONOMY, ENVIRONMENT & COMMUNITIES",AGROVISTA UK LTD,16/03/2022,"1,590.00",6410-Materials,SUPPLIES & SERVICES,EQUIPMENT FURNITURE & MATERIALS,REVENUE
Walsall Council,http://opendatacommunities.org/id/metropolitan-district-council/walsall ,WC136-664,31.03.2022,"ECONOMY, ENVIRONMENT & COMMUNITIES",AGROVISTA UK LTD,28/03/2022,426.45,6410-Repair & Maintenance of Furniture & Equipment,SUPPLIES & SERVICES,EQUIPMENT FURNITURE & MATERIALS,REVENUE
Walsall Council,http://opendatacommunities.org/id/metropolitan-district-council/walsall ,WC136-665,31.03.2022,CHILDRENS,AHMAD & WILLIAMS SOLICITORS,31/03/2022,"1,031.20",6223-Professional Fees & Services,SUPPLIES & SERVICES,SERVICES,REVENUE
Walsall Council,http://opendatacommunities.org/id/metropolitan-district-council/walsall ,WC136-666,31.03.2022,ADULT SOCIAL CARE,REDACTED,10/03/2022,"3,100.80",6541-Direct Payment,THIRD PARTY PAYMENTS,PRIVATE CONTRACTOR,REVENUE
Walsall Council,http://opendatacommunities.org/id/metropolitan-district-council/walsall ,WC136-667,31.03.2022,CHILDRENS,ALAN SAVILL T/A INSPIRED TRAINERS,02/03/2022,"1,200.00",6211-External Training,INDIRECT EMPLOYEES,EXTERNAL TRAINING,REVENUE
Walsall Council,http://opendatacommunities.org/id/metropolitan-district-council/walsall ,WC136-668,31.03.2022,CHILDRENS,ALAN SAVILL T/A INSPIRED TRAINERS,23/03/2022,600.00,6211-External Training,INDIRECT EMPLOYEES,EXTERNAL TRAINING,REVENUE
Walsall Council,http://opendatacommunities.org/id/metropolitan-district-council/walsall ,WC136-669,31.03.2022,CHILDRENS,ALASDAIR CANT & ASSOCIATES LIMITED,04/03/2022,"8,086.00",6220-Professional Fees & Services,SUPPLIES & SERVICES,SERVICES,REVENUE
Walsall Council,http://opendatacommunities.org/id/metropolitan-district-council/walsall ,WC136-670,31.03.2022,CHILDRENS,ALDRIDGE & BARONS LIMITED,01/03/2022,"1,931.40",6241-Hire of Vehicle with Driver,TRANSPORT,DIRECT TRANSPORT COSTS,REVENUE
Walsall Council,http://opendatacommunities.org/id/metropolitan-district-council/walsall ,WC136-671,31.03.2022,CHILDRENS,ALDRIDGE & BARONS LIMITED,01/03/2022,"1,935.00",6241-Hire of Vehicle with Driver,TRANSPORT,DIRECT TRANSPORT COSTS,REVENUE
Walsall Council,http://opendatacommunities.org/id/metropolitan-district-council/walsall ,WC136-672,31.03.2022,CHILDRENS,ALDRIDGE & BARONS LIMITED,01/03/2022,"2,090.00",6241-Hire of Vehicle with Driver,TRANSPORT,DIRECT TRANSPORT COSTS,REVENUE
Walsall Council,http://opendatacommunities.org/id/metropolitan-district-council/walsall ,WC136-673,31.03.2022,CHILDRENS,ALDRIDGE & BARONS LIMITED,01/03/2022,960.00,6241-Hire of Vehicle with Driver,TRANSPORT,DIRECT TRANSPORT COSTS,REVENUE
Walsall Council,http://opendatacommunities.org/id/metropolitan-district-council/walsall ,WC136-674,31.03.2022,CHILDRENS,ALDRIDGE & BARONS LIMITED,01/03/2022,"2,464.00",6241-Hire of Vehicle with Driver,TRANSPORT,DIRECT TRANSPORT COSTS,REVENUE
Walsall Council,http://opendatacommunities.org/id/metropolitan-district-council/walsall ,WC136-675,31.03.2022,CHILDRENS,ALDRIDGE & BARONS LIMITED,01/03/2022,"2,147.60",6241-Hire of Vehicle with Driver,TRANSPORT,DIRECT TRANSPORT COSTS,REVENUE
Walsall Council,http://opendatacommunities.org/id/metropolitan-district-council/walsall ,WC136-676,31.03.2022,CHILDRENS,ALDRIDGE & BARONS LIMITED,01/03/2022,"1,800.00",6241-Hire of Vehicle with Driver,TRANSPORT,DIRECT TRANSPORT COSTS,REVENUE
Walsall Council,http://opendatacommunities.org/id/metropolitan-district-council/walsall ,WC136-677,31.03.2022,CHILDRENS,ALDRIDGE & BARONS LIMITED,01/03/2022,"1,717.00",6241-Hire of Vehicle with Driver,TRANSPORT,DIRECT TRANSPORT COSTS,REVENUE
Walsall Council,http://opendatacommunities.org/id/metropolitan-district-council/walsall ,WC136-678,31.03.2022,CHILDRENS,ALDRIDGE & BARONS LIMITED,01/03/2022,"2,124.00",6241-Hire of Vehicle with Driver,TRANSPORT,DIRECT TRANSPORT COSTS,REVENUE
Walsall Council,http://opendatacommunities.org/id/metropolitan-district-council/walsall ,WC136-679,31.03.2022,CHILDRENS,ALDRIDGE & BARONS LIMITED,01/03/2022,"2,278.00",6241-Hire of Vehicle with Driver,TRANSPORT,DIRECT TRANSPORT COSTS,REVENUE
Walsall Council,http://opendatacommunities.org/id/metropolitan-district-council/walsall ,WC136-680,31.03.2022,CHILDRENS,ALDRIDGE & BARONS LIMITED,01/03/2022,"2,316.00",6241-Hire of Vehicle with Driver,TRANSPORT,DIRECT TRANSPORT COSTS,REVENUE
Walsall Council,http://opendatacommunities.org/id/metropolitan-district-council/walsall ,WC136-681,31.03.2022,CHILDRENS,ALDRIDGE & BARONS LIMITED,01/03/2022,"1,500.00",6241-Hire of Vehicle with Driver,TRANSPORT,DIRECT TRANSPORT COSTS,REVENUE
Walsall Council,http://opendatacommunities.org/id/metropolitan-district-council/walsall ,WC136-682,31.03.2022,CHILDRENS,ALDRIDGE & BARONS LIMITED,01/03/2022,"1,710.00",6241-Hire of Vehicle with Driver,TRANSPORT,DIRECT TRANSPORT COSTS,REVENUE
Walsall Council,http://opendatacommunities.org/id/metropolitan-district-council/walsall ,WC136-683,31.03.2022,CHILDRENS,ALDRIDGE & BARONS LIMITED,01/03/2022,"2,090.00",6241-Hire of Vehicle with Driver,TRANSPORT,DIRECT TRANSPORT COSTS,REVENUE
Walsall Council,http://opendatacommunities.org/id/metropolitan-district-council/walsall ,WC136-684,31.03.2022,CHILDRENS,ALDRIDGE & BARONS LIMITED,01/03/2022,"1,640.00",6241-Hire of Vehicle with Driver,TRANSPORT,DIRECT TRANSPORT COSTS,REVENUE
Walsall Council,http://opendatacommunities.org/id/metropolitan-district-council/walsall ,WC136-685,31.03.2022,CHILDRENS,ALDRIDGE & BARONS LIMITED,01/03/2022,"2,080.00",6241-Hire of Vehicle with Driver,TRANSPORT,DIRECT TRANSPORT COSTS,REVENUE
Walsall Council,http://opendatacommunities.org/id/metropolitan-district-council/walsall ,WC136-686,31.03.2022,CHILDRENS,ALDRIDGE & BARONS LIMITED,01/03/2022,"2,626.00",6241-Hire of Vehicle with Driver,TRANSPORT,DIRECT TRANSPORT COSTS,REVENUE
Walsall Council,http://opendatacommunities.org/id/metropolitan-district-council/walsall ,WC136-687,31.03.2022,CHILDRENS,ALDRIDGE & BARONS LIMITED,01/03/2022,"2,130.00",6241-Hire of Vehicle with Driver,TRANSPORT,DIRECT TRANSPORT COSTS,REVENUE
Walsall Council,http://opendatacommunities.org/id/metropolitan-district-council/walsall ,WC136-688,31.03.2022,CHILDRENS,ALDRIDGE & BARONS LIMITED,01/03/2022,"1,284.00",6241-Hire of Vehicle with Driver,TRANSPORT,DIRECT TRANSPORT COSTS,REVENUE
Walsall Council,http://opendatacommunities.org/id/metropolitan-district-council/walsall ,WC136-689,31.03.2022,CHILDRENS,ALDRIDGE & BARONS LIMITED,01/03/2022,"2,600.00",6241-Hire of Vehicle with Driver,TRANSPORT,DIRECT TRANSPORT COSTS,REVENUE
Walsall Council,http://opendatacommunities.org/id/metropolitan-district-council/walsall ,WC136-690,31.03.2022,CHILDRENS,ALDRIDGE & BARONS LIMITED,01/03/2022,"1,575.60",6241-Hire of Vehicle with Driver,TRANSPORT,DIRECT TRANSPORT COSTS,REVENUE
Walsall Council,http://opendatacommunities.org/id/metropolitan-district-council/walsall ,WC136-691,31.03.2022,CHILDRENS,ALDRIDGE & BARONS LIMITED,01/03/2022,"1,911.60",6241-Hire of Vehicle with Driver,TRANSPORT,DIRECT TRANSPORT COSTS,REVENUE
Walsall Council,http://opendatacommunities.org/id/metropolitan-district-council/walsall ,WC136-692,31.03.2022,CHILDRENS,ALDRIDGE & BARONS LIMITED,01/03/2022,"1,710.00",6241-Hire of Vehicle with Driver,TRANSPORT,DIRECT TRANSPORT COSTS,REVENUE
Walsall Council,http://opendatacommunities.org/id/metropolitan-district-council/walsall ,WC136-693,31.03.2022,CHILDRENS,ALDRIDGE & BARONS LIMITED,01/03/2022,"1,914.00",6241-Hire of Vehicle with Driver,TRANSPORT,DIRECT TRANSPORT COSTS,REVENUE
Walsall Council,http://opendatacommunities.org/id/metropolitan-district-council/walsall ,WC136-694,31.03.2022,CHILDRENS,ALDRIDGE & BARONS LIMITED,01/03/2022,"1,862.00",6241-Hire of Vehicle with Driver,TRANSPORT,DIRECT TRANSPORT COSTS,REVENUE
Walsall Council,http://opendatacommunities.org/id/metropolitan-district-council/walsall ,WC136-695,31.03.2022,CHILDRENS,ALDRIDGE & BARONS LIMITED,01/03/2022,"1,985.00",6241-Hire of Vehicle with Driver,TRANSPORT,DIRECT TRANSPORT COSTS,REVENUE
Walsall Council,http://opendatacommunities.org/id/metropolitan-district-council/walsall ,WC136-696,31.03.2022,CHILDRENS,ALDRIDGE & BARONS LIMITED,01/03/2022,"1,420.00",6241-Hire of Vehicle with Driver,TRANSPORT,DIRECT TRANSPORT COSTS,REVENUE
Walsall Council,http://opendatacommunities.org/id/metropolitan-district-council/walsall ,WC136-697,31.03.2022,CHILDRENS,ALDRIDGE & BARONS LIMITED,01/03/2022,"2,414.00",6241-Hire of Vehicle with Driver,TRANSPORT,DIRECT TRANSPORT COSTS,REVENUE
Walsall Council,http://opendatacommunities.org/id/metropolitan-district-council/walsall ,WC136-698,31.03.2022,CHILDRENS,ALDRIDGE & BARONS LIMITED,01/03/2022,696.00,6241-Hire of Vehicle with Driver,TRANSPORT,DIRECT TRANSPORT COSTS,REVENUE
Walsall Council,http://opendatacommunities.org/id/metropolitan-district-council/walsall ,WC136-699,31.03.2022,CHILDRENS,ALDRIDGE & BARONS LIMITED,01/03/2022,"2,232.00",6241-Hire of Vehicle with Driver,TRANSPORT,DIRECT TRANSPORT COSTS,REVENUE
Walsall Council,http://opendatacommunities.org/id/metropolitan-district-council/walsall ,WC136-700,31.03.2022,CHILDRENS,ALDRIDGE & BARONS LIMITED,01/03/2022,"1,946.00",6241-Hire of Vehicle with Driver,TRANSPORT,DIRECT TRANSPORT COSTS,REVENUE
Walsall Council,http://opendatacommunities.org/id/metropolitan-district-council/walsall ,WC136-701,31.03.2022,CHILDRENS,ALDRIDGE & BARONS LIMITED,01/03/2022,"2,200.00",6241-Hire of Vehicle with Driver,TRANSPORT,DIRECT TRANSPORT COSTS,REVENUE
Walsall Council,http://opendatacommunities.org/id/metropolitan-district-council/walsall ,WC136-702,31.03.2022,CHILDRENS,ALDRIDGE & BARONS LIMITED,28/03/2022,"1,848.00",6241-Hire of Vehicle with Driver,TRANSPORT,DIRECT TRANSPORT COSTS,REVENUE
Walsall Council,http://opendatacommunities.org/id/metropolitan-district-council/walsall ,WC136-703,31.03.2022,CHILDRENS,ALDRIDGE & BARONS LIMITED,28/03/2022,"1,610.70",6241-Hire of Vehicle with Driver,TRANSPORT,DIRECT TRANSPORT COSTS,REVENUE
Walsall Council,http://opendatacommunities.org/id/metropolitan-district-council/walsall ,WC136-704,31.03.2022,CHILDRENS,ALDRIDGE & BARONS LIMITED,28/03/2022,"1,350.00",6241-Hire of Vehicle with Driver,TRANSPORT,DIRECT TRANSPORT COSTS,REVENUE
Walsall Council,http://opendatacommunities.org/id/metropolitan-district-council/walsall ,WC136-705,31.03.2022,CHILDRENS,ALDRIDGE & BARONS LIMITED,28/03/2022,"1,287.75",6241-Hire of Vehicle with Driver,TRANSPORT,DIRECT TRANSPORT COSTS,REVENUE
Walsall Council,http://opendatacommunities.org/id/metropolitan-district-council/walsall ,WC136-706,31.03.2022,CHILDRENS,ALDRIDGE & BARONS LIMITED,28/03/2022,"1,681.50",6241-Hire of Vehicle with Driver,TRANSPORT,DIRECT TRANSPORT COSTS,REVENUE
Walsall Council,http://opendatacommunities.org/id/metropolitan-district-council/walsall ,WC136-707,31.03.2022,CHILDRENS,ALDRIDGE & BARONS LIMITED,28/03/2022,"1,708.50",6241-Hire of Vehicle with Driver,TRANSPORT,DIRECT TRANSPORT COSTS,REVENUE
Walsall Council,http://opendatacommunities.org/id/metropolitan-district-council/walsall ,WC136-708,31.03.2022,CHILDRENS,ALDRIDGE & BARONS LIMITED,28/03/2022,"1,737.00",6241-Hire of Vehicle with Driver,TRANSPORT,DIRECT TRANSPORT COSTS,REVENUE
Walsall Council,http://opendatacommunities.org/id/metropolitan-district-council/walsall ,WC136-709,31.03.2022,CHILDRENS,ALDRIDGE & BARONS LIMITED,28/03/2022,"2,100.00",6241-Hire of Vehicle with Driver,TRANSPORT,DIRECT TRANSPORT COSTS,REVENUE
Walsall Council,http://opendatacommunities.org/id/metropolitan-district-council/walsall ,WC136-710,31.03.2022,CHILDRENS,ALDRIDGE & BARONS LIMITED,28/03/2022,"1,350.00",6241-Hire of Vehicle with Driver,TRANSPORT,DIRECT TRANSPORT COSTS,REVENUE
Walsall Council,http://opendatacommunities.org/id/metropolitan-district-council/walsall ,WC136-711,31.03.2022,CHILDRENS,ALDRIDGE & BARONS LIMITED,28/03/2022,"1,650.00",6241-Hire of Vehicle with Driver,TRANSPORT,DIRECT TRANSPORT COSTS,REVENUE
Walsall Council,http://opendatacommunities.org/id/metropolitan-district-council/walsall ,WC136-712,31.03.2022,CHILDRENS,ALDRIDGE & BARONS LIMITED,28/03/2022,"1,230.00",6241-Hire of Vehicle with Driver,TRANSPORT,DIRECT TRANSPORT COSTS,REVENUE
Walsall Council,http://opendatacommunities.org/id/metropolitan-district-council/walsall ,WC136-713,31.03.2022,CHILDRENS,ALDRIDGE & BARONS LIMITED,28/03/2022,"1,810.50",6241-Hire of Vehicle with Driver,TRANSPORT,DIRECT TRANSPORT COSTS,REVENUE
Walsall Council,http://opendatacommunities.org/id/metropolitan-district-council/walsall ,WC136-714,31.03.2022,CHILDRENS,ALDRIDGE & BARONS LIMITED,28/03/2022,522.00,6241-Hire of Vehicle with Driver,TRANSPORT,DIRECT TRANSPORT COSTS,REVENUE
Walsall Council,http://opendatacommunities.org/id/metropolitan-district-council/walsall ,WC136-715,31.03.2022,CHILDRENS,ALDRIDGE & BARONS LIMITED,28/03/2022,"1,674.00",6241-Hire of Vehicle with Driver,TRANSPORT,DIRECT TRANSPORT COSTS,REVENUE
Walsall Council,http://opendatacommunities.org/id/metropolitan-district-council/walsall ,WC136-716,31.03.2022,CHILDRENS,ALDRIDGE & BARONS LIMITED,28/03/2022,"1,181.70",6241-Hire of Vehicle with Driver,TRANSPORT,DIRECT TRANSPORT COSTS,REVENUE
Walsall Council,http://opendatacommunities.org/id/metropolitan-district-council/walsall ,WC136-717,31.03.2022,CHILDRENS,ALDRIDGE & BARONS LIMITED,28/03/2022,"1,433.65",6241-Hire of Vehicle with Driver,TRANSPORT,DIRECT TRANSPORT COSTS,REVENUE
Walsall Council,http://opendatacommunities.org/id/metropolitan-district-council/walsall ,WC136-718,31.03.2022,CHILDRENS,ALDRIDGE & BARONS LIMITED,28/03/2022,"1,350.00",6241-Hire of Vehicle with Driver,TRANSPORT,DIRECT TRANSPORT COSTS,REVENUE
Walsall Council,http://opendatacommunities.org/id/metropolitan-district-council/walsall ,WC136-719,31.03.2022,CHILDRENS,ALDRIDGE & BARONS LIMITED,28/03/2022,"1,435.50",6241-Hire of Vehicle with Driver,TRANSPORT,DIRECT TRANSPORT COSTS,REVENUE
Walsall Council,http://opendatacommunities.org/id/metropolitan-district-council/walsall ,WC136-720,31.03.2022,CHILDRENS,ALDRIDGE & BARONS LIMITED,28/03/2022,"1,560.00",6241-Hire of Vehicle with Driver,TRANSPORT,DIRECT TRANSPORT COSTS,REVENUE
Walsall Council,http://opendatacommunities.org/id/metropolitan-district-council/walsall ,WC136-721,31.03.2022,CHILDRENS,ALDRIDGE & BARONS LIMITED,28/03/2022,"1,488.75",6241-Hire of Vehicle with Driver,TRANSPORT,DIRECT TRANSPORT COSTS,REVENUE
Walsall Council,http://opendatacommunities.org/id/metropolitan-district-council/walsall ,WC136-722,31.03.2022,CHILDRENS,ALDRIDGE & BARONS LIMITED,28/03/2022,"1,100.00",6241-Hire of Vehicle with Driver,TRANSPORT,DIRECT TRANSPORT COSTS,REVENUE
Walsall Council,http://opendatacommunities.org/id/metropolitan-district-council/walsall ,WC136-723,31.03.2022,CHILDRENS,ALDRIDGE & BARONS LIMITED,28/03/2022,"1,560.00",6241-Hire of Vehicle with Driver,TRANSPORT,DIRECT TRANSPORT COSTS,REVENUE
Walsall Council,http://opendatacommunities.org/id/metropolitan-district-council/walsall ,WC136-724,31.03.2022,CHILDRENS,ALDRIDGE & BARONS LIMITED,28/03/2022,"1,969.50",6241-Hire of Vehicle with Driver,TRANSPORT,DIRECT TRANSPORT COSTS,REVENUE
Walsall Council,http://opendatacommunities.org/id/metropolitan-district-council/walsall ,WC136-725,31.03.2022,CHILDRENS,ALDRIDGE & BARONS LIMITED,28/03/2022,"1,597.50",6241-Hire of Vehicle with Driver,TRANSPORT,DIRECT TRANSPORT COSTS,REVENUE
Walsall Council,http://opendatacommunities.org/id/metropolitan-district-council/walsall ,WC136-726,31.03.2022,CHILDRENS,ALDRIDGE & BARONS LIMITED,28/03/2022,"1,058.80",6241-Hire of Vehicle with Driver,TRANSPORT,DIRECT TRANSPORT COSTS,REVENUE
Walsall Council,http://opendatacommunities.org/id/metropolitan-district-council/walsall ,WC136-727,31.03.2022,CHILDRENS,ALDRIDGE & BARONS LIMITED,28/03/2022,"1,950.00",6241-Hire of Vehicle with Driver,TRANSPORT,DIRECT TRANSPORT COSTS,REVENUE
Walsall Council,http://opendatacommunities.org/id/metropolitan-district-council/walsall ,WC136-728,31.03.2022,CHILDRENS,ALDRIDGE & BARONS LIMITED,28/03/2022,"1,448.55",6241-Hire of Vehicle with Driver,TRANSPORT,DIRECT TRANSPORT COSTS,REVENUE
Walsall Council,http://opendatacommunities.org/id/metropolitan-district-council/walsall ,WC136-729,31.03.2022,CHILDRENS,ALDRIDGE & BARONS LIMITED,28/03/2022,"1,451.25",6241-Hire of Vehicle with Driver,TRANSPORT,DIRECT TRANSPORT COSTS,REVENUE
Walsall Council,http://opendatacommunities.org/id/metropolitan-district-council/walsall ,WC136-730,31.03.2022,CHILDRENS,ALDRIDGE & BARONS LIMITED,28/03/2022,"1,650.00",6241-Hire of Vehicle with Driver,TRANSPORT,DIRECT TRANSPORT COSTS,REVENUE
Walsall Council,http://opendatacommunities.org/id/metropolitan-district-council/walsall ,WC136-731,31.03.2022,CHILDRENS,ALDRIDGE & BARONS LIMITED,28/03/2022,720.00,6241-Hire of Vehicle with Driver,TRANSPORT,DIRECT TRANSPORT COSTS,REVENUE
Walsall Council,http://opendatacommunities.org/id/metropolitan-district-council/walsall ,WC136-732,31.03.2022,CHILDRENS,ALDRIDGE & BARONS LIMITED,28/03/2022,"1,459.50",6241-Hire of Vehicle with Driver,TRANSPORT,DIRECT TRANSPORT COSTS,REVENUE
Walsall Council,http://opendatacommunities.org/id/metropolitan-district-council/walsall ,WC136-733,31.03.2022,CHILDRENS,ALDRIDGE & BARONS LIMITED,28/03/2022,"1,650.00",6241-Hire of Vehicle with Driver,TRANSPORT,DIRECT TRANSPORT COSTS,REVENUE
Walsall Council,http://opendatacommunities.org/id/metropolitan-district-council/walsall ,WC136-734,31.03.2022,ADULT SOCIAL CARE,REDACTED,10/03/2022,"1,868.40",6541-Direct Payment,THIRD PARTY PAYMENTS,PRIVATE CONTRACTOR,REVENUE
Walsall Council,http://opendatacommunities.org/id/metropolitan-district-council/walsall ,WC136-735,31.03.2022,ADULT SOCIAL CARE,ALEXANDRA HOUSE CARE SERVICES LTD T/A STONEBRIDGE NURSING HOME,15/03/2022,"7,434.72",6541-Residential,THIRD PARTY PAYMENTS,PRIVATE CONTRACTOR,REVENUE
Walsall Council,http://opendatacommunities.org/id/metropolitan-district-council/walsall ,WC136-736,31.03.2022,ADULT SOCIAL CARE,REDACTED,10/03/2022,"1,196.80",6541-Direct Payment,THIRD PARTY PAYMENTS,PRIVATE CONTRACTOR,REVENUE
Walsall Council,http://opendatacommunities.org/id/metropolitan-district-council/walsall ,WC136-737,31.03.2022,CHILDRENS,REDACTED,09/03/2022,318.68,6223-Special Guardianship Orders,TRANSFER PAYMENTS,CHILDREN SOCIAL SERVICES CLIENT,REVENUE
Walsall Council,http://opendatacommunities.org/id/metropolitan-district-council/walsall ,WC136-738,31.03.2022,ADULT SOCIAL CARE,ALL HEALTHCARE SERVICES,29/03/2022,"7,094.20",6540-Professional Services-Priv Contractor & Other Agencies,THIRD PARTY PAYMENTS,PRIVATE CONTRACTOR,REVENUE
Walsall Council,http://opendatacommunities.org/id/metropolitan-district-council/walsall ,WC136-739,31.03.2022,ADULT SOCIAL CARE,ALL HEALTHCARE SERVICES,29/03/2022,"1,747.04",6540-Professional Services-Priv Contractor & Other Agencies,THIRD PARTY PAYMENTS,PRIVATE CONTRACTOR,REVENUE
Walsall Council,http://opendatacommunities.org/id/metropolitan-district-council/walsall ,WC136-740,31.03.2022,ADULT SOCIAL CARE,ALL HEALTHCARE SERVICES,29/03/2022,"2,620.56",6540-Professional Services-Priv Contractor & Other Agencies,THIRD PARTY PAYMENTS,PRIVATE CONTRACTOR,REVENUE
Walsall Council,http://opendatacommunities.org/id/metropolitan-district-council/walsall ,WC136-741,31.03.2022,RESOURCES AND TRANSFORMATION,ALLIED PUBLICITY SERVICES (MANCHESTER) LIMITED T/A APS GROUP,18/03/2022,"1,336.09",6312-External Printing Services,SUPPLIES & SERVICES,PRINTING STATIONERY & GENERAL OFFICE,REVENUE
Walsall Council,http://opendatacommunities.org/id/metropolitan-district-council/walsall ,WC136-742,31.03.2022,RESOURCES AND TRANSFORMATION,ALLIED PUBLICITY SERVICES (MANCHESTER) LIMITED T/A APS GROUP,23/03/2022,"1,308.74",6312-External Printing Services,SUPPLIES & SERVICES,PRINTING STATIONERY & GENERAL OFFICE,REVENUE
Walsall Council,http://opendatacommunities.org/id/metropolitan-district-council/walsall ,WC136-743,31.03.2022,ADULT SOCIAL CARE,ALMA COURT,15/03/2022,"3,826.96",6541-Nursing EMI,THIRD PARTY PAYMENTS,PRIVATE CONTRACTOR,REVENUE
Walsall Council,http://opendatacommunities.org/id/metropolitan-district-council/walsall ,WC136-744,31.03.2022,ADULT SOCIAL CARE,ALMA COURT,15/03/2022,"4,764.88",6541-Nursing EMI,THIRD PARTY PAYMENTS,PRIVATE CONTRACTOR,REVENUE
Walsall Council,http://opendatacommunities.org/id/metropolitan-district-council/walsall ,WC136-745,31.03.2022,ADULT SOCIAL CARE,ALMA COURT,15/03/2022,"4,200.00",6541-Residential,THIRD PARTY PAYMENTS,PRIVATE CONTRACTOR,REVENUE
Walsall Council,http://opendatacommunities.org/id/metropolitan-district-council/walsall ,WC136-746,31.03.2022,ADULT SOCIAL CARE,ALMA COURT,15/03/2022,"6,619.12",6541-Residential,THIRD PARTY PAYMENTS,PRIVATE CONTRACTOR,REVENUE
Walsall Council,http://opendatacommunities.org/id/metropolitan-district-council/walsall ,WC136-747,31.03.2022,ADULT SOCIAL CARE,ALMA COURT,15/03/2022,"3,626.96",6541-Nursing EMI,THIRD PARTY PAYMENTS,PRIVATE CONTRACTOR,REVENUE
Walsall Council,http://opendatacommunities.org/id/metropolitan-district-council/walsall ,WC136-748,31.03.2022,ADULT SOCIAL CARE,ALMA COURT,15/03/2022,"4,200.00",6541-Nursing EMI,THIRD PARTY PAYMENTS,PRIVATE CONTRACTOR,REVENUE
Walsall Council,http://opendatacommunities.org/id/metropolitan-district-council/walsall ,WC136-749,31.03.2022,RESOURCES AND TRANSFORMATION,ALMADEN UK LTD,17/03/2022,"11,520.00",6623-Computer Equipment,SUPPLIES & SERVICES,COMMUNICATIONS & COMPUTING,REVENUE
Walsall Council,http://opendatacommunities.org/id/metropolitan-district-council/walsall ,WC136-750,31.03.2022,"ECONOMY, ENVIRONMENT & COMMUNITIES",ALMOZENE NURSERY & CHILDRENS CENTRE,11/03/2022,677.87,6313-Grants to Other Orgs,SUPPLIES & SERVICES,GRANTS (EXP) & SUBSCRIPTIONS,REVENUE
Walsall Council,http://opendatacommunities.org/id/metropolitan-district-council/walsall ,WC136-751,31.03.2022,CHILDRENS,ALMOZENE NURSERY & CHILDRENS CENTRE,24/03/2022,"2,371.20",6213-Professional Fees & Services,SUPPLIES & SERVICES,SERVICES,REVENUE
Walsall Council,http://opendatacommunities.org/id/metropolitan-district-council/walsall ,WC136-752,31.03.2022,"ECONOMY, ENVIRONMENT & COMMUNITIES",ALMOZENE NURSERY & CHILDRENS CENTRE,22/03/2022,459.20,6313-Grants to Other Orgs,SUPPLIES & SERVICES,GRANTS (EXP) & SUBSCRIPTIONS,REVENUE
Walsall Council,http://opendatacommunities.org/id/metropolitan-district-council/walsall ,WC136-753,31.03.2022,"ECONOMY, ENVIRONMENT & COMMUNITIES",ALMOZENE NURSERY & CHILDRENS CENTRE,31/03/2022,839.95,6313-Grants to Other Orgs,SUPPLIES & SERVICES,GRANTS (EXP) & SUBSCRIPTIONS,REVENUE
Walsall Council,http://opendatacommunities.org/id/metropolitan-district-council/walsall ,WC136-754,31.03.2022,ADULT SOCIAL CARE,ALPHA HEALTH CARE LTD,15/03/2022,"2,722.96",6541-Nursing EMI,THIRD PARTY PAYMENTS,PRIVATE CONTRACTOR,REVENUE
Walsall Council,http://opendatacommunities.org/id/metropolitan-district-council/walsall ,WC136-755,31.03.2022,ADULT SOCIAL CARE,ALPHA HEALTH CARE LTD,15/03/2022,"7,026.96",6541-Nursing EMI,THIRD PARTY PAYMENTS,PRIVATE CONTRACTOR,REVENUE
Walsall Council,http://opendatacommunities.org/id/metropolitan-district-council/walsall ,WC136-756,31.03.2022,ADULT SOCIAL CARE,ALPHA HEALTH CARE LTD,15/03/2022,"2,731.08",6541-Residential EMI,THIRD PARTY PAYMENTS,PRIVATE CONTRACTOR,REVENUE
Walsall Council,http://opendatacommunities.org/id/metropolitan-district-council/walsall ,WC136-757,31.03.2022,ADULT SOCIAL CARE,ALPHA HEALTH CARE LTD,15/03/2022,"4,266.26",6541-Nursing EMI,THIRD PARTY PAYMENTS,PRIVATE CONTRACTOR,REVENUE
Walsall Council,http://opendatacommunities.org/id/metropolitan-district-council/walsall ,WC136-758,31.03.2022,ADULT SOCIAL CARE,ALPHA HEALTH CARE LTD,15/03/2022,"7,601.04",6541-Nursing,THIRD PARTY PAYMENTS,PRIVATE CONTRACTOR,REVENUE
Walsall Council,http://opendatacommunities.org/id/metropolitan-district-council/walsall ,WC136-759,31.03.2022,ADULT SOCIAL CARE,ALPHA HEALTH CARE LTD,15/03/2022,"11,475.00",6541-Residential,THIRD PARTY PAYMENTS,PRIVATE CONTRACTOR,REVENUE
Walsall Council,http://opendatacommunities.org/id/metropolitan-district-council/walsall ,WC136-760,31.03.2022,ADULT SOCIAL CARE,ALPHA HEALTH CARE LTD,15/03/2022,460.71,6541-Residential & Nursing Care Placements,THIRD PARTY PAYMENTS,PRIVATE CONTRACTOR,REVENUE
Walsall Council,http://opendatacommunities.org/id/metropolitan-district-council/walsall ,WC136-761,31.03.2022,ADULT SOCIAL CARE,ALPHA HEALTH CARE LTD,15/03/2022,"3,091.28",6541-Nursing EMI,THIRD PARTY PAYMENTS,PRIVATE CONTRACTOR,REVENUE
Walsall Council,http://opendatacommunities.org/id/metropolitan-district-council/walsall ,WC136-762,31.03.2022,ADULT SOCIAL CARE,ALPHA HEALTH CARE LTD,15/03/2022,"3,363.08",6541-Residential EMI,THIRD PARTY PAYMENTS,PRIVATE CONTRACTOR,REVENUE
Walsall Council,http://opendatacommunities.org/id/metropolitan-district-council/walsall ,WC136-763,31.03.2022,ADULT SOCIAL CARE,ALPHA HEALTH CARE LTD,15/03/2022,"3,049.60",6541-Nursing EMI,THIRD PARTY PAYMENTS,PRIVATE CONTRACTOR,REVENUE
Walsall Council,http://opendatacommunities.org/id/metropolitan-district-council/walsall ,WC136-764,31.03.2022,ADULT SOCIAL CARE,ALPHA HEALTH CARE LTD,15/03/2022,"3,340.00",6541-Residential EMI,THIRD PARTY PAYMENTS,PRIVATE CONTRACTOR,REVENUE
Walsall Council,http://opendatacommunities.org/id/metropolitan-district-council/walsall ,WC136-765,31.03.2022,ADULT SOCIAL CARE,ALPHA HEALTH CARE LTD,15/03/2022,"3,839.29",6541-Residential & Nursing Care Placements,THIRD PARTY PAYMENTS,PRIVATE CONTRACTOR,REVENUE
Walsall Council,http://opendatacommunities.org/id/metropolitan-district-council/walsall ,WC136-766,31.03.2022,ADULT SOCIAL CARE,ALPHA HEALTH CARE LTD,15/03/2022,"3,091.28",6541-Nursing EMI,THIRD PARTY PAYMENTS,PRIVATE CONTRACTOR,REVENUE
Walsall Council,http://opendatacommunities.org/id/metropolitan-district-council/walsall ,WC136-767,31.03.2022,ADULT SOCIAL CARE,ALPHA HEALTH CARE LTD,15/03/2022,"7,000.00",6541-Residential,THIRD PARTY PAYMENTS,PRIVATE CONTRACTOR,REVENUE
Walsall Council,http://opendatacommunities.org/id/metropolitan-district-council/walsall ,WC136-768,31.03.2022,ADULT SOCIAL CARE,ALPHA HEALTH CARE LTD,15/03/2022,"2,854.56",6541-Residential EMI,THIRD PARTY PAYMENTS,PRIVATE CONTRACTOR,REVENUE
Walsall Council,http://opendatacommunities.org/id/metropolitan-district-council/walsall ,WC136-769,31.03.2022,ADULT SOCIAL CARE,ALPHA HEALTH CARE LTD,15/03/2022,"2,722.96",6541-Nursing EMI,THIRD PARTY PAYMENTS,PRIVATE CONTRACTOR,REVENUE
Walsall Council,http://opendatacommunities.org/id/metropolitan-district-council/walsall ,WC136-770,31.03.2022,ADULT SOCIAL CARE,ALPHA HEALTH CARE LTD,15/03/2022,"3,340.00",6541-Residential EMI,THIRD PARTY PAYMENTS,PRIVATE CONTRACTOR,REVENUE
Walsall Council,http://opendatacommunities.org/id/metropolitan-district-council/walsall ,WC136-771,31.03.2022,ADULT SOCIAL CARE,ALPHA HEALTH CARE LTD,15/03/2022,"2,331.08",6541-Residential EMI,THIRD PARTY PAYMENTS,PRIVATE CONTRACTOR,REVENUE
Walsall Council,http://opendatacommunities.org/id/metropolitan-district-council/walsall ,WC136-772,31.03.2022,ADULT SOCIAL CARE,ALPHA HEALTH CARE LTD,15/03/2022,"6,249.60",6541-Residential,THIRD PARTY PAYMENTS,PRIVATE CONTRACTOR,REVENUE
Walsall Council,http://opendatacommunities.org/id/metropolitan-district-council/walsall ,WC136-773,31.03.2022,ADULT SOCIAL CARE,ALPHA HEALTH CARE LTD,15/03/2022,"2,924.63",6541-Nursing EMI,THIRD PARTY PAYMENTS,PRIVATE CONTRACTOR,REVENUE
Walsall Council,http://opendatacommunities.org/id/metropolitan-district-council/walsall ,WC136-774,31.03.2022,ADULT SOCIAL CARE,ALPHA HEALTH CARE LTD,15/03/2022,"2,331.08",6541-Residential EMI,THIRD PARTY PAYMENTS,PRIVATE CONTRACTOR,REVENUE
Walsall Council,http://opendatacommunities.org/id/metropolitan-district-council/walsall ,WC136-775,31.03.2022,ADULT SOCIAL CARE,ALPHA HEALTH CARE LTD,15/03/2022,"5,656.00",6541-Residential,THIRD PARTY PAYMENTS,PRIVATE CONTRACTOR,REVENUE
Walsall Council,http://opendatacommunities.org/id/metropolitan-district-council/walsall ,WC136-776,31.03.2022,ADULT SOCIAL CARE,ALPHA HEALTH CARE LTD,15/03/2022,"2,722.96",6541-Nursing EMI,THIRD PARTY PAYMENTS,PRIVATE CONTRACTOR,REVENUE
Walsall Council,http://opendatacommunities.org/id/metropolitan-district-council/walsall ,WC136-777,31.03.2022,ADULT SOCIAL CARE,ALPHA HEALTH CARE LTD,15/03/2022,"2,961.72",6541-Nursing,THIRD PARTY PAYMENTS,PRIVATE CONTRACTOR,REVENUE
Walsall Council,http://opendatacommunities.org/id/metropolitan-district-council/walsall ,WC136-778,31.03.2022,ADULT SOCIAL CARE,ALPHA HEALTH CARE LTD,15/03/2022,"3,900.00",6541-Residential,THIRD PARTY PAYMENTS,PRIVATE CONTRACTOR,REVENUE
Walsall Council,http://opendatacommunities.org/id/metropolitan-district-council/walsall ,WC136-779,31.03.2022,ADULT SOCIAL CARE,ALPHA HEALTH CARE LTD,15/03/2022,"3,800.00",6541-Nursing,THIRD PARTY PAYMENTS,PRIVATE CONTRACTOR,REVENUE
Walsall Council,http://opendatacommunities.org/id/metropolitan-district-council/walsall ,WC136-780,31.03.2022,ADULT SOCIAL CARE,ALPHA HEALTH CARE LTD,15/03/2022,"14,346.43",6541-Nursing EMI,THIRD PARTY PAYMENTS,PRIVATE CONTRACTOR,REVENUE
Walsall Council,http://opendatacommunities.org/id/metropolitan-district-council/walsall ,WC136-781,31.03.2022,ADULT SOCIAL CARE,ALPHA HEALTH CARE LTD,15/03/2022,"3,064.32",6541-Nursing EMI,THIRD PARTY PAYMENTS,PRIVATE CONTRACTOR,REVENUE
Walsall Council,http://opendatacommunities.org/id/metropolitan-district-council/walsall ,WC136-782,31.03.2022,ADULT SOCIAL CARE,ALPHA HEALTH CARE LTD,15/03/2022,"1,742.62",6541-Nursing,THIRD PARTY PAYMENTS,PRIVATE CONTRACTOR,REVENUE
Walsall Council,http://opendatacommunities.org/id/metropolitan-district-council/walsall ,WC136-783,31.03.2022,ADULT SOCIAL CARE,ALPHA HEALTH CARE LTD,15/03/2022,"3,626.96",6541-Nursing EMI,THIRD PARTY PAYMENTS,PRIVATE CONTRACTOR,REVENUE
Walsall Council,http://opendatacommunities.org/id/metropolitan-district-council/walsall ,WC136-784,31.03.2022,ADULT SOCIAL CARE,ALPHA HEALTH CARE LTD,15/03/2022,"2,600.00",6541-Residential,THIRD PARTY PAYMENTS,PRIVATE CONTRACTOR,REVENUE
Walsall Council,http://opendatacommunities.org/id/metropolitan-district-council/walsall ,WC136-785,31.03.2022,ADULT SOCIAL CARE,ALPHA HEALTH CARE LTD,15/03/2022,"3,992.86",6541-Residential & Nursing Care Placements,THIRD PARTY PAYMENTS,PRIVATE CONTRACTOR,REVENUE
Walsall Council,http://opendatacommunities.org/id/metropolitan-district-council/walsall ,WC136-786,31.03.2022,CHILDRENS,ALPHA TRAINING ACADEMY UK LTD,10/03/2022,750.00,1187-Materials,SUPPLIES & SERVICES,EQUIPMENT FURNITURE & MATERIALS,REVENUE
Walsall Council,http://opendatacommunities.org/id/metropolitan-district-council/walsall ,WC136-787,31.03.2022,CHILDRENS,ALPHA TRAINING ACADEMY UK LTD,21/03/2022,930.00,1187-Materials,SUPPLIES & SERVICES,EQUIPMENT FURNITURE & MATERIALS,REVENUE
Walsall Council,http://opendatacommunities.org/id/metropolitan-district-council/walsall ,WC136-788,31.03.2022,CHILDRENS,ALPHA TRAINING ACADEMY UK LTD,11/03/2022,"21,265.00",1220-Top Up Funding -Grants to Schools,SUPPLIES & SERVICES,GRANTS (EXP) & SUBSCRIPTIONS,REVENUE
Walsall Council,http://opendatacommunities.org/id/metropolitan-district-council/walsall ,WC136-789,31.03.2022,CHILDRENS,ALPHA TRAINING ACADEMY UK LTD,11/03/2022,"5,555.00",1220-Top Up Funding -Grants to Schools,SUPPLIES & SERVICES,GRANTS (EXP) & SUBSCRIPTIONS,REVENUE
Walsall Council,http://opendatacommunities.org/id/metropolitan-district-council/walsall ,WC136-790,31.03.2022,CHILDRENS,ALPHA TRAINING ACADEMY UK LTD,09/03/2022,"3,600.00",1217-Professional Fees & Services,SUPPLIES & SERVICES,SERVICES,REVENUE
Walsall Council,http://opendatacommunities.org/id/metropolitan-district-council/walsall ,WC136-791,31.03.2022,CHILDRENS,ALPHABIOLABS,31/03/2022,"1,410.00",6222-Professional Fees & Services,SUPPLIES & SERVICES,SERVICES,REVENUE
Walsall Council,http://opendatacommunities.org/id/metropolitan-district-council/walsall ,WC136-792,31.03.2022,CHILDRENS,ALPHABIOLABS,03/03/2022,636.30,6220-School Only Payments - Catering,THIRD PARTY PAYMENTS,INDEPENDENT UNIT WITHIN COUNCIL,REVENUE
Walsall Council,http://opendatacommunities.org/id/metropolitan-district-council/walsall ,WC136-793,31.03.2022,CHILDRENS,ALPHABIOLABS,10/03/2022,399.00,6223-Professional Fees & Services,SUPPLIES & SERVICES,SERVICES,REVENUE
Walsall Council,http://opendatacommunities.org/id/metropolitan-district-council/walsall ,WC136-794,31.03.2022,RESOURCES AND TRANSFORMATION,ALZEC VISION CIC,29/03/2022,"8,957.50",6312-Grants to Other Orgs,SUPPLIES & SERVICES,GRANTS (EXP) & SUBSCRIPTIONS,REVENUE
Walsall Council,http://opendatacommunities.org/id/metropolitan-district-council/walsall ,WC136-795,31.03.2022,CHILDRENS,AMANS TRAVEL LTD,01/03/2022,"2,660.00",6241-Hire of Vehicle with Driver,TRANSPORT,DIRECT TRANSPORT COSTS,REVENUE
Walsall Council,http://opendatacommunities.org/id/metropolitan-district-council/walsall ,WC136-796,31.03.2022,CHILDRENS,AMANS TRAVEL LTD,01/03/2022,"2,660.00",6241-Hire of Vehicle with Driver,TRANSPORT,DIRECT TRANSPORT COSTS,REVENUE
Walsall Council,http://opendatacommunities.org/id/metropolitan-district-council/walsall ,WC136-797,31.03.2022,CHILDRENS,AMANS TRAVEL LTD,01/03/2022,"2,660.00",6241-Hire of Vehicle with Driver,TRANSPORT,DIRECT TRANSPORT COSTS,REVENUE
Walsall Council,http://opendatacommunities.org/id/metropolitan-district-council/walsall ,WC136-798,31.03.2022,CHILDRENS,AMANS TRAVEL LTD,28/03/2022,"2,470.00",6241-Hire of Vehicle with Driver,TRANSPORT,DIRECT TRANSPORT COSTS,REVENUE
Walsall Council,http://opendatacommunities.org/id/metropolitan-district-council/walsall ,WC136-799,31.03.2022,CHILDRENS,AMANS TRAVEL LTD,28/03/2022,"2,850.00",6241-Hire of Vehicle with Driver,TRANSPORT,DIRECT TRANSPORT COSTS,REVENUE
Walsall Council,http://opendatacommunities.org/id/metropolitan-district-council/walsall ,WC136-800,31.03.2022,CHILDRENS,AMANS TRAVEL LTD,28/03/2022,"2,470.00",6241-Hire of Vehicle with Driver,TRANSPORT,DIRECT TRANSPORT COSTS,REVENUE
Walsall Council,http://opendatacommunities.org/id/metropolitan-district-council/walsall ,WC136-801,31.03.2022,ADULT SOCIAL CARE,REDACTED,10/03/2022,"2,033.70",6541-Direct Payment,THIRD PARTY PAYMENTS,PRIVATE CONTRACTOR,REVENUE
Walsall Council,http://opendatacommunities.org/id/metropolitan-district-council/walsall ,WC136-802,31.03.2022,"ECONOMY, ENVIRONMENT & COMMUNITIES",AMEY LG LIMITED,02/03/2022,"1,546.77",6313-Payment to Contractors,SUPPLIES & SERVICES,SERVICES,REVENUE
Walsall Council,http://opendatacommunities.org/id/metropolitan-district-council/walsall ,WC136-803,31.03.2022,"ECONOMY, ENVIRONMENT & COMMUNITIES",AMEY LG LIMITED,18/03/2022,561.71,6411-Professional Services-Priv Contractor & Other Agencies,THIRD PARTY PAYMENTS,PRIVATE CONTRACTOR,REVENUE
Walsall Council,http://opendatacommunities.org/id/metropolitan-district-council/walsall ,WC136-804,31.03.2022,"ECONOMY, ENVIRONMENT & COMMUNITIES",AMEY LG LIMITED,02/03/2022,"1,295.47",6411-Repair & Maintenance of Furniture & Equipment,SUPPLIES & SERVICES,EQUIPMENT FURNITURE & MATERIALS,REVENUE
Walsall Council,http://opendatacommunities.org/id/metropolitan-district-council/walsall ,WC136-805,31.03.2022,"ECONOMY, ENVIRONMENT & COMMUNITIES",AMEY LG LIMITED,02/03/2022,"20,567.19",6411-Materials,SUPPLIES & SERVICES,EQUIPMENT FURNITURE & MATERIALS,REVENUE
Walsall Council,http://opendatacommunities.org/id/metropolitan-district-council/walsall ,WC136-806,31.03.2022,"ECONOMY, ENVIRONMENT & COMMUNITIES",AMEY LG LIMITED,10/03/2022,895.63,6411-Professional Services-Priv Contractor & Other Agencies,THIRD PARTY PAYMENTS,PRIVATE CONTRACTOR,REVENUE
Walsall Council,http://opendatacommunities.org/id/metropolitan-district-council/walsall ,WC136-807,31.03.2022,"ECONOMY, ENVIRONMENT & COMMUNITIES",AMEY LG LIMITED,23/03/2022,435.87,6411-Professional Services-Priv Contractor & Other Agencies,THIRD PARTY PAYMENTS,PRIVATE CONTRACTOR,REVENUE
Walsall Council,http://opendatacommunities.org/id/metropolitan-district-council/walsall ,WC136-808,31.03.2022,ECONOMY & ENVIRONMENT CAPITAL,AMEY LG LIMITED,23/03/2022,"1,014.51",7200-Site Works Contractors,CAPITAL,"NEW CONSTRUCTION,CONVERSION & RENOVATION",CAPITAL
Walsall Council,http://opendatacommunities.org/id/metropolitan-district-council/walsall ,WC136-809,31.03.2022,ECONOMY & ENVIRONMENT CAPITAL,AMEY OW LTD,02/03/2022,"8,440.50",7200-Project Fees,CAPITAL,"NEW CONSTRUCTION,CONVERSION & RENOVATION",CAPITAL
Walsall Council,http://opendatacommunities.org/id/metropolitan-district-council/walsall ,WC136-810,31.03.2022,CHILDRENS,AMG NURSING CARE SERVICES,24/03/2022,406.55,6220-Professional Fees & Services,SUPPLIES & SERVICES,SERVICES,REVENUE
Walsall Council,http://opendatacommunities.org/id/metropolitan-district-council/walsall ,WC136-811,31.03.2022,CHILDRENS,AMG NURSING CARE SERVICES,24/03/2022,"2,274.48",6220-Accommodation and Related Costs-Assistance to S/S Clients,TRANSFER PAYMENTS,ADULT SOCIAL SERVICES CLIENT,REVENUE
Walsall Council,http://opendatacommunities.org/id/metropolitan-district-council/walsall ,WC136-812,31.03.2022,CHILDRENS,AMG NURSING CARE SERVICES,24/03/2022,406.55,6220-Professional Fees & Services,SUPPLIES & SERVICES,SERVICES,REVENUE
Walsall Council,http://opendatacommunities.org/id/metropolitan-district-council/walsall ,WC136-813,31.03.2022,CHILDRENS,AMG NURSING CARE SERVICES,23/03/2022,321.84,6220-Professional Fees & Services,SUPPLIES & SERVICES,SERVICES,REVENUE
